Workbook

Sheet форма для предприятий
I1: Таблица №1
A2: ПРОГНОЗ
A3: социально-экономического развития на 2018 год и на период до 2020 года
A4: ООО "Агро-Спутник"
A5: (организационно-правовая форма, наименование предприятия)
A6: Структура уставного капитала предприятия:*) | D6: Вид деятельности по ОКВЭД2 (основной):
A7: доля государственной (федеральной) собственности _______%, | D7: 1.Код вида деятельности 10.89.9
A8: доля государственной (областной) собственности ________%, | D8: 2.Наименование вида деятельности: Производство продуктов питания, не включенных в другие группировки
A9: доля муниципальной собственности ______%,
A10: другие собственники 100%
A12: № п/п | B12: Показатели | D12: Единица измерения | E12: отчет | G12: 2017г. | I12: прогноз
E13: 2015г. | F13: 2016г. | G13: январь-июнь, отчет | H13: январь-декабрь, оценка | I13: 2018г. | J13: 2019г. | K13: 2020г.
N14: 2015г. | O14: 2016г. | P14: январь-июнь, отчет | Q14: январь-декабрь, оценка | R14: 2018г. | S14: 2019г. | T14: 2020г.
A15: 1. | B15: Оборот организации (без НДС, акцизов и других аналогичных обязательных платежей) - всего (№ 1-предприятие, раздел 5, стр.501 или раздел 8, стр. 801) | D15: млн. руб. | E15: 468.26 | F15: =F19+F20+F21+F22+F23+F24+F25+F26 -> 544.273 | G15: =G19+G20+G21+G22+G23+G24+G25+G26 -> 340.148 | H15: 635.078 | I15: 675.662 | J15: 723.247 | K15: 786.037
A16: 2. | B16: Отгружено товаров собственного производства, выполнено работ и услуг собственными силами (нарастающим итогом с начала года, на основании данных раздела 2 формы стат. отчет. № П-1 и (или) раздела 8, стр. 801 формы стат. отчет. № 1-предприятие) | D16: млн. руб. | E16: 468.26 | F16: =F19+F20+F21+F22+F23+F24+F25+F26 -> 544.273 | G16: =G19+G20+G21+G22+G23+G24+G25+G26 -> 340.148 | H16: 635.078 | I16: 675.662 | J16: 723.247 | K16: 786.037 | M16: 10 | N16: =E19 -> 402.531 | O16: =F19 -> 368.429 | P16: 215.174 | Q16: 394.219 | R16: 419.5702257 | S16: 449.119172 | T16: 488.110274 | U16: ООО АгроСпутник
A17: 2.1. | B17: в том числе по видам деятельности (№ П-1, раздел 2): | D17: млн. руб. | N17: =E20 -> 2.403 | O17: 3.1543 | P17: 1.283 | Q17: 3.374 | R17: 3.590973397 | S17: 3.843873802 | T17: 4.177586733
B18: код по ОКВЭД2 | C18: наименование вида деятельности | M18: Производство пищевых продуктов | N18: 2.778 | O18: 1.4133 | P18: 0.4463 | Q18: 1.512 | R18: 1.609232891 | S18: 1.722565853 | T18: 1.872113557
B19: 10.89.9 | C19: - семечки жареные | D19: млн. руб. | E19: 402.531 | F19: 368.429 | G19: 215.174 | H19: 394.219 | I19: =H19*I28/100*I30/100 -> 419.570 | J19: =I19*J28/100*J30/100 -> 449.119 | K19: =J19*K28/100*K30/100 -> 488.110 | N19: 54.884 | O19: 159.6634 | P19: 90.1299 | Q19: 170.839 | R19: 181.8252235 | S19: 194.6305739 | T19: 211.527783
B20: 10.89.9 | C20: - арахис | D20: млн. руб. | E20: 2.403 | F20: 3.154 | G20: 1.283 | H20: 3.374 | I20: =H20*I28/100*I30/100 -> 3.591 | J20: =I20*J28/100*J30/100 -> 3.844 | K20: =J20*K28/100*K30/100 -> 4.178 | N20: 3.605 | O20: 2.7831 | P20: 1.1628 | Q20: 2.978 | R20: 2.913554767 | S20: 3.118746813 | T20: 3.38950652
B21: 10.89.9 | C21: - фисташки | D21: млн. руб. | E21: 2.778 | F21: 1.413 | G21: 0.446 | H21: 1.512 | I21: =H21*I28/100*I30/100 -> 1.609 | J21: =I21*J28/100*J30/100 -> 1.723 | K21: =J21*K28/100*K30/100 -> 1.872 | N21: 2.059 | O21: 8.1394 | P21: 3.9941 | Q21: 8.709 | R21: 9.269053737 | S21: 9.921842602 | T21: 10.78322551
B22: 10.89.9. | C22: - ядро | D22: млн. руб. | E22: 54.884 | F22: 159.663 | G22: 90.130 | H22: 170.839 | I22: =H22*I28/100*I30/100 -> 181.825 | J22: =I22*J28/100*J30/100 -> 194.631 | K22: =J22*K28/100*K30/100 -> 211.528 | N22: 0 | O22: 0.6909 | P22: 1.6018 | Q22: 0.739 | R22: 0.7865232187 | S22: 0.8419154533 | T22: 0.9150078826
B23: 10.89.9 | C23: - семечки тыквенные | D23: млн. руб. | E23: 3.605 | F23: 2.783 | G23: 1.163 | H23: 2.978 | I23: =H23*I28/100/I30*100 -> 2.914 | J23: =I23*J28/100*J30/100 -> 3.119 | K23: =J23*K28/100*K30/100 -> 3.390 | N23: 0 | O23: 0 | P23: 26.3565 | Q23: 52.708 | R23: 56.09751802 | S23: 60.04828107 | T23: 65.26148238
B24: 10.89.9 | C24: - халва | D24: млн. руб. | E24: 2.059 | F24: 8.139 | G24: 3.994 | H24: 8.709 | I24: =H24*I28/100*I30/100 -> 9.269 | J24: =I24*J28/100*J30/100 -> 9.922 | K24: =J24*K28/100*K30/100 -> 10.783 | N24: =E83 -> 55.887 | O24: =F83 -> 58.681 | P24: 35.949 | Q24: 62.898 | R24: 70.10938706 | S24: 78.11739976 | T24: 86.74714303 | U24: ЗРМ
B25: 10.89.9 | C25: - семечки с арахисом | D25: млн. руб. | E25: 0 | F25: 0.691 | G25: 1.602 | H25: 0.739 | I25: =H25*I28/100*I30/100 -> 0.787 | J25: =I25*J28/100*J30/100 -> 0.842 | K25: =J25*K28/100*K30/100 -> 0.915 | N25: =E84 -> 18.207 | O25: =F84 -> 19.117 | P25: 12.388 | Q25: 19.117 | R25: 21.30880398 | S25: 23.74273159 | T25: 26.36562583
B26: 10.89.9 | C26: - крем-халва | D26: млн. руб. | E26: 0 | F26: 0.000 | G26: 26.357 | H26: 52.708 | I26: =H26*I28/100*I30/100 -> 56.098 | J26: =I26*J28/100*J30/100 -> 60.048 | K26: =J26*K28/100*K30/100 -> 65.261 | N26: =E143 -> 54.834 | O26: =F143 -> 61.2475 | P26: 30.9487 | Q26: 61.898 | R26: 67.76654515 | S26: 73.27811828 | T26: 80.06884881 | U26: Богучармолоко
A27: 3. | B27: Отгружено товаров собственного производства, выполнено работ и услуг собственными силами по промышленным видам экономической деятельности (из стр.2.1 настоящей формы - сумма строк с кодами от 05 до 39 включительно) - всего | D27: млн. руб. | E27: =E19+E20+E21+E22+E23+E24+E25+E26 -> 468.260 | F27: =F19+F20+F21+F22+F23+F24+F25+F26 -> 544.273 | G27: 340.148 | H27: 635.078 | I27: 675.662 | J27: 723.247 | K27: 786.037 | N27: =E203 -> 23.975 | O27: =F203 -> 20.524 | P27: 8.552 | Q27: 20.500 | R27: 21.982 | S27: 23.695 | T27: 25.100 | U27: Богучархлеб
A28: 4. | B28: Темп роста (снижения) промышленного производства в сопоставимых ценах (ценах 2010г.) | D28: в % к предыдущему году | E28: 141 | F28: ='расчет темпов по предприятиям'!L19 -> 94.1 | G28: ='расчет темпов по предприятиям'!L47 -> 120.2 | H28: ='расчет темпов по предприятиям'!F33 -> 107.7 | I28: ='расчет темпов по предприятиям'!I33 -> 102.0 | J28: ='расчет темпов по предприятиям'!L33 -> 102.9 | K28: ='расчет темпов по предприятиям'!F47 -> 104.4 | N28: =E204 -> 3.352 | O28: =F204 -> 2.620 | P28: 1.151 | Q28: 3.100 | R28: 3.324 | S28: 3.583 | T28: 3.796
A29: 5. | B29: Индекс цен производителей промышленных товаров (фактически сложившийся на предприятии) | D29: в % к предыдущему году | E29: 113.7 | F29: =F15/E15*100/F28*100 -> 123.5 | G29: =G15/276.4105*100/G28*100 -> 102.3 | H29: =H15/F15*100/H28*100 -> 108.3 | I29: х | J29: х | K29: х | M29: Итого 10 | N29: =N16+N17+N18+N19+N20+N21+N22+N23+N24+N25+N26+N27+N28 -> 624.515 | O29: =O16+O17+O18+O19+O20+O21+O22+O23+O24+O25+O26+O27+O28 -> 706.463 | P29: 429.137 | Q29: 802.591 | R29: 860.154 | S29: 925.663 | T29: 1008.115
A30: 6. | B30: Индекс-дефлятор оптовых цен | D30: в % к предыдущему году | E30: х | F30: х | G30: х | H30: х | I30: 104.3 | J30: 104 | K30: 104.1
A31: 7. | B31: Среднесписочная численность работающих | D31: человек | E31: 171 | F31: 175 | G31: 178 | H31: 185 | I31: 190 | J31: 200 | K31: 200
A32: 8. | B32: Среднемесячная заработная плата | D32: руб. | E32: 15112 | F32: 16079 | G32: 18065 | H32: 19955 | I32: 21552 | J32: 23276 | K32: 25138
A33: 9. | B33: Расходы на производство и продажу продукции (товаров, работ и услуг) - итого*) (№ 1-предприятие, раздел 6, стр.659) | D33: млн. руб. | E33: =E35+E36+E37+E38+E39++E40 -> 302.974 | F33: =F35+F36+F37+F38+F39++F40 -> 285.563 | G33: 166.271 | H33: 380.769 | I33: 403.657 | J33: 429.047 | K33: 452.300
B34: в том числе | M34: Пр-во метал изд | N34: 2015 | O34: 2016 | P34: 1 пол 2017 | Q34: 2017 | R34: 2018 | S34: 2019 | T34: 2020
A35: 9.1. | B35: Материальные затраты | D35: млн.руб. | E35: 247.100 | F35: 222.600 | G35: 131.651 | H35: 304.790 | I35: 320.029 | J35: 336.031 | K35: 352.832 | N35: =E262 -> 15.021 | O35: =F262 -> 16.6633 | P35: 10.292 | Q35: 20.584 | R35: 22.367055 | S35: 24.7759365 | T35: 27.73248707 | U35: Строймаш
A36: 9.2. | B36: Расходы на оплату труда | D36: млн. руб. | E36: 31.009 | F36: =F32*F31*12/1000000 -> 33.766 | G36: =G32*G31*6/1000000 -> 19.293 | H36: =H32*H31*12/1000000 -> 44.300 | I36: 49.139 | J36: 55.862 | K36: 60.331 | M36: Итого 28 | N36: =N35 -> 15.021 | O36: =O35 -> 16.6633 | P36: 10.292 | Q36: 20.584 | R36: 22.367055 | S36: 24.7759365 | T36: 27.73248707
A37: 8.3. | B37: Страховые взносы в Пенсионный фонд, ФСС, ФФОМС | D37: млн. руб. | E37: 9.365 | F37: =F36*30.2% -> 10.197 | G37: =G36*30.2% -> 5.827 | H37: 13.379 | I37: 14.840 | J37: 16.870 | K37: 18.220
A38: 8.4. | B38: Амортизация (основные средства и нематериальные активы) | D38: млн. руб. | E38: 8.300 | F38: 10.900 | G38: 7.000 | H38: 12.000 | I38: 12.300 | J38: 12.423 | K38: 12.547
A39: 8.5. | B39: Налоги и сборы, включаемые в себестоимость продукции (работ, услуг) | D39: млн. руб. | E39: 1.2 | F39: 0.6 | G39: 0.5 | H39: 1.3 | I39: 1.35 | J39: 1.36 | K39: 1.37 | N39: 2015 | O39: 2016 | P39: 1 пол 2017 | Q39: 2017 | R39: 2018 | S39: 2019 | T39: 2020
A40: 8.6. | B40: Прочие расходы, связанные с производством и продажей продукции (товаров, работ, услуг) | D40: млн. руб. | E40: 6 | F40: 7.5 | G40: 2 | H40: 5 | I40: 6 | J40: 6.5 | K40: 7 | M40: Итого обраб пр-ва | N40: =N29+N36 -> 639.536 | O40: =O29+O36 -> 723.126 | P40: 439.429 | Q40: 823.175 | R40: 882.521 | S40: 950.439 | T40: 1035.847
A41: 9. | B41: Прибыль (+), убыток (-) до налогообложения | D41: млн. руб. | E41: 109.9 | F41: ='расчет прибыли по предприятиям'!C16 -> 148.3 | G41: ='расчет прибыли по предприятиям'!D16 -> 94.6 | H41: ='расчет прибыли по предприятиям'!E16 -> 125.613 | I41: ='расчет прибыли по предприятиям'!F16 -> 181.335 | J41: ='расчет прибыли по предприятиям'!G16 -> 196.332 | K41: ='расчет прибыли по предприятиям'!H16 -> 200
A42: 10. | B42: Наличие основных фондов на конец года по полной учетной стоимости (ф.№11стат.отчетн., стр. 01, гр.9) | D42: млн. руб. | E42: 95.8 | F42: 107.5 | G42: 150.9 | H42: 190 | I42: 190 | J42: 190 | K42: 195
A43: 11. | B43: Наличие основных фондов на конец года по остаточной балансовой стоимости (ф.№11стат.отчетн., стр. 01, гр.10) | D43: млн. руб. | E43: 60.1 | F43: 63.1 | G43: 100.5 | H43: 117.8 | I43: 117.8 | J43: 117.8 | K43: 120.9
A44: 12. | B44: Среднегодовая остаточная стоимость основных средств ( за минусом необлагаемого налогом имущества) - налоговая база (форма по КНД 1152026, раздел 2,строка 190) | D44: млн. руб. | E44: 49.3 | F44: 61.3 | G44: 45 | H44: 80.2 | I44: 80.2 | J44: 80.2 | K44: 85.4 | M44: Добыча полезн иск | N44: 2015 | O44: 2016 | P44: 1 пол 2017 | Q44: 2017 | R44: 2018 | S44: 2019 | T44: 2020
A45: 13. | B45: Коэффициент загрузки (использования) производственной мощности (по основному виду выпускаемой продукции) | D45: % | E45: 70 | F45: 75 | G45: 75 | H45: 80 | I45: 80 | J45: 90 | K45: 90 | M45: В | N45: =E321+E383 -> 148.303 | O45: =F321+F383 -> 243.20618 | P45: 187.474 | Q45: 374.948 | R45: 422.9974386 | S45: 480.8327247 | T45: 543.3009096
A46: 14. | B46: Производство основных видов промышленной продукции**) (форма стат. отч. №1-натура-БМ) | D46: в соответств. натур.ед. измер. | M46: Итого 28.1 | N46: =N45 -> 148.303 | O46: =O45 -> 243.20618 | P46: 187.474 | Q46: 374.948 | R46: 422.9974386 | S46: 480.8327247 | T46: 543.3009096
B47: - семечки жареные | D47: тн. | E47: 3131.2 | F47: 2672.9 | G47: ='расчет темпов по предприятиям'!J38 -> 1533.4 | H47: ='расчет темпов по предприятиям'!D24 -> 2730 | I47: ='расчет темпов по предприятиям'!G24 -> 2780 | J47: ='расчет темпов по предприятиям'!J24 -> 2860 | K47: ='расчет темпов по предприятиям'!D38 -> 2980
B48: - арахис | D48: тн. | E48: 13 | F48: 13 | G48: ='расчет темпов по предприятиям'!J39 -> 4.5 | H48: ='расчет темпов по предприятиям'!D25 -> 9 | I48: ='расчет темпов по предприятиям'!G25 -> 9 | J48: ='расчет темпов по предприятиям'!J25 -> 9.5 | K48: ='расчет темпов по предприятиям'!D39 -> 9.9
B49: - фисташки | D49: тн. | E49: 4.1 | F49: 1.5 | G49: ='расчет темпов по предприятиям'!J40 -> 0.5 | H49: ='расчет темпов по предприятиям'!D26 -> 1 | I49: ='расчет темпов по предприятиям'!G26 -> 2 | J49: ='расчет темпов по предприятиям'!J26 -> 1.7 | K49: ='расчет темпов по предприятиям'!D40 -> 1.8
B50: - ядро | D50: тн. | E50: 484.3 | F50: 1144.4 | G50: ='расчет темпов по предприятиям'!J41 -> 694.7 | H50: ='расчет темпов по предприятиям'!D27 -> 1155 | I50: ='расчет темпов по предприятиям'!G27 -> 1180 | J50: ='расчет темпов по предприятиям'!J27 -> 1215 | K50: ='расчет темпов по предприятиям'!D41 -> 1280
B51: - семечки тыквенные | D51: тн. | E51: 9.9 | F51: 6.8 | G51: ='расчет темпов по предприятиям'!J42 -> 2.6 | H51: ='расчет темпов по предприятиям'!D28 -> 6.9 | I51: ='расчет темпов по предприятиям'!G28 -> 7 | J51: ='расчет темпов по предприятиям'!J28 -> 7.15 | K51: ='расчет темпов по предприятиям'!D42 -> 7.5 | M51: эл эн, газ | N51: 2015 | O51: 2016 | P51: 1 пол 2017 | Q51: 2017 | R51: 2018 | S51: 2019 | T51: 2020
B52: - халва | D52: тн. | E52: 33.4 | F52: 107.7 | G52: ='расчет темпов по предприятиям'!J43 -> 44.6 | H52: ='расчет темпов по предприятиям'!D29 -> 90 | I52: ='расчет темпов по предприятиям'!G29 -> 92 | J52: ='расчет темпов по предприятиям'!J29 -> 95 | K52: ='расчет темпов по предприятиям'!D43 -> 100 | M52: D 35 | N52: =E146 -> 0.563 | O52: =F146 -> 0.5799 | P52: 0.3649 | Q52: 0.582 | R52: 0.6371793802 | S52: 0.6890023076 | T52: 0.7528525964 | U52: богучармолоко
B53: - семечки с арахисом | D53: тн. | E53: 0 | F53: 3.3 | G53: ='расчет темпов по предприятиям'!J44 -> 8 | H53: ='расчет темпов по предприятиям'!D30 -> 16 | I53: ='расчет темпов по предприятиям'!G30 -> 16 | J53: ='расчет темпов по предприятиям'!J30 -> 17 | K53: ='расчет темпов по предприятиям'!D44 -> 18 | M53: 35 | N53: =E446+E448 -> 31.782 | O53: =F446+F448 -> 28.462 | P53: 16.084 | Q53: 33.386 | R53: 35.315 | S53: 37.462 | T53: 40.124 | U53: Коммунсервис
B54: - крем-халва | D54: тн. | E54: 0 | F54: 0 | G54: ='расчет темпов по предприятиям'!J45 -> 145.6 | H54: ='расчет темпов по предприятиям'!D31 -> 290 | I54: ='расчет темпов по предприятиям'!G31 -> 300 | J54: ='расчет темпов по предприятиям'!J31 -> 310 | K54: ='расчет темпов по предприятиям'!D45 -> 325 | M54: ИТОГО 35 | N54: =N52+N53 -> 32.345 | O54: =O52+O53 -> 29.042 | P54: 16.449 | Q54: 33.968 | R54: 35.952 | S54: 38.151 | T54: 40.877
A55: 15. | B55: Инвестиции в основной капитал, всего | D55: млн. руб. | E55: =E57+E58 -> 26.947 | F55: =F57+F58 -> 20.468 | G55: 37.931 | H55: 62.858 | I55: 39.637 | J55: 41.381 | K55: 43.078
B56: в том числе по источникам:
B57: - собственные средства | D57: млн. руб. | E57: 26.947 | F57: 20.468 | G57: 37.931 | H57: 62.858 | I57: 39.637 | J57: 41.381 | K57: 43.078
B58: - привлеченные средства | D58: млн. руб. | E58: =E60+E61+E62 -> 0 | F58: =F60+F61+F62 -> 0 | G58: 0 | H58: 0 | I58: 0 | J58: 0 | K58: 0
B59: из них
B60: кредиты банков | D60: млн. руб. | M60: водоснаб | N60: 2015 | O60: 2016 | P60: 1 пол 2017 | Q60: 2017 | R60: 2018 | S60: 2019 | T60: 2020
B61: федеральный бюджет | D61: млн. руб. | M61: E 36-37 | N61: =E145 -> 0.049 | O61: =F145 -> 0.0416 | P61: 0.0217 | Q61: 0.044 | R61: 0.04817163699 | S61: 0.05208952154 | T61: 0.05691669113 | U61: Богучармолоко
B62: бюджет области | D62: млн. руб. | N62: =E445 -> 22.327 | O62: =F445+F447 -> 36.034 | P62: 20.060 | Q62: 36.684 | R62: 38.804 | S62: 41.163 | T62: 44.088 | U62: Коммунсервис
B63: - прочие | D63: млн. руб. | M63: Итого 36-37 | N63: =N61+N62 -> 22.376 | O63: =O61+O62 -> 36.076 | P63: 20.082 | Q63: 36.728 | R63: 38.852 | S63: 41.215 | T63: 44.145
A66: ПРОГНОЗ
A67: социально-экономического развития на 2018 год и на период до 2020 года
A68: ООО "Богучарский ЗРМ"
A69: (организационно-правовая форма, наименование предприятия)
A70: Структура уставного капитала предприятия:*) | D70: Вид деятельности по ОКВЭД2 (основной): | N70: 2015 | O70: 2016 | P70: 1 пол 2017 | Q70: 2017 | R70: 2018 | S70: 2019 | T70: 2020
A71: доля государственной (федеральной) собственности _______%, | D71: 1.Код вида деятельности 10.41.24 | M71: прочие | N71: =E144+E147 -> 18.432 | O71: =F144+F147 -> 24.5921 | P71: 12.2808 | Q71: 24.562 | R71: 24.58342704 | S71: 24.60355072 | T71: 24.62834482
A72: доля государственной (областной) собственности ________%, | D72: 2.Наименование вида деятельности: Производство нерафинированного подсолнечного масла и его фракций
A73: доля муниципальной собственности ______%,
A74: другие собственники 100 % | N74: 2015 | O74: 2016 | P74: 1 пол 2017 | Q74: 2017 | R74: 2018 | S74: 2019 | T74: 2020
M75: отгрузка | N75: =N29+N36+N46+N54+N63 -> 842.560 | O75: =O29+O36+O46+O54+O63 -> 1031.450 | P75: 663.433 | Q75: 1268.819 | R75: 1380.323 | S75: 1510.639 | T75: 1664.170
A76: № п/п | B76: Показатели | D76: Единица измерения | E76: отчет | G76: 2017г. | I76: прогноз | M76: Оборот | N76: =E15+E79+E139+E199+E258+E317+E379+E441 -> 871.681 | O76: =F15+F79+F139+F199+F258+F317+F379+F441 -> 1104.992 | P76: 700.865 | Q76: 1363.683 | R76: 1457.737 | S76: 1565.077 | T76: 1693.294
E77: 2015г. | F77: 2016г. | G77: январь-июнь, отчет | H77: январь-декабрь, оценка | I77: 2018г. | J77: 2019г. | K77: 2020г.
A79: 1. | B79: Оборот организации (без НДС, акцизов и других аналогичных обязательных платежей) - всего (№ 1-предприятие, раздел 5, стр.501 или раздел 8, стр. 801) | D79: млн. руб. | E79: 74.094 | F79: =F80 -> 77.798 | G79: =G80 -> 48.337 | H79: 82.015 | I79: 91.418 | J79: 101.860 | K79: 113.113
A80: 2. | B80: Отгружено товаров собственного производства, выполнено работ и услуг собственными силами (нарастающим итогом с начала года, на основании данных раздела 2 формы стат. отчет. № П-1 и (или) раздела 8, стр. 801 формы стат. отчет. № 1-предприятие) | D80: млн. руб. | E80: =E83 -> 55.887 | F80: =F83+F84 -> 77.798 | G80: =G83+G84 -> 48.337 | H80: 82.015 | I80: 91.418 | J80: 101.860 | K80: 113.113
A81: 2.1. | B81: в том числе по видам деятельности (№ П-1, раздел 2): | D81: млн. руб.
B82: код по ОКВЭД2 | C82: наименование вида деятельности
B83: 10.41.2 | C83: - Производство неочищенных растительных масел | D83: млн. руб. | E83: 55.887 | F83: 58.681 | G83: 35.949 | H83: 62.898 | I83: =H83*I92/100*I94/100 -> 70.109 | J83: =I83*J92/100*J94/100 -> 78.117 | K83: =J83*K92/100*K94/100 -> 86.747
B84: 10.41.2 | C84: - Производство жмыха подсолнечного | D84: млн. руб. | E84: 18.207 | F84: 19.117 | G84: 12.388 | H84: 19.117 | I84: =H84*I92/100*I94/100 -> 21.309 | J84: =I84*J92/100*J94/100 -> 23.743 | K84: =J84*K92/100*K94/100 -> 26.366
C85: - | D85: млн. руб.
C86: - | D86: млн. руб.
C87: - | D87: млн. руб.
C88: - | D88: млн. руб.
C89: - | D89: млн. руб.
C90: - | D90: млн. руб.
A91: 3. | B91: Отгружено товаров собственного производства, выполнено работ и услуг собственными силами по промышленным видам экономической деятельности (из стр.2.1 настоящей формы - сумма строк с кодами от 05 до 39 включительно) - всего | D91: млн. руб. | E91: 74.094 | F91: =F83+F84 -> 77.798 | G91: =G83+G84 -> 48.337 | H91: 82.015 | I91: 91.418 | J91: 101.860 | K91: 113.113
A92: 4. | B92: Темп роста (снижения) промышленного производства в сопоставимых ценах (ценах 2010г.) | D92: в % к предыдущему году | E92: 25.3 | F92: ='расчет темпов по предприятиям'!L64 -> 116.9 | G92: ='расчет темпов по предприятиям'!L84 -> 109 | H92: ='расчет темпов по предприятиям'!F74 -> 105.05 | I92: ='расчет темпов по предприятиям'!I74 -> 106.9 | J92: ='расчет темпов по предприятиям'!L74 -> 107.1 | K92: ='расчет темпов по предприятиям'!F84 -> 106.7
A93: 5. | B93: Индекс цен производителей промышленных товаров (фактически сложившийся на предприятии) | D93: в % к предыдущему году | E93: 98.9 | F93: =F79/E79*100/F92*100 -> 89.8 | G93: =G79/43.7*100/G92*100 -> 101.7 | H93: =H79/F79*100/H92*100 -> 100.4 | I93: х | J93: х | K93: х
A94: 6. | B94: Индекс-дефлятор оптовых цен | D94: в % к предыдущему году | E94: х | F94: х | G94: х | H94: х | I94: 104.3 | J94: 104 | K94: 104.1
A95: 7. | B95: Среднесписочная численность работающих | D95: человек | E95: 110 | F95: 110 | G95: 110 | H95: 110 | I95: 110 | J95: 110 | K95: 110
A96: 8. | B96: Среднемесячная заработная плата | D96: руб. | E96: 10122 | F96: 16425 | G96: 17317 | H96: 17317 | I96: 18702 | J96: 20198 | K96: 21814
A97: 9. | B97: Расходы на производство и продажу продукции (товаров, работ и услуг) - итого*) (№ 1-предприятие, раздел 6, стр.659) | D97: млн. руб. | E97: =E99+E100+E101+E102+E103+E104 -> 63.297 | F97: =F99+F100+F101+F102+F103 -> 74.949 | G97: =G99+G100+G101+G102+G103 -> 46.853 | H97: 78.585 | I97: 83.198 | J97: 89.117 | K97: 99.195
B98: в том числе
A99: 9.1. | B99: Материальные затраты | D99: млн.руб. | E99: 41.22 | F99: 42.024 | G99: 29.584 | H99: 44.125 | I99: 46.331 | J99: 49.648 | K99: 56.918
A100: 9.2. | B100: Расходы на оплату труда | D100: млн. руб. | E100: =E96*E95*12/1000000 -> 13.361 | F100: =F96*F95*12/1000000 -> 21.681 | G100: =G96*G95*6/1000000 -> 11.429 | H100: =H96*H95*12/1000000 -> 22.858 | I100: 24.687 | J100: 26.661 | K100: 28.794
A101: 8.3. | B101: Страховые взносы в Пенсионный фонд, ФСС, ФФОМС | D101: млн. руб. | E101: 4.035 | F101: =F100*30.2% -> 6.548 | G101: =G100*30.2% -> 3.452 | H101: 6.903 | I101: 7.455 | J101: 8.052 | K101: 8.696
A102: 8.4. | B102: Амортизация (основные средства и нематериальные активы) | D102: млн. руб. | E102: 3.2 | F102: 3.2 | G102: 1.64 | H102: 3.2 | I102: 3.2 | J102: 3.2 | K102: 3.2
A103: 8.5. | B103: Налоги и сборы, включаемые в себестоимость продукции (работ, услуг) | D103: млн. руб. | E103: 1.481 | F103: 1.496 | G103: 0.748 | H103: 1.498 | I103: 1.525 | J103: 1.556 | K103: 1.587
A104: 8.6. | B104: Прочие расходы, связанные с производством и продажей продукции (товаров, работ, услуг) | D104: млн. руб.
A105: 9. | B105: Прибыль (+), убыток (-) до налогообложения | D105: млн. руб. | E105: ='расчет прибыли по предприятиям'!B32 -> 7.757 | F105: ='расчет прибыли по предприятиям'!C32 -> -0.328 | G105: ='расчет прибыли по предприятиям'!D32 -> -0.176 | H105: ='расчет прибыли по предприятиям'!E32 -> 0.094 | I105: ='расчет прибыли по предприятиям'!F32 -> 4.717 | J105: ='расчет прибыли по предприятиям'!G32 -> 9.047 | K105: ='расчет прибыли по предприятиям'!H32 -> 10.018
A106: 10. | B106: Наличие основных фондов на конец года по полной учетной стоимости (ф.№11стат.отчетн., стр. 01, гр.9) | D106: млн. руб. | E106: 83 | F106: 73.89 | G106: 73.89 | H106: 73.89 | I106: 73.89 | J106: 73.89 | K106: 73.89
A107: 11. | B107: Наличие основных фондов на конец года по остаточной балансовой стоимости (ф.№11стат.отчетн., стр. 01, гр.10) | D107: млн. руб. | E107: 39 | F107: 31.501 | G107: 30.577 | H107: 30.577 | I107: 30.577 | J107: 30.577 | K107: 30.577
A108: 12. | B108: Среднегодовая остаточная стоимость основных средств ( за минусом необлагаемого налогом имущества) - налоговая база (форма по КНД 1152026, раздел 2,строка 190) | D108: млн. руб. | E108: 32.031 | F108: 32.023 | G108: 30.601 | H108: 30.945 | I108: 30.945 | J108: 30.945 | K108: 30.945
A109: 13. | B109: Коэффициент загрузки (использования) производственной мощности (по основному виду выпускаемой продукции) | D109: % | E109: 50 | F109: 50 | G109: 50 | H109: 50 | I109: 50 | J109: 50 | K109: 50
A110: 14. | B110: Производство основных видов промышленной продукции**) (форма стат. отч. №1-натура-БМ) | D110: в соответств. натур.ед. измер.
B111: - Производство масла растительного | D111: тн. | E111: 2133 | F111: ='расчет темпов по предприятиям'!J59 -> 2494 | G111: ='расчет темпов по предприятиям'!J79 -> 1170 | H111: ='расчет темпов по предприятиям'!D69 -> 2620 | I111: ='расчет темпов по предприятиям'!G69 -> 2800 | J111: ='расчет темпов по предприятиям'!J69 -> 3000 | K111: ='расчет темпов по предприятиям'!D79 -> 3200
B112: - Жмых подсолнечный | D112: тн. | E112: 784 | F112: ='расчет темпов по предприятиям'!J60 -> 922 | G112: ='расчет темпов по предприятиям'!J80 -> 460 | H112: ='расчет темпов по предприятиям'!D70 -> 969 | I112: ='расчет темпов по предприятиям'!G70 -> 1035 | J112: ='расчет темпов по предприятиям'!J70 -> 1100 | K112: ='расчет темпов по предприятиям'!D80 -> 1184
A114: 15. | B114: Инвестиции в основной капитал, всего | D114: млн. руб. | E114: =E116+E117 -> 0 | F114: =F116+F117 -> 0 | G114: 0 | H114: 0 | I114: 0 | J114: 0 | K114: 0
B115: в том числе по источникам:
B116: - собственные средства | D116: млн. руб.
B117: - привлеченные средства | D117: млн. руб. | E117: =E119+E120+E121 -> 0 | F117: =F119+F120+F121 -> 0 | G117: 0 | H117: 0 | I117: 0 | J117: 0 | K117: 0
B118: из них
B119: кредиты банков | D119: млн. руб.
B120: федеральный бюджет | D120: млн. руб.
B121: бюджет области | D121: млн. руб.
B122: - прочие | D122: млн. руб.
A126: ПРОГНОЗ
A127: социально-экономического развития на 2018 год и на период до 2020 года
A128: ОАО "Богучармолоко"
A129: (организационно-правовая форма, наименование предприятия)
A130: Структура уставного капитала предприятия:*) | D130: Вид деятельности по ОКВЭД2 (основной):
A131: доля государственной (федеральной) собственности _______%, | D131: 1.Код вида деятельности: 10.51.1
A132: доля государственной (областной) собственности ________%, | D132: 2.Наименование вида деятельности: Производство питьевого молока и питьевых сливок
A133: доля муниципальной собственности ______%,
A134: другие собственники 100%
A136: № п/п | B136: Показатели | D136: Единица измерения | E136: отчет | G136: 2017г. | I136: прогноз
E137: 2015г. | F137: 2016г. | G137: январь-июнь, отчет | H137: январь-декабрь, оценка | I137: 2018г. | J137: 2019г. | K137: 2020г.
A139: 1. | B139: Оборот организации (без НДС, акцизов и других аналогичных обязательных платежей) - всего (№ 1-предприятие, раздел 5, стр.501 или раздел 8, стр. 801) | D139: млн. руб. | E139: 73.877 | F139: =F143+F144+F145+F146+F147 -> 86.46 | G139: =G143+G144+G145+G146+G147 -> 43.616 | H139: 87.086 | I139: 93.035 | J139: 98.623 | K139: 105.507
A140: 2. | B140: Отгружено товаров собственного производства, выполнено работ и услуг собственными силами (нарастающим итогом с начала года, на основании данных раздела 2 формы стат. отчет. № П-1 и (или) раздела 8, стр. 801 формы стат. отчет. № 1-предприятие) | D140: млн. руб. | E140: =E143+E145+E146 -> 55.446 | F140: =F143+F145+F146 -> 61.869 | G140: 31.335 | H140: 62.524 | I140: 68.452 | J140: 74.019 | K140: 80.879
A141: 2.1. | B141: в том числе по видам деятельности (№ П-1, раздел 2): | D141: млн. руб.
B142: код по ОКВЭД2 | C142: наименование вида деятельности
B143: 10.51.1 | C143: - Производство питьевого молока и питьевых сливок | D143: млн. руб. | E143: 54.834 | F143: 61.2475 | G143: 30.949 | H143: 61.898 | I143: =H143*I150/100*I152/100 -> 67.767 | J143: =I143*J150/100*J152/100 -> 73.278 | K143: =J143*K150/100*K152/100 -> 80.069
B144: 56.29.2 | C144: - Деятельность столовых и буфетов при предприятиях и учреждениях | D144: млн. руб. | E144: 0.194 | F144: 0.2561 | G144: 0.113 | H144: 0.226 | I144: =H144*I150/100*I152/100 -> 0.247 | J144: =I144*J150/100*J152/100 -> 0.268 | K144: =J144*K150/100*K152/100 -> 0.292
B145: 37.00 | C145: - Сбор и обработка сточных вод | D145: млн. руб. | E145: 0.049 | F145: 0.0416 | G145: 0.022 | H145: 0.044 | I145: =H145*I150/100*I152/100 -> 0.048 | J145: =I145*J150/100*J152/100 -> 0.052 | K145: =J145*K150/100*K152/100 -> 0.057
B146: 35.30.14 | C146: - Производство пара и горячей воды (тепловой энергии) котельными | D146: млн. руб. | E146: 0.563 | F146: 0.5799 | G146: 0.365 | H146: 0.582 | I146: =H146*I150/100*I152/100 -> 0.637 | J146: =I146*J150/100*J152/100 -> 0.689 | K146: =J146*K150/100*K152/100 -> 0.753
B147: 77.39.29 | C147: - Аренда и лизинг прочих машин и оборудования научного и промышленного назначения | D147: млн. руб. | E147: 18.238 | F147: 24.336 | G147: 12.168 | H147: 24.336 | I147: 24.336 | J147: 24.336 | K147: 24.336
C148: - | D148: млн. руб.
A149: 3. | B149: Отгружено товаров собственного производства, выполнено работ и услуг собственными силами по промышленным видам экономической деятельности (из стр.2.1 настоящей формы - сумма строк с кодами от 05 до 39 включительно) - всего | D149: млн. руб. | E149: =E143+E145+E146 -> 55.446 | F149: =F143+F145+F146 -> 61.869 | G149: 31.335 | H149: 62.524 | I149: 68.452 | J149: 74.019 | K149: 80.879
A150: 4. | B150: Темп роста (снижения) промышленного производства в сопоставимых ценах (ценах 2010г.) | D150: в % к предыдущему году | E150: 65.9 | F150: ='расчет темпов по предприятиям'!L99 -> 149.2 | G150: ='расчет темпов по предприятиям'!L119 -> 96.1 | H150: ='расчет темпов по предприятиям'!F109 -> 101.0 | I150: ='расчет темпов по предприятиям'!I109 -> 105.0 | J150: ='расчет темпов по предприятиям'!L109 -> 104.0 | K150: ='расчет темпов по предприятиям'!F119 -> 105.0
A151: 5. | B151: Индекс цен производителей промышленных товаров (фактически сложившийся на предприятии) | D151: в % к предыдущему году | E151: 127 | F151: =F139/E139*100/F150*100 -> 78.4 | G151: =G139/44.5949*100/G150*100 -> 101.7 | H151: =H139/F139*100/H150*100 -> 100 | I151: х | J151: х | K151: х
A152: 6. | B152: Индекс-дефлятор оптовых цен | D152: в % к предыдущему году | E152: х | F152: х | G152: х | H152: х | I152: 104.3 | J152: 104 | K152: 104.1
A153: 7. | B153: Среднесписочная численность работающих | D153: человек | E153: 110 | F153: 110 | G153: 112 | H153: 112 | I153: 113 | J153: 115 | K153: 115
A154: 8. | B154: Среднемесячная заработная плата | D154: руб. | E154: 19751 | F154: 21015 | G154: 22486 | H154: 22486 | I154: 24285 | J154: 26228 | K154: 28326
A155: 9. | B155: Расходы на производство и продажу продукции (товаров, работ и услуг) - итого*) (№ 1-предприятие, раздел 6, стр.659) | D155: млн. руб. | E155: =E157+E158+E159+E160+E161+E162 -> 47.515 | F155: =F157+F158+F159+F160+F161+F162 -> 51.536 | G155: =G157+G158+G159+G160+G161+G162 -> 27.414 | H155: 54.748 | I155: 59.170 | J155: 63.534 | K155: 67.735
B156: в том числе
A157: 9.1. | B157: Материальные затраты | D157: млн.руб. | E157: 6.7 | F157: 7.839 | G157: 3.950 | H157: 7.900 | I157: 8.295 | J157: 8.709 | K157: 9.140
A158: 9.2. | B158: Расходы на оплату труда | D158: млн. руб. | E158: 26.071 | F158: =F154*F153*12/1000000 -> 27.740 | G158: =G154*G153*6/1000000 -> 15.111 | H158: =H154*H153*12/1000000 -> 30.221 | I158: 32.930 | J158: 36.195 | K158: 39.090
A159: 8.3. | B159: Страховые взносы в Пенсионный фонд, ФСС, ФФОМС | D159: млн. руб. | E159: 7.874 | F159: =F158*30.2% -> 8.377 | G159: =G158*30.2% -> 4.563 | H159: 9.127 | I159: 9.945 | J159: 10.931 | K159: 11.805
A160: 8.4. | B160: Амортизация (основные средства и нематериальные активы) | D160: млн. руб. | E160: 2.90 | F160: 2.9 | G160: 1.5 | H160: 2.8 | I160: 2.8 | J160: 2.8 | K160: 2.5
A161: 8.5. | B161: Налоги и сборы, включаемые в себестоимость продукции (работ, услуг) | D161: млн. руб. | E161: 0.07 | F161: 0.7 | G161: 0.3 | H161: 0.7 | I161: 0.8 | J161: 0.8 | K161: 0.9
A162: 8.6. | B162: Прочие расходы, связанные с производством и продажей продукции (товаров, работ, услуг) | D162: млн. руб. | E162: 3.900 | F162: 3.980 | G162: 1.990 | H162: 4.000 | I162: 4.400 | J162: 4.100 | K162: 4.300
A163: 9. | B163: Прибыль (+), убыток (-) до налогообложения | D163: млн. руб. | E163: -0.600 | F163: ='расчет прибыли по предприятиям'!C48 -> 0.700 | G163: ='расчет прибыли по предприятиям'!D48 -> 3.100 | H163: ='расчет прибыли по предприятиям'!E48 -> 6.100 | I163: ='расчет прибыли по предприятиям'!F48 -> 8.675 | J163: ='расчет прибыли по предприятиям'!G48 -> 9.239 | K163: ='расчет прибыли по предприятиям'!H48 -> 10.591
A164: 10. | B164: Наличие основных фондов на конец года по полной учетной стоимости (ф.№11стат.отчетн., стр. 01, гр.9) | D164: млн. руб. | E164: 123.6 | F164: 123.6 | G164: 123.6 | H164: 123.6 | I164: 123.6 | J164: 123.6 | K164: 123.6
A165: 11. | B165: Наличие основных фондов на конец года по остаточной балансовой стоимости (ф.№11стат.отчетн., стр. 01, гр.10) | D165: млн. руб. | E165: 57.7 | F165: 56.3 | G165: 57.7 | H165: 57.7 | I165: 58.1 | J165: 59.1 | K165: 59.1
A166: 12. | B166: Среднегодовая остаточная стоимость основных средств ( за минусом необлагаемого налогом имущества) - налоговая база (форма по КНД 1152026, раздел 2,строка 190) | D166: млн. руб. | E166: 53.6 | F166: 53.6 | G166: 53.6 | H166: 53.6 | I166: 53.6 | J166: 53.6 | K166: 53.6
A167: 13. | B167: Коэффициент загрузки (использования) производственной мощности (по основному виду выпускаемой продукции) | D167: % | E167: 40 | F167: 40 | G167: 40 | H167: 40 | I167: 40 | J167: 40 | K167: 40
A168: 14. | B168: Производство основных видов промышленной продукции**) (форма стат. отч. №1-натура-БМ) | D168: в соответств. натур.ед. измер.
B169: - Переработано молока | D169: тн. | E169: 13297 | F169: 19905.5 | G169: ='расчет темпов по предприятиям'!J114 -> 10347.8 | H169: ='расчет темпов по предприятиям'!D104 -> 20105 | I169: ='расчет темпов по предприятиям'!G104 -> 21110 | J169: ='расчет темпов по предприятиям'!J104 -> 21954 | K169: ='расчет темпов по предприятиям'!D114 -> 23050
B170: - Производство пара и горячей воды (тепловой энергии) котельными | D170: тыс. Г. кал. | E170: 0.6 | F170: 0.6 | G170: 0.6 | H170: 0.6 | I170: 0.6 | J170: 0.6 | K170: 0.6
B171: -
B172: -
B173: -
B174: -
A175: 15. | B175: Инвестиции в основной капитал, всего | D175: млн. руб. | E175: =E177+E178 -> 0 | F175: =F177+F178 -> 14.206 | G175: 4.131 | H175: 4.131 | I175: 4.317 | J175: 4.506 | K175: 4.692
B176: в том числе по источникам:
B177: - собственные средства | D177: млн. руб. | F177: 14.206 | G177: 4.131 | H177: 4.131 | I177: 4.317 | J177: 4.506 | K177: 4.692
B178: - привлеченные средства | D178: млн. руб. | E178: =E180+E181+E182 -> 0 | F178: =F180+F181+F182 -> 0 | G178: 0 | H178: 0 | I178: 0 | J178: 0 | K178: 0
B179: из них
B180: кредиты банков | D180: млн. руб.
B181: федеральный бюджет | D181: млн. руб.
B182: бюджет области | D182: млн. руб.
B183: - прочие | D183: млн. руб.
A186: ПРОГНОЗ
A187: социально-экономического развития на 2018 год и на период до 2020 года
A188: ООО "Богучархлеб"
A189: (организационно-правовая форма, наименование предприятия)
A190: Структура уставного капитала предприятия:*) | D190: Вид деятельности по ОКВЭД2 (основной):
A191: доля государственной (федеральной) собственности _______%, | D191: 1.Код вида деятельности 10.8
A192: доля государственной (областной) собственности ________%, | D192: 2.Наименование вида деятельности: Производство прочих пищевых продуктов
A193: доля муниципальной собственности ______%,
A194: другие собственники 100%
A196: № п/п | B196: Показатели | D196: Единица измерения | E196: отчет | G196: 2017г. | I196: прогноз
E197: 2015г. | F197: 2016г. | G197: январь-июнь, отчет | H197: январь-декабрь, оценка | I197: 2018г. | J197: 2019г. | K197: 2020г.
A199: 1. | B199: Оборот организации (без НДС, акцизов и других аналогичных обязательных платежей) - всего (№ 1-предприятие, раздел 5, стр.501 или раздел 8, стр. 801) | D199: млн. руб. | E199: 27.327 | F199: =F203+F204 -> 23.144 | G199: =G203+G204 -> 9.702 | H199: 23.600 | I199: 25.307 | J199: 27.278 | K199: 28.896
A200: 2. | B200: Отгружено товаров собственного производства, выполнено работ и услуг собственными силами (нарастающим итогом с начала года, на основании данных раздела 2 формы стат. отчет. № П-1 и (или) раздела 8, стр. 801 формы стат. отчет. № 1-предприятие) | D200: млн. руб. | E200: =E203+E204 -> 27.327 | F200: =F203+F204 -> 23.144 | G200: =G203+G204 -> 9.702 | H200: 23.600 | I200: 25.307 | J200: 27.278 | K200: 28.896
A201: 2.1. | B201: в том числе по видам деятельности (№ П-1, раздел 2): | D201: млн. руб.
B202: код по ОКВЭД2 | C202: наименование вида деятельности
B203: 10..8 | C203: - Производство хлеба и хлебобулочных изделий | D203: млн. руб. | E203: 23.975 | F203: 20.524 | G203: 8.552 | H203: 20.500 | I203: =H203*I209/100*I211/100 -> 21.982 | J203: =I203*J209/100*J211/100 -> 23.695 | K203: =J203*K209/100*K211/100 -> 25.100
B204: 10..8 | C204: - Производство кондитерских изделий | D204: млн. руб. | E204: 3.352 | F204: 2.620 | G204: 1.151 | H204: 3.100 | I204: =H204*I209/100*I211/100 -> 3.324 | J204: =I204*J209/100*J211/100 -> 3.583 | K204: =J204*K209/100*K211/100 -> 3.796
C205: - | D205: млн. руб.
C206: - | D206: млн. руб.
C207: - | D207: млн. руб.
A208: 3. | B208: Отгружено товаров собственного производства, выполнено работ и услуг собственными силами по промышленным видам экономической деятельности (из стр.2.1 настоящей формы - сумма строк с кодами от 05 до 39 включительно) - всего | D208: млн. руб. | E208: =E203+E204 -> 27.327 | F208: =F203+F204 -> 23.144 | G208: =G203+G204 -> 9.702 | H208: 23.600 | I208: 25.307 | J208: 27.278 | K208: 28.896
A209: 4. | B209: Темп роста (снижения) промышленного производства в сопоставимых ценах (ценах 2010г.) | D209: в % к предыдущему году | E209: 101.2 | F209: ='расчет темпов по предприятиям'!L134 -> 76.1 | G209: ='расчет темпов по предприятиям'!L154 -> 75.4 | H209: ='расчет темпов по предприятиям'!F144 -> 101.9 | I209: ='расчет темпов по предприятиям'!I144 -> 102.8 | J209: ='расчет темпов по предприятиям'!L144 -> 103.6 | K209: ='расчет темпов по предприятиям'!F154 -> 101.8
A210: 5. | B210: Индекс цен производителей промышленных товаров (фактически сложившийся на предприятии) | D210: в % к предыдущему году | E210: 105.8 | F210: =F199/E199*100/F209*100 -> 111.3 | G210: =G199/11.622*100/G209*100 -> 110.8 | H210: =H199/F199*100/H209*100 -> 100.1 | I210: х | J210: х | K210: х
A211: 6. | B211: Индекс-дефлятор оптовых цен | D211: в % к предыдущему году | E211: х | F211: х | G211: х | H211: х | I211: 104.3 | J211: 104.0 | K211: 104.1
A212: 7. | B212: Среднесписочная численность работающих | D212: человек | E212: 44 | F212: 44 | G212: 38 | H212: 38 | I212: 38 | J212: 38 | K212: 38
A213: 8. | B213: Среднемесячная заработная плата | D213: руб. | E213: 12115 | F213: 12890 | G213: 13500 | H213: 13790 | I213: 14896 | J213: 16088 | K213: 17375
A214: 9. | B214: Расходы на производство и продажу продукции (товаров, работ и услуг) - итого*) (№ 1-предприятие, раздел 6, стр.659) | D214: млн. руб. | E214: =E216+E217+E218+E219+E220+++++E221 -> 26.943 | F214: =F216+F217+F218+F219+F220+++++F221 -> 25.167 | G214: 10.264 | H214: 20.146 | I214: 21.051 | J214: 21.703 | K214: 22.508
... 259 more rows

Sheet расчет прибыли по предприятиям
G1: Таблица № 1а
A2: ПРОГНОЗ*)
A3: прибыли на 2018 год и на период до 2020 года
A4: ООО "Агро-Спутник"
A5: (организационно-правовая форма, наименование предприятия)
H6: (млн.руб.)
A7: Показатели | B7: отчет | D7: 2017г. | F7: прогноз
B8: 2015г. | C8: 2016г. | D8: январь-июнь, отчет | E8: январь-декабрь, оценка | F8: 2018г. | G8: 2019г. | H8: 2020г.
A10: 1. Выручка (за минусом НДС, акцизов) | B10: 468.26 | C10: ='форма для предприятий '!F15 -> 544.273 | D10: ='форма для предприятий '!G15 -> 340.148 | E10: ='форма для предприятий '!H15 -> 635.078 | F10: ='форма для предприятий '!I15 -> 675.662 | G10: ='форма для предприятий '!J15 -> 723.247 | H10: ='форма для предприятий '!K15 -> 786.037
A11: 2. Себестоимость продаж | B11: 302.974 | C11: 338.600 | D11: 223.700 | E11: 450.000 | F11: 450.000 | G11: 455.000 | H11: 460.000
A12: 3. Валовая прибыль (убыток) | B12: 165.287 | C12: =C10-C11 -> 205.673 | D12: =D10-D11 -> 116.448 | E12: 185.078 | F12: 225.662 | G12: 305.000 | H12: 305.000
A13: 4. Коммерческие расходы | B13: 18.5 | C13: 33.900 | D13: 9.300 | E13: 17.000 | F13: 18.000 | G13: 19.000 | H13: 19.000
A14: 5. Управленческие расходы | B14: 12.8 | C14: 12.500 | D14: 7.000 | E14: 13.000 | F14: 14.000 | G14: 15.000 | H14: 15.000
A15: 6. Прибыль (убыток) от продаж | B15: 133.987 | C15: =C12-C13-C14 -> 159.273 | D15: 127.700 | E15: =E12-E13-E14 -> 155.078 | F15: 193.662 | G15: 271.000 | H15: 271.000
A16: 7. Прибыль (убыток) до налогообложения | B16: 109.9 | C16: 148.300 | D16: 94.600 | E16: 125.613 | F16: 181.335 | G16: 196.332 | H16: 200.000
A18: ПРОГНОЗ*)
A19: прибыли на 2018 год и на период до 2020 года
A20: ООО "Богучарский ЗРМ"
A21: (организационно-правовая форма, наименование предприятия)
H22: (млн.руб.)
A23: Показатели | B23: отчет | D23: 2017г. | F23: прогноз
B24: 2015г. | C24: 2016г. | D24: январь-июнь, отчет | E24: январь-декабрь, оценка | F24: 20178г. | G24: 2019г. | H24: 2020г.
A26: 1. Выручка (за минусом НДС, акцизов) | B26: ='форма для предприятий '!E79 -> 74.094 | C26: ='форма для предприятий '!F79 -> 77.798 | D26: ='форма для предприятий '!G79 -> 48.337 | E26: ='форма для предприятий '!H79 -> 82.015 | F26: ='форма для предприятий '!I79 -> 91.418 | G26: ='форма для предприятий '!J79 -> 101.860 | H26: ='форма для предприятий '!K79 -> 113.113
A27: 2. Себестоимость продаж | B27: ='форма для предприятий '!E97 -> 63.297 | C27: ='форма для предприятий '!F97 -> 74.949 | D27: ='форма для предприятий '!G97 -> 46.853 | E27: ='форма для предприятий '!H97 -> 78.585 | F27: ='форма для предприятий '!I97 -> 83.198 | G27: ='форма для предприятий '!J97 -> 89.117 | H27: ='форма для предприятий '!K97 -> 99.195
A28: 3. Валовая прибыль (убыток) | B28: =B26-B27 -> 10.797 | C28: =C26-C27 -> 2.849 | D28: =D26-D27 -> 1.484 | E28: 3.430 | F28: 8.220 | G28: 12.743 | H28: 13.917
A29: 4. Коммерческие расходы | B29: 1.52 | C29: 1.596 | D29: 0.83 | E29: 1.675 | F29: 1.759 | G29: 1.865 | H29: 1.977
A30: 5. Управленческие расходы | B30: 1.52 | C30: 1.581 | D30: 0.83 | E30: 1.661 | F30: 1.744 | G30: 1.831 | H30: 1.922
A31: 6. Прибыль (убыток) от продаж | B31: =B28-B29-B30 -> 7.757 | C31: =C28-C29-C30 -> -0.328 | D31: =D28-D29-D30 -> -0.176 | E31: 0.094 | F31: 4.717 | G31: 9.047 | H31: 10.018
A32: 7. Прибыль (убыток) до налогообложения | B32: =B31 -> 7.757 | C32: =C31 -> -0.328 | D32: =D31 -> -0.176 | E32: 0.094 | F32: 4.717 | G32: 9.047 | H32: 10.018
A34: ПРОГНОЗ*)
A35: прибыли на 2018 год и на период до 2020 года
A36: ОАО "Богучармолоко"
A37: (организационно-правовая форма, наименование предприятия)
H38: (млн.руб.)
A39: Показатели | B39: отчет | D39: 2017г. | F39: прогноз
B40: 2015г. | C40: 2016г. | D40: январь-июнь, отчет | E40: январь-декабрь, оценка | F40: 2018г. | G40: 2019г. | H40: 2020г.
A42: 1. Выручка (за минусом НДС, акцизов) | B42: 73.877 | C42: ='форма для предприятий '!F139 -> 86.461 | D42: ='форма для предприятий '!G139 -> 43.616 | E42: ='форма для предприятий '!H139 -> 87.086 | F42: ='форма для предприятий '!I139 -> 93.035 | G42: ='форма для предприятий '!J139 -> 98.623 | H42: ='форма для предприятий '!K139 -> 105.507
A43: 2. Себестоимость продаж | B43: 47.515 | C43: ='форма для предприятий '!F155 -> 51.536 | D43: ='форма для предприятий '!G155 -> 27.414 | E43: ='форма для предприятий '!H155 -> 54.748 | F43: ='форма для предприятий '!I155 -> 59.170 | G43: ='форма для предприятий '!J155 -> 63.534 | H43: ='форма для предприятий '!K155 -> 67.735
A44: 3. Валовая прибыль (убыток) | B44: 26.362 | C44: =C42-C43 -> 34.925 | D44: =D42-D43 -> 16.202 | E44: 32.338 | F44: 33.865 | G44: 35.088 | H44: 37.772
A45: 4. Коммерческие расходы | B45: 0 | C45: 0 | D45: 0 | E45: 0 | F45: 0 | G45: 0 | H45: 0
A46: 5. Управленческие расходы | B46: 19.96 | C46: 17.500 | D46: 8.900 | E46: 16.500 | F46: 17.800 | G46: 17.978 | H46: 18.158
A47: 6. Прибыль (убыток) от продаж | B47: 6.4 | C47: =C44-C46 -> 17.425 | D47: =D44-D46 -> 7.302 | E47: 15.838 | F47: 16.065 | G47: 17.110 | H47: 19.614
A48: 7. Прибыль (убыток) до налогообложения | B48: -0.6 | C48: 0.700 | D48: 3.100 | E48: 6.100 | F48: 8.675 | G48: 9.239 | H48: 10.591
A50: ПРОГНОЗ*)
A51: прибыли на 2018 год и на период до 2020 года
A52: ООО "Богучархлеб"
A53: (организационно-правовая форма, наименование предприятия)
H54: (млн.руб.)
A55: Показатели | B55: отчет | D55: 2017г. | F55: прогноз
B56: 2015г. | C56: 2016г. | D56: январь-июнь, отчет | E56: январь-декабрь, оценка | F56: 2018г. | G56: 2019г. | H56: 2020г.
A58: 1. Выручка (за минусом НДС, акцизов) | B58: 27.327 | C58: ='форма для предприятий '!F199 -> 23.144 | D58: ='форма для предприятий '!G199 -> 9.702 | E58: ='форма для предприятий '!H199 -> 23.600 | F58: ='форма для предприятий '!I199 -> 25.307 | G58: ='форма для предприятий '!J199 -> 27.278 | H58: ='форма для предприятий '!K199 -> 28.896
A59: 2. Себестоимость продаж | B59: 26.943 | C59: ='форма для предприятий '!F214 -> 25.167 | D59: ='форма для предприятий '!G214 -> 10.264 | E59: ='форма для предприятий '!H214 -> 20.146 | F59: ='форма для предприятий '!I214 -> 21.051 | G59: ='форма для предприятий '!J214 -> 21.703 | H59: ='форма для предприятий '!K214 -> 22.508
A60: 3. Валовая прибыль (убыток) | B60: 0.384 | C60: =C58-C59 -> -2.023 | D60: =D58-D59 -> -0.561 | E60: 3.454 | F60: 4.256 | G60: 5.575 | H60: 6.388
A61: 4. Коммерческие расходы | B61: 0.000 | C61: -0.128 | D61: 0.070 | E61: 0.144 | F61: 0.145 | G61: 0.147 | H61: 0.149
A62: 5. Управленческие расходы | B62: 0.000 | C62: 0.000 | D62: 0.000 | E62: 0.000 | F62: 0.000 | G62: 0.000 | H62: 0.000
A63: 6. Прибыль (убыток) от продаж | B63: 0.384 | C63: -0.322 | D63: 0.159 | E63: 0.318 | F63: 0.328 | G63: 0.334 | H63: 0.341
A64: 7. Прибыль (убыток) до налогообложения | B64: 0.384 | C64: =C60-C61-C62-C63 -> -1.573 | D64: =D60-D61-D62-D63 -> -0.790 | E64: 2.992 | F64: 3.783 | G64: 5.094 | H64: 5.898
A66: ПРОГНОЗ*)
A67: прибыли на 2018 год и на период до 2020 года
A68: ООО "Строймаш"
A69: (организационно-правовая форма, наименование предприятия)
H70: (млн.руб.)
A71: Показатели | B71: отчет | D71: 2017г. | F71: прогноз
B72: 2015г. | C72: 2016г. | D72: январь-июнь, отчет | E72: январь-декабрь, оценка | F72: 2018г. | G72: 2019г. | H72: 2020г.
A74: 1. Выручка (за минусом НДС, акцизов) | B74: ='форма для предприятий '!E258 -> 15.021 | C74: ='форма для предприятий '!F258 -> 16.6633 | D74: ='форма для предприятий '!G258 -> 10.292 | E74: ='форма для предприятий '!H258 -> 20.584 | F74: ='форма для предприятий '!I258 -> 22.367055 | G74: ='форма для предприятий '!J258 -> 24.7759365 | H74: ='форма для предприятий '!K258 -> 27.73248707
A75: 2. Себестоимость продаж | B75: ='форма для предприятий '!E276 -> 15.021 | C75: ='форма для предприятий '!F276 -> 16.663 | D75: ='форма для предприятий '!G276 -> 10.292 | E75: ='форма для предприятий '!H276 -> 20.555 | F75: ='форма для предприятий '!I276 -> 21.236 | G75: ='форма для предприятий '!J276 -> 21.015 | H75: ='форма для предприятий '!K276 -> 22.401
A76: 3. Валовая прибыль (убыток) | B76: =B74-B75 -> 0 | C76: =C74-C75 -> 0.000 | D76: 0.000 | E76: 0.029 | F76: 1.131 | G76: 3.761 | H76: 5.332
A77: 4. Коммерческие расходы | B77: 0 | C77: 0 | D77: 0 | E77: 0 | F77: 0 | G77: 0 | H77: 0
A78: 5. Управленческие расходы | B78: 0 | C78: 0 | D78: 0 | E78: 0 | F78: 0 | G78: 0 | H78: 0
A79: 6. Прибыль (убыток) от продаж | B79: 0 | C79: 0 | D79: 0 | E79: 0 | F79: 0 | G79: 0 | H79: 0
A80: 7. Прибыль (убыток) до налогообложения | B80: 0 | C80: =C76 -> 0.000 | D80: =D76 -> 0.000 | E80: 0.029 | F80: 1.131 | G80: 3.761 | H80: 5.332
A82: ПРОГНОЗ*)
A83: прибыли на 2018 год и на период до 2020 года
A84: ООО "Тихий Дон"
A85: (организационно-правовая форма, наименование предприятия)
H86: (млн.руб.)
A87: Показатели | B87: отчет | D87: 2017г. | F87: прогноз
B88: 2015г. | C88: 2016г. | D88: январь-июнь, отчет | E88: январь-декабрь, оценка | F88: 2018г. | G88: 2019г. | H88: 2020г.
A90: 1. Выручка (за минусом НДС, акцизов) | B90: 37.856 | C90: ='форма для предприятий '!F317 -> 73.256 | D90: ='форма для предприятий '!G317 -> 72.425 | E90: ='форма для предприятий '!H317 -> 144.850 | F90: ='форма для предприятий '!I317 -> 163.412 | G90: ='форма для предприятий '!J317 -> 185.755 | H90: ='форма для предприятий '!K317 -> 209.888
A91: 2. Себестоимость продаж | B91: 62.56 | C91: ='форма для предприятий '!F335 -> 79.249 | D91: ='форма для предприятий '!G335 -> 78.992 | E91: ='форма для предприятий '!H335 -> 146.340 | F91: ='форма для предприятий '!I335 -> 150.924 | G91: ='форма для предприятий '!J335 -> 154.597 | H91: ='форма для предприятий '!K335 -> 158.410
A92: 3. Валовая прибыль (убыток) | B92: -24.704 | C92: =C90-C91 -> -5.993 | D92: =D90-D91 -> -6.567 | E92: -1.490 | F92: 12.489 | G92: 31.158 | H92: 51.478
A93: 4. Коммерческие расходы | B93: 0
A94: 5. Управленческие расходы | B94: 0
A95: 6. Прибыль (убыток) от продаж | B95: -24.704 | C95: =C92 -> -5.993 | D95: =D92 -> -6.567 | E95: -1.490 | F95: 12.489 | G95: 31.158 | H95: 51.478
A96: 7. Прибыль (убыток) до налогообложения | B96: -24.704 | C96: =C92 -> -5.993 | D96: =D92 -> -6.567 | E96: -1.490 | F96: 12.489 | G96: 31.158 | H96: 51.478
A98: ПРОГНОЗ*)
A99: прибыли на 2018 год и на период до 2020 года
A100: ООО "Строительные материалы - Тихий Дон"
A101: (организационно-правовая форма, наименование предприятия)
H102: (млн.руб.)
A103: Показатели | B103: отчет | D103: 2017г. | F103: прогноз
B104: 2015г. | C104: 2016г. | D104: январь-июнь, отчет | E104: январь-декабрь, оценка | F104: 2018г. | G104: 2019г. | H104: 2020г.
A106: 1. Выручка (за минусом НДС, акцизов) | B106: 110.447 | C106: ='форма для предприятий '!F379 -> 218.900 | D106: ='форма для предприятий '!G379 -> 140.200 | E106: ='форма для предприятий '!H379 -> 300.400 | F106: ='форма для предприятий '!I379 -> 312.416 | G106: ='форма для предприятий '!J379 -> 324.912 | H106: ='форма для предприятий '!K379 -> 337.909
A107: 2. Себестоимость продаж | B107: 144.247 | C107: ='форма для предприятий '!F397 -> 251.653 | D107: ='форма для предприятий '!G397 -> 156.317 | E107: ='форма для предприятий '!H397 -> 286.509 | F107: ='форма для предприятий '!I397 -> 294.639 | G107: ='форма для предприятий '!J397 -> 306.479 | H107: ='форма для предприятий '!K397 -> 318.606
A108: 3. Валовая прибыль (убыток) | B108: -33.8 | C108: =C106-C107 -> -32.75 | D108: =D106-D107 -> -16.12 | E108: 13.89 | F108: 17.78 | G108: 18.43 | H108: 19.30
A109: 4. Коммерческие расходы | B109: 11.2 | C109: 11.2 | D109: 6.5 | E109: 12 | F109: 12.5 | G109: 13 | H109: 13.5
A110: 5. Управленческие расходы | B110: 0 | C110: 0 | D110: 0 | E110: 0 | F110: 0 | G110: 0 | H110: 0
A111: 6. Прибыль (убыток) от продаж | B111: -33.8 | C111: -43.950 | D111: -28.74 | E111: -2.11 | F111: 5.28 | G111: 5.43 | H111: 5.8
A112: 7. Прибыль (убыток) до налогообложения | B112: -33.8 | C112: =C111 -> -43.950 | D112: -28.74 | E112: -2.11 | F112: 5.28 | G112: 5.43 | H112: 5.8
A114: ПРОГНОЗ*)
A115: прибыли на 2018 год и на период до 2020 года
A116: МКУП "Богучаркоммунсервис"
A117: (организационно-правовая форма, наименование предприятия)
H118: (млн.руб.)
A119: Показатели | B119: отчет | D119: 2017г. | F119: прогноз
B120: 2015г. | C120: 2016г. | D120: январь-июнь, отчет | E120: январь-декабрь, оценка | F120: 2018г. | G120: 2019г. | H120: 2020г.
A122: 1. Выручка (за минусом НДС, акцизов) | B122: 64.799 | C122: ='форма для предприятий '!F441 -> 64.496 | D122: ='форма для предприятий '!G441 -> 36.144 | E122: ='форма для предприятий '!H441 -> 70.070 | F122: ='форма для предприятий '!I441 -> 74.119 | G122: ='форма для предприятий '!J441 -> 78.626 | H122: ='форма для предприятий '!K441 -> 84.212
A123: 2. Себестоимость продаж | B123: 65.882 | C123: ='форма для предприятий '!F459 -> 70.155 | D123: ='форма для предприятий '!G459 -> 39.229 | E123: ='форма для предприятий '!H459 -> 69.370 | F123: ='форма для предприятий '!I459 -> 73.935 | G123: ='форма для предприятий '!J459 -> 77.651 | H123: ='форма для предприятий '!K459 -> 83.103
A124: 3. Валовая прибыль (убыток) | B124: -1.083 | C124: =C122-C123 -> -5.659 | D124: =D122-D123 -> -3.085 | E124: 0.700 | F124: 0.184 | G124: 0.975 | H124: 1.110
A125: 4. Коммерческие расходы | B125: 0
A126: 5. Управленческие расходы | B126: 0
A127: 6. Прибыль (убыток) от продаж | B127: 0
A128: 7. Прибыль (убыток) до налогообложения | B128: -1.083 | C128: =C124 -> -5.659 | D128: =D124 -> -3.085 | E128: 0.700 | F128: 0.184 | G128: 0.975 | H128: 1.110
A131: Заместитель главы администрации Богучарского муниципального района ______________________________ | B131: А.Ю.Кожанов
A133: Исполнитель: специалист 1 категории экономического отдела | C133: З.П.Колесникова
A134: Телефон: 8(47366) 2-29-96
A135: *) Источник информации: Отчет о финансовых результатах (форма по ОКУД 0710002)

Sheet расчет темпов по предприятиям
J1: Таблица № 1б
A2: Расчет темпов роста (снижения) промышленного производства в сопоставимых ценах (ценах 2010 года)
A3: по "товарам-представителям ООО "Агро-Спутник" в 2018 году и на период до 2020 года
C4: (наименование предприятия, организации)
A6: Наименование видов выпускаемой продукции ("товары-представители") | B6: Код вида деятельности (по ОКВЭД) | C6: Единица измер. | D6: 2014 год | G6: 2015 год | J6: 2016 год
D7: количество*) | E7: базовая среднегодовая цена (2010г.), руб. | F7: сумма, млн.руб. | G7: количество*) | H7: базовая среднегодовая цена (2010г.), руб. | I7: сумма, млн.руб. | J7: количество*) | K7: базовая среднегодовая цена (2010г.), руб. | L7: сумма, млн.руб.
A8: А | B8: Б | C8: В | D8: 1 | E8: 2 | F8: 3=1х2 | G8: 4 | H8: 5 | I8: 6=4х5 | J8: 7 | K8: 8 | L8: 9=7х8
A9: Семечки жареные | B9: 10.89.9 | C9: тн. | D9: 2265.7 | E9: 88900.0 | F9: =D9*E9/1000000 -> 201.421 | G9: 3131.2 | H9: 88900.0 | I9: =G9*H9/1000000 -> 278.4 | J9: 2672.9 | K9: 88900.0 | L9: =J9*K9/1000000 -> 237.621
A10: Арахис | B10: 10.89.9 | C10: тн. | D10: 6.5 | E10: 106550.0 | F10: =D10*E10/1000000 -> 0.693 | G10: 13.0 | H10: 106550.0 | I10: =G10*H10/1000000 -> 1.4 | J10: 13.0 | K10: 106550.0 | L10: =J10*K10/1000000 -> 1.385
A11: Фисташки | B11: 10.89.9 | C11: тн. | D11: 3.6 | E11: 391000.0 | F11: 1.408 | G11: 4.1 | H11: 391000.0 | I11: 1.6 | J11: 1.5 | K11: 391000.0 | L11: 0.587
A12: Ядро | B12: 10.89.9 | C12: тн. | D12: 172.5 | E12: 33290.0 | F12: 5.743 | G12: 484.4 | H12: 33290.0 | I12: 16.1 | J12: 1144.4 | K12: 33290.0 | L12: 38.097
A13: Семечки тыквенные | B13: 10.89.9 | C13: тн. | D13: 10.4 | E13: 151270.0 | F13: 1.573 | G13: 9.9 | H13: 151270.0 | I13: 1.5 | J13: 6.8 | K13: 151270.0 | L13: 1.029
A14: Халва | B14: 10.89.9 | C14: тн. | D14: 2.2 | E14: 32184.0 | F14: 0.071 | G14: 33.4 | H14: 32184.0 | I14: 1.1 | J14: 107.7 | K14: 32184.0 | L14: 3.466
A15: Семечки с арахисом | B15: 10.89.9 | C15: тн. | D15: 0.0 | E15: 89800.0 | F15: 0.000 | G15: 0.0 | H15: 89800.0 | I15: 0.0 | J15: 3.3 | K15: 89800.0 | L15: 0.296
A16: Крем-халва | B16: 10.89.9 | C16: тн. | D16: 0.0 | E16: 56350.0 | F16: 0.0 | G16: 0.0 | H16: 56350.0 | I16: 0.0 | J16: 0.0 | K16: 56350.0 | L16: 0.000
A17: Подсолнечник мелочь | B17: 10.89.9 | C17: тн. | D17: 277.1 | E17: 6800.0 | F17: 1.9 | G17: 0.0
A18: Всего по товарам-представителям | D18: х | E18: х | F18: =SUM(F9:F17) -> 212.792 | G18: х | H18: х | I18: =SUM(I9:I16) -> 300.1 | J18: х | K18: х | L18: =SUM(L9:L16) -> 282.5
A19: Темп роста (снижения) промышленного производства в сопоставимых ценах, в % к предыдущему году | D19: х | E19: х | F19: х | G19: х | H19: х | I19: =I18/F18*100 -> 141.01 | J19: х | K19: х | L19: =L18/I18*100 -> 94.1
J20: Продолжение таблицы № 1б
A21: Наименование видов выпускаемой продукции ("товары-представители") | B21: Код вида деятельности (по ОКВЭД) | C21: Единица измер. | D21: 2017 год | G21: 2018 год | J21: 2019 год
D22: количество*) | E22: базовая среднегодовая цена (2010г.), руб. | F22: сумма, млн.руб. | G22: количество*) | H22: базовая среднегодовая цена (2010г.), руб. | I22: сумма, млн.руб. | J22: количество*) | K22: базовая среднегодовая цена (2010г.), руб. | L22: сумма, млн.руб.
A23: А | B23: Б | C23: В | D23: 10 | E23: 11 | F23: 12=10х11 | G23: 13 | H23: 14 | I23: 15=13х14 | J23: 16 | K23: 17 | L23: 18=16х17
A24: Семечки жареные | B24: 10.89.9 | C24: тн. | D24: 2730.0 | E24: 88900.0 | F24: =D24*E24/1000000 -> 242.7 | G24: 2780 | H24: 88900.0 | I24: =G24*H24/1000000 -> 247.1 | J24: 2860.0 | K24: 88900.0 | L24: =J24*K24/1000000 -> 254.3
A25: Арахис | B25: 10.89.9 | C25: тн. | D25: 9.0 | E25: 106550.0 | F25: =D25*E25/1000000 -> 1.0 | G25: 9.2 | H25: 106550.0 | I25: =G25*H25/1000000 -> 1.0 | J25: 9.5 | K25: 106550.0 | L25: =J25*K25/1000000 -> 1.0
A26: Фисташки | B26: 10.89.9 | C26: тн. | D26: 1.0 | E26: 391000.0 | F26: 0.4 | G26: 1.6 | H26: 391000.0 | I26: 0.6 | J26: 1.7 | K26: 391000.0 | L26: 0.7
A27: Ядро | B27: 10.89.9 | C27: тн. | D27: 1155.0 | E27: 33290.0 | F27: 38.4 | G27: 1180.0 | H27: 33290.0 | I27: 39.3 | J27: 1215.0 | K27: 33290.0 | L27: 40.4
A28: Семечки тыквенные | B28: 10.89.9 | C28: тн. | D28: 6.9 | E28: 151270.0 | F28: 1.0 | G28: 7.0 | H28: 151270.0 | I28: 1.1 | J28: 7.2 | K28: 151270.0 | L28: 1.1
A29: Халва | B29: 10.89.9 | C29: тн. | D29: 90.0 | E29: 32184.0 | F29: 2.9 | G29: 92.0 | H29: 32184.0 | I29: 3.0 | J29: 95.0 | K29: 32184.0 | L29: 3.1
A30: Семечки с арахисом | B30: 10.89.9 | C30: тн. | D30: 16.0 | E30: 89800.0 | F30: 1.4 | G30: 16.3 | H30: 89800.0 | I30: 1.5 | J30: 17.0 | K30: 89800.0 | L30: 1.5
A31: Крем-халва | B31: 10.89.9 | C31: тн. | D31: 290.0 | E31: 56350.0 | F31: 16.3 | G31: 300.0 | H31: 56350.0 | I31: 16.9 | J31: 310.0 | K31: 56350.0 | L31: 17.5
A32: Всего по товарам-представителям | D32: х | E32: х | F32: =SUM(F24:F31) -> 304.2 | G32: х | H32: х | I32: =SUM(I24:I31) -> 310.4 | J32: х | K32: х | L32: =SUM(L24:L31) -> 319.5
A33: Темп роста (снижения) промышленного производства в сопоставимых ценах, в % к предыдущему году | D33: х | E33: х | F33: =F32/L18*100 -> 107.7 | G33: х | H33: х | I33: =I32/F32*100 -> 102.0 | J33: х | K33: х | L33: =L32/I32*100 -> 103
J34: Продолжение таблицы № 1б
A35: Наименование видов выпускаемой продукции ("товары-представители") | B35: Код вида деятельности (по ОКВЭД) | C35: Единица измер. | D35: 2020 год | G35: январь-июнь 2016 года | J35: январь-июнь 2017 года
D36: количество*) | E36: базовая среднегодовая цена (2010г.), руб. | F36: сумма, млн.руб. | G36: количество*) | H36: базовая среднегодовая цена (2010г.), руб. | I36: сумма, млн.руб. | J36: количество*) | K36: базовая среднегодовая цена (2010г.), руб. | L36: сумма, млн.руб.
A37: А | B37: Б | C37: В | D37: 19 | E37: 20 | F37: 21=19х20 | G37: 22 | H37: 23 | I37: 24=22х23 | J37: 25 | K37: 26 | L37: 27=25х26
A38: Семечки жареные | B38: 10.89.9 | C38: тн. | D38: 2980.0 | E38: 88900.0 | F38: =D38*E38/1000000 -> 264.9 | G38: 1349.8 | H38: 88900.0 | I38: =G38*H38/1000000 -> 120.0 | J38: 1533.4 | K38: 88900.0 | L38: =J38*K38/1000000 -> 136.319
A39: Арахис | B39: 10.89.9 | C39: тн. | D39: 9.9 | E39: 106550.0 | F39: =D39*E39/1000000 -> 1.1 | G39: 8.3 | H39: 106550.0 | I39: =G39*H39/1000000 -> 0.9 | J39: 4.5 | K39: 106550.0 | L39: =J39*K39/1000000 -> 0.479
A40: Фисташки | B40: 10.89.9 | C40: тн. | D40: 1.8 | E40: 391000.0 | F40: 0.7 | G40: 1.1 | H40: 391000.0 | I40: 0.4 | J40: 0.5 | K40: 391000.0 | L40: 0.196
A41: Ядро | B41: 10.89.9 | C41: тн. | D41: 1280.0 | E41: 33290.0 | F41: 42.6 | G41: 545.6 | H41: 33290.0 | I41: 18.2 | J41: 694.7 | K41: 33290.0 | L41: 23.127
A42: Семечки тыквенные | B42: 10.89.9 | C42: тн. | D42: 7.5 | E42: 151270.0 | F42: 1.1 | G42: 4.3 | H42: 151270.0 | I42: 0.7 | J42: 2.6 | K42: 151270.0 | L42: 0.393
A43: Халва | B43: 10.89.9 | C43: тн. | D43: 100.0 | E43: 32184.0 | F43: 3.2 | G43: 61.8 | H43: 32184.0 | I43: 2.0 | J43: 44.6 | K43: 32184.0 | L43: 1.435
A44: Семечки с арахисом | B44: 10.89.9 | C44: тн. | D44: 18.0 | E44: 89800.0 | F44: 1.6 | G44: 0.0 | H44: 89800.0 | I44: 0.0 | J44: 8.0 | K44: 89800.0 | L44: 0.718
A45: Крем-халва | B45: 10.89.9 | C45: тн. | D45: 325.0 | E45: 56350.0 | F45: 18.3 | G45: 0.0 | H45: 56350.0 | I45: 0.0 | J45: 145.6 | K45: 56350.0 | L45: 8.205
A46: Всего по товарам-представителям | D46: х | E46: х | F46: =SUM(F38:F45) -> 333.6 | G46: х | H46: х | I46: =SUM(I38:I45) -> 142.114 | J46: х | K46: х | L46: =SUM(L38:L45) -> 170.9
A47: Темп роста (снижения) промышленного производства в сопоставимых ценах, в % к предыдущему году | D47: х | E47: х | F47: =F46/L32*100 -> 104.4 | G47: х | H47: х | I47: 95.5 | J47: х | K47: х | L47: =L46/I46*100 -> 120.2
A48: *) Примечания: | B48: 1. К "товарам-представителям" относятся основные промышленные товары, работы, услуги (разделы В+С+D+Е по ОКВЭД2), по которым предприятия отчитываются в формах статотчетности в натуральных единицах измерения.
B49: 2.В расчет принимается весь объем произведенной продукции (в соответствующих натуральных единицах измерения), включая объем продукции, произведенный из давальческого сырья.
A50: ОБРАЩАЕМ ВАШЕ ВНИМАНИЕ: базовым годом по ценам является 2010 год (в соответствии с указаниями РОССТАТА)
A52: Расчет темпов роста (снижения) промышленного производства в сопоставимых ценах (ценах 2010 года)
A53: по "товарам-представителям" ООО "Богучарский ЗРМ" в 2018 году и на период до 2020 года
C54: (наименование предприятия, организации)
A56: Наименование видов выпускаемой продукции ("товары-представители") | B56: Код вида деятельности (по ОКВЭД) | C56: Единица измер. | D56: 2014 год | G56: 2015 год | J56: 2016 год
D57: количество*) | E57: базовая среднегодовая цена (2010г.), руб. | F57: сумма, млн.руб. | G57: количество*) | H57: базовая среднегодовая цена (2010г.), руб. | I57: сумма, млн.руб. | J57: количество*) | K57: базовая среднегодовая цена (2010г.), руб. | L57: сумма, млн.руб.
A58: А | B58: Б | C58: В | D58: 1 | E58: 2 | F58: 3=1х2 | G58: 4 | H58: 5 | I58: 6=4х5 | J58: 7 | K58: 8 | L58: 9=7х8
A59: Производство масла растительного | B59: 10.41.24 | C59: тн. | D59: 8889.0 | E59: 40320.0 | F59: =D59*E59/1000000 -> 358.404 | G59: 2133.0 | H59: 40320.0 | I59: =G59*H59/1000000 -> 86.0 | J59: 2494.0 | K59: 40320.0 | L59: =J59*K59/1000000 -> 100.6
A60: Жмых подсолнечный | B60: 10.41.24 | C60: тн. | D60: 0.0 | E60: 784.0 | F60: =D60*E60/1000000 -> 0.000 | G60: 784.0 | H60: 784.0 | I60: =G60*H60/1000000 -> 0.6 | J60: 922.0 | K60: 784.0 | L60: =J60*K60/1000000 -> 0.7
D61: 0.0 | L61: =J61*K61/1000000 -> 0.0
A63: Всего по товарам-представителям | D63: х | E63: х | F63: =SUM(F59:F62) -> 358.404 | G63: х | H63: х | I63: =SUM(I59:I62) -> 86.6 | J63: х | K63: х | L63: =SUM(L59:L62) -> 101.3
A64: Темп роста (снижения) промышленного производства в сопоставимых ценах, в % к предыдущему году | D64: х | E64: х | F64: х | G64: х | H64: х | J64: х | K64: х | L64: =L63/I63*100 -> 116.9
J65: Продолжение таблицы № 1б
A66: Наименование видов выпускаемой продукции ("товары-представители") | B66: Код вида деятельности (по ОКВЭД) | C66: Единица измер. | D66: 2017 год | G66: 2018 год | J66: 2019 год
D67: количество*) | E67: базовая среднегодовая цена (2010г.), руб. | F67: сумма, млн.руб. | G67: количество*) | H67: базовая среднегодовая цена (2010г.), руб. | I67: сумма, млн.руб. | J67: количество*) | K67: базовая среднегодовая цена (2010г.), руб. | L67: сумма, млн.руб.
A68: А | B68: Б | C68: В | D68: 10 | E68: 11 | F68: 12=10х11 | G68: 13 | H68: 14 | I68: 15=13х14 | J68: 16 | K68: 17 | L68: 18=16х17
A69: Производство масла растительного | B69: 10.41.24 | C69: тн. | D69: 2620.0 | E69: 40320.0 | F69: =D69*E69/1000000 -> 105.6 | G69: 2800.0 | H69: 40320.0 | I69: =G69*H69/1000000 -> 112.9 | J69: 3000.0 | K69: 40320.0 | L69: =J69*K69/1000000 -> 121.0
A70: Жмых подсолнечный | B70: 10.41.24 | C70: тн. | D70: 969.0 | E70: 784.0 | F70: =D70*E70/1000000 -> 0.8 | G70: 1035.0 | H70: 784.0 | I70: =G70*H70/1000000 -> 0.8 | J70: 1100.0 | K70: 784.0 | L70: =J70*K70/1000000 -> 0.9
F71: =D71*E71/1000000 -> 0.0 | L71: =J71*K71/1000000 -> 0.0
A73: Всего по товарам-представителям | D73: х | E73: х | F73: =SUM(F69:F72) -> 106.4 | G73: х | H73: х | I73: =SUM(I69:I72) -> 113.7 | J73: х | K73: х | L73: =SUM(L69:L72) -> 121.8
A74: Темп роста (снижения) промышленного производства в сопоставимых ценах, в % к предыдущему году | D74: х | E74: х | F74: =F73/L63*100 -> 105.1 | G74: х | H74: х | I74: =I73/F73*100 -> 106.9 | J74: х | K74: х | L74: =L73/I73*100 -> 107.1
J75: Продолжение таблицы № 1б
A76: Наименование видов выпускаемой продукции ("товары-представители") | B76: Код вида деятельности (по ОКВЭД) | C76: Единица измер. | D76: 2020 год | G76: январь-июнь 2016 года | J76: январь-июнь 2017 года
D77: количество*) | E77: базовая среднегодовая цена (2010г.), руб. | F77: сумма, млн.руб. | G77: количество*) | H77: базовая среднегодовая цена (2010г.), руб. | I77: сумма, млн.руб. | J77: количество*) | K77: базовая среднегодовая цена (2010г.), руб. | L77: сумма, млн.руб.
A78: А | B78: Б | C78: В | D78: 19 | E78: 20 | F78: 21=19х20 | G78: 22 | H78: 23 | I78: 24=22х23 | J78: 1170 | K78: 26 | L78: 27=25х26
A79: Производство масла растительного | B79: 10.41.24 | C79: тн. | D79: 3200.0 | E79: 40320.0 | F79: =D79*E79/1000000 -> 129.0 | G79: 1066.0 | H79: 40320.0 | I79: =G79*H79/1000000 -> 43.0 | J79: 1170.0 | K79: 40320.0 | L79: =J79*K79/1000000 -> 47.2
A80: Жмых подсолнечный | B80: 10.41.24 | C80: тн. | D80: 1184.0 | E80: 784.0 | F80: =D80*E80/1000000 -> 0.9 | G80: 906.0 | H80: 784.0 | I80: =G80*H80/1000000 -> 0.7 | J80: 460.0 | K80: 784.0 | L80: =J80*K80/1000000 -> 0.4
C81: тн. | D81: =J71*104% -> 0.0 | F81: =D81*E81/1000000 -> 0.0 | G81: 0.0 | I81: =G81*H81/1000000 -> 0.0 | L81: =J81*K81/1000000 -> 0.000
E82: 0.0
A83: Всего по товарам-представителям | D83: х | E83: х | F83: =SUM(F79:F82) -> 130.0 | G83: х | H83: х | I83: =SUM(I79:I82) -> 43.7 | J83: х | K83: х | L83: =SUM(L79:L82) -> 47.535
A84: Темп роста (снижения) промышленного производства в сопоставимых ценах, в % к предыдущему году | D84: х | E84: х | F84: =F83/L73*100 -> 106.7 | G84: х | H84: х | I84: 0 | J84: х | K84: х | L84: =L83/I83*100 -> 109
A87: Расчет темпов роста (снижения) промышленного производства в сопоставимых ценах (ценах 2010 года)
A88: по "товарам-представителям" ОАО "Богучармолоко" в 2018 году и на период до 2020 года
C89: (наименование предприятия, организации)
A91: Наименование видов выпускаемой продукции ("товары-представители") | B91: Код вида деятельности (по ОКВЭД) | C91: Единица измер. | D91: 2014 год | G91: 2015 год | J91: 2016 год
D92: количество*) | E92: базовая среднегодовая цена (2010г.), руб. | F92: сумма, млн.руб. | G92: количество*) | H92: базовая среднегодовая цена (2010г.), руб. | I92: сумма, млн.руб. | J92: количество*) | K92: базовая среднегодовая цена (2010г.), руб. | L92: сумма, млн.руб.
A93: А | B93: Б | C93: В | D93: 1 | E93: 2 | F93: 3=1х2 | G93: 4 | H93: 5 | I93: 6=4х5 | J93: 7 | K93: 8 | L93: 9=7х8
A94: Переработано молока | B94: 10.51.1 | C94: тн | D94: 20235.0 | E94: 3860.5 | F94: =D94*E94/1000000 -> 78.1 | G94: 13297.0 | H94: 3860.5 | I94: =G94*H94/1000000 -> 51.3 | J94: 19905.5 | K94: 3860.5 | L94: =J94*K94/1000000 -> 76.8
A95: Производство пара и горячей воды (тепловой энергии) котельными | B95: 35.30.14 | C95: тыс. Г.кал. | D95: 0.6 | E95: 816.7 | F95: =D95*E95/1000 -> 0.5 | G95: 0.6 | H95: 816.7 | I95: =G95*H95/1000 -> 0.490 | J95: 0.6 | K95: 816.7 | L95: =J95*K95/1000 -> 0.5
A98: Всего по товарам-представителям | D98: х | E98: х | F98: =SUM(F94:F97) -> 78.607 | G98: х | H98: х | I98: =SUM(I94:I97) -> 51.823 | J98: х | K98: х | L98: =SUM(L94:L97) -> 77.3
A99: Темп роста (снижения) промышленного производства в сопоставимых ценах, в % к предыдущему году | D99: х | E99: х | F99: х | G99: х | H99: х | I99: =I98/F98*100 -> 65.9 | J99: х | K99: х | L99: =L98/I98*100 -> 149
J100: Продолжение таблицы № 1б
A101: Наименование видов выпускаемой продукции ("товары-представители") | B101: Код вида деятельности (по ОКВЭД) | C101: Единица измер. | D101: 2017 год | G101: 2018 год | J101: 2019 год
D102: количество*) | E102: базовая среднегодовая цена (2010г.), руб. | F102: сумма, млн.руб. | G102: количество*) | H102: базовая среднегодовая цена (2010г.), руб. | I102: сумма, млн.руб. | J102: количество*) | K102: базовая среднегодовая цена (2010г.), руб. | L102: сумма, млн.руб.
A103: А | B103: Б | C103: В | D103: 10 | E103: 11 | F103: 12=10х11 | G103: 13 | H103: 14 | I103: 15=13х14 | J103: 16 | K103: 17 | L103: 18=16х17
A104: Переработано молока | B104: 10.51.1 | C104: тн | D104: 20105.0 | E104: 3860.5 | F104: =D104*E104/1000000 -> 77.6 | G104: 21110.0 | H104: 3860.5 | I104: =G104*H104/1000000 -> 81.5 | J104: 21954.0 | K104: 3860.5 | L104: =J104*K104/1000000 -> 84.8
A105: Производство пара и горячей воды (тепловой энергии) котельными | B105: 35.30.14 | C105: тыс. Г.кал. | D105: 0.6 | E105: 816.7 | F105: =D105*E105/1000 -> 0.5 | G105: 0.6 | H105: 816.7 | I105: =G105*H105/1000 -> 0.5 | J105: 0.6 | K105: 816.7 | L105: =J105*K105/1000 -> 0.5
A108: Всего по товарам-представителям | D108: х | E108: х | F108: =SUM(F104:F107) -> 78.1 | G108: х | H108: х | I108: =SUM(I104:I107) -> 82.0 | J108: х | K108: х | L108: =SUM(L104:L107) -> 85.2
A109: Темп роста (снижения) промышленного производства в сопоставимых ценах, в % к предыдущему году | D109: х | E109: х | F109: =F108/L98*100 -> 101.0 | G109: х | H109: х | I109: =I108/F108*100 -> 105.0 | J109: х | K109: х | L109: =L108/I108*100 -> 104.0
J110: Продолжение таблицы № 1б
A111: Наименование видов выпускаемой продукции ("товары-представители") | B111: Код вида деятельности (по ОКВЭД) | C111: Единица измер. | D111: 2020 год | G111: январь-июнь 2016 года | J111: январь-июнь 2017 года
D112: количество*) | E112: базовая среднегодовая цена (2010г.), руб. | F112: сумма, млн.руб. | G112: количество*) | H112: базовая среднегодовая цена (2010г.), руб. | I112: сумма, млн.руб. | J112: количество*) | K112: базовая среднегодовая цена (2010г.), руб. | L112: сумма, млн.руб.
A113: А | B113: Б | C113: В | D113: 19 | E113: 20 | F113: 21=19х20 | G113: 22 | H113: 23 | I113: 24=22х23 | J113: 25 | K113: 26 | L113: 27=25х26
A114: Переработано молока | B114: 10.51.1 | C114: тн | D114: 23050.0 | E114: 3860.5 | F114: =D114*E114/1000000 -> 89.0 | G114: 10770.0 | H114: 3860.5 | I114: =G114*H114/1000000 -> 41.6 | J114: 10347.8 | K114: 3860.5 | L114: =J114*K114/1000000 -> 39.9
A115: Производство пара и горячей воды (тепловой энергии) котельными | B115: 35.30.14 | C115: тыс. Г.кал. | D115: 0.6 | E115: 816.7 | F115: =D115*E115/1000 -> 0.5 | G115: 0.6 | H115: 816.7 | I115: =G115*H115/1000 -> 0.5 | J115: 0.6 | K115: 816.7 | L115: =J115*K115/1000 -> 0.5
A118: Всего по товарам-представителям | D118: х | E118: х | F118: =SUM(F114:F117) -> 89.5 | G118: х | H118: х | I118: =SUM(I114:I117) -> 42.068 | J118: х | K118: х | L118: =SUM(L114:L117) -> 40.4
A119: Темп роста (снижения) промышленного производства в сопоставимых ценах, в % к предыдущему году | D119: х | E119: х | F119: =F118/L108*100 -> 105.0 | G119: х | H119: х | I119: 123 | J119: х | K119: х | L119: =L118/I118*100 -> 96.13
A122: Расчет темпов роста (снижения) промышленного производства в сопоставимых ценах (ценах 2010 года)
A123: по "товарам-представителям" ООО "Богучархлеб" в 2018 году и на период до 2020 года
C124: (наименование предприятия, организации)
A126: Наименование видов выпускаемой продукции ("товары-представители") | B126: Код вида деятельности (по ОКВЭД) | C126: Единица измер. | D126: 2014 год | G126: 2015 год | J126: 2016 год
D127: количество*) | E127: базовая среднегодовая цена (2010г.), руб. | F127: сумма, млн.руб. | G127: количество*) | H127: базовая среднегодовая цена (2010г.), руб. | I127: сумма, млн.руб. | J127: количество*) | K127: базовая среднегодовая цена (2010г.), руб. | L127: сумма, млн.руб.
A128: А | B128: Б | C128: В | D128: 1 | E128: 2 | F128: 3=1х2 | G128: 4 | H128: 5 | I128: 6=4х5 | J128: 7 | K128: 8 | L128: 9=7х8
A129: производство хлебобулочных изделий | B129: 10..8 | C129: тн | D129: 544.9 | E129: 23.050 | F129: =D129*E129/1000 -> 12.560 | G129: 476.6 | H129: 23.050 | I129: =G129*H129/1000 -> 11.0 | J129: 376.0 | K129: 23.050 | L129: =J129*K129/1000 -> 8.7
A130: производство кндитерских изделий | B130: 10..8 | C130: тн | D130: 16.0 | E130: 104.600 | F130: =D130*E130/1000 -> 1.674 | G130: 32.7 | H130: 104.600 | I130: =G130*H130/1000 -> 3.4 | J130: 21.9 | K130: 104.600 | L130: =J130*K130/1000 -> 2.3
I131: 0.0
I132: 0.0
A133: Всего по товарам-представителям | D133: х | E133: х | F133: =SUM(F129:F132) -> 14.234 | G133: х | H133: х | I133: =SUM(I129:I132) -> 14.406 | J133: х | K133: х | L133: =SUM(L129:L132) -> 11.0
A134: Темп роста (снижения) промышленного производства в сопоставимых ценах, в % к предыдущему году | D134: х | E134: х | F134: х | G134: х | H134: х | I134: =I133/F133*100 -> 101.2 | J134: х | K134: х | L134: =L133/I133*100 -> 76.1
J135: Продолжение таблицы № 1б
A136: Наименование видов выпускаемой продукции ("товары-представители") | B136: Код вида деятельности (по ОКВЭД) | C136: Единица измер. | D136: 2017 год | G136: 2018 год | J136: 2019 год
D137: количество*) | E137: базовая среднегодовая цена (2010г.), руб. | F137: сумма, млн.руб. | G137: количество*) | H137: базовая среднегодовая цена (2010г.), руб. | I137: сумма, млн.руб. | J137: количество*) | K137: базовая среднегодовая цена (2010г.), руб. | L137: сумма, млн.руб.
A138: А | B138: Б | C138: В | D138: 10 | E138: 11 | F138: 12=10х11 | G138: 13 | H138: 14 | I138: 15=13х14 | J138: 16 | K138: 17 | L138: 18=16х17
A139: производство хлебобулочных изделий | B139: 10..8 | C139: тн | D139: 380.0 | E139: 23.050 | F139: =D139*E139/1000 -> 8.8 | G139: 380.0 | H139: 23.050 | I139: =G139*H139/1000 -> 8.8 | J139: 380.0 | K139: 23.050 | L139: =J139*K139/1000 -> 8.8
A140: производство кндитерских изделий | B140: 10..8 | C140: тн | D140: 23.0 | E140: 104.600 | F140: =D140*E140/1000 -> 2.4 | G140: 26.0 | H140: 104.600 | I140: =G140*H140/1000 -> 2.7 | J140: 30.0 | K140: 104.600 | L140: =J140*K140/1000 -> 3.1
A143: Всего по товарам-представителям | D143: х | E143: х | F143: =SUM(F139:F142) -> 11.2 | G143: х | H143: х | I143: =SUM(I139:I142) -> 11.5 | J143: х | K143: х | L143: =SUM(L139:L142) -> 11.9
A144: Темп роста (снижения) промышленного производства в сопоставимых ценах, в % к предыдущему году | D144: х | E144: х | F144: =F143/L133*100 -> 101.9 | G144: х | H144: х | I144: =I143/F143*100 -> 103 | J144: х | K144: х | L144: =L143/I143*100 -> 104
J145: Продолжение таблицы № 1б
A146: Наименование видов выпускаемой продукции ("товары-представители") | B146: Код вида деятельности (по ОКВЭД) | C146: Единица измер. | D146: 2020 год | G146: январь-июнь 2016 года | J146: январь-июнь 2017 года
D147: количество*) | E147: базовая среднегодовая цена (2010г.), руб. | F147: сумма, млн.руб. | G147: количество*) | H147: базовая среднегодовая цена (2010г.), руб. | I147: сумма, млн.руб. | J147: количество*) | K147: базовая среднегодовая цена (2010г.), руб. | L147: сумма, млн.руб.
A148: А | B148: Б | C148: В | D148: 19 | E148: 20 | F148: 21=19х20 | G148: 22 | H148: 23 | I148: 24=22х23 | J148: 25 | K148: 26 | L148: 27=25х26
A149: производство хлебобулочных изделий | B149: 10..8 | C149: тн | D149: 380.0 | E149: 23.050 | F149: =D149*E149/1000 -> 8.8 | G149: 197.1 | H149: 23.050 | I149: =G149*H149/1000 -> 4.543 | J149: 149.2 | K149: 23.050 | L149: =J149*K149/1000 -> 3.439
A150: производство кндитерских изделий | B150: 10..8 | C150: тн | D150: 32.0 | E150: 104.600 | F150: =D150*E150/1000 -> 3.3 | G150: 12.1 | H150: 104.600 | I150: =G150*H150/1000 -> 1.266 | J150: 8.98 | K150: 104.600 | L150: =J150*K150/1000 -> 0.939
A153: Всего по товарам-представителям | D153: х | E153: х | F153: =SUM(F149:F152) -> 12.1 | G153: х | H153: х | I153: =SUM(I149:I152) -> 5.809 | J153: х | K153: х | L153: =SUM(L149:L152) -> 4.378
A154: Темп роста (снижения) промышленного производства в сопоставимых ценах, в % к предыдущему году | D154: х | E154: х | F154: =F153/L143*100 -> 101.8 | G154: х | H154: х | I154: 80.4 | J154: х | K154: х | L154: =L153/I153*100 -> 75.4
A157: Расчет темпов роста (снижения) промышленного производства в сопоставимых ценах (ценах 2010 года)
A158: по "товарам-представителям" ООО "Строймаш" в 2018 году и на период до 2020 года
C159: (наименование предприятия, организации)
A161: Наименование видов выпускаемой продукции ("товары-представители") | B161: Код вида деятельности (по ОКВЭД) | C161: Единица измер. | D161: 2014 год | G161: 2015 год | J161: 2016 год
D162: количество*) | E162: базовая среднегодовая цена (2010г.), руб. | F162: сумма, млн.руб. | G162: количество*) | H162: базовая среднегодовая цена (2010г.), руб. | I162: сумма, млн.руб. | J162: количество*) | K162: базовая среднегодовая цена (2010г.), руб. | L162: сумма, млн.руб.
A163: А | B163: Б | C163: В | D163: 1 | E163: 2 | F163: 3=1х2 | G163: 4 | H163: 5 | I163: 6=4х5 | J163: 7 | K163: 8 | L163: 9=7х8
A164: Производство машин и оборудования общего назначения | B164: 28..1 | C164: млн. руб. | F164: 7.866 | G164: 15.021 | I164: =G164/1.046/1.031/1.256/1.023/0.942/1.02/1.115/1.054 -> 9.600 | J164: 16.7 | L164: =J164/1.046/1.031/1.256/1.023/0.942/1.02/1.115/1.054 -> 10.6
A168: Всего по товарам-представителям | D168: х | E168: х | F168: =SUM(F164:F167) -> 7.866 | G168: х | H168: х | I168: =SUM(I164:I167) -> 9.600 | J168: х | K168: х | L168: =SUM(L164:L167) -> 10.6
A169: Темп роста (снижения) промышленного производства в сопоставимых ценах, в % к предыдущему году | D169: х | E169: х | F169: х | G169: х | H169: х | I169: =I168/F168*100 -> 122.05 | J169: х | K169: х | L169: =L168/I168*100 -> 110.9
J170: Продолжение таблицы № 1б
A171: Наименование видов выпускаемой продукции ("товары-представители") | B171: Код вида деятельности (по ОКВЭД) | C171: Единица измер. | D171: 2017 год | G171: 2018 год | J171: 2019 год
D172: количество*) | E172: базовая среднегодовая цена (2010г.), руб. | F172: сумма, млн.руб. | G172: количество*) | H172: базовая среднегодовая цена (2010г.), руб. | I172: сумма, млн.руб. | J172: количество*) | K172: базовая среднегодовая цена (2010г.), руб. | L172: сумма, млн.руб.
A173: А | B173: Б | C173: В | D173: 10 | E173: 11 | F173: 12=10х11 | G173: 13 | H173: 14 | I173: 15=13х14 | J173: 16 | K173: 17 | L173: 18=16х17
A174: Производство машин и оборудования общего назначения | B174: 28..1 | C174: млн. руб. | D174: 20.6 | F174: =D174/1.046/1.031/1.256/1.023/0.942/1.02/1.115/1.054 -> 13.2 | G174: 21.2 | I174: =G174/1.046/1.031/1.256/1.023/0.942/1.02/1.115/1.054 -> 13.5 | J174: 22.3 | L174: =J174/1.046/1.031/1.256/1.023/0.942/1.02/1.115/1.054 -> 14.2
A178: Всего по товарам-представителям | D178: х | E178: х | F178: =SUM(F174:F177) -> 13.2 | G178: х | H178: х | I178: =SUM(I174:I177) -> 13.5 | J178: х | K178: х | L178: =SUM(L174:L177) -> 14.2
A179: Темп роста (снижения) промышленного производства в сопоставимых ценах, в % к предыдущему году | D179: х | E179: х | F179: =F178/L168*100 -> 123.5 | G179: х | H179: х | I179: =I178/F178*100 -> 103.0 | J179: х | K179: х | L179: =L178/I178*100 -> 105.0
J180: Продолжение таблицы № 1б
A181: Наименование видов выпускаемой продукции ("товары-представители") | B181: Код вида деятельности (по ОКВЭД) | C181: Единица измер. | D181: 2020 год | G181: январь-июнь 2016 года | J181: январь-июнь 2017 года
D182: количество*) | E182: базовая среднегодовая цена (2010г.), руб. | F182: сумма, млн.руб. | G182: количество*) | H182: базовая среднегодовая цена (2010г.), руб. | I182: сумма, млн.руб. | J182: количество*) | K182: базовая среднегодовая цена (2010г.), руб. | L182: сумма, млн.руб.
A183: А | B183: Б | C183: В | D183: 19 | E183: 20 | F183: 21=19х20 | G183: 22 | H183: 23 | I183: 24=22х23 | J183: 25 | K183: 26 | L183: 27=25х26
A184: Производство машин и оборудования общего назначения | B184: 28..1 | C184: млн. руб. | D184: 23.6 | F184: =D184/1.046/1.031/1.256/1.023/0.942/1.02/1.115/1.054 -> 15.1 | G184: 7.6 | I184: =G184/1.046/1.031/1.256/1.023/0.942/1.02/1.115/1.054 -> 4.869 | J184: 10.3 | L184: =J184/1.046/1.031/1.256/1.023/0.942/1.02/1.115/1.054 -> 6.6
A188: Всего по товарам-представителям | D188: х | E188: х | F188: =SUM(F184:F187) -> 15.1 | G188: х | H188: х | I188: =SUM(I184:I187) -> 4.869 | J188: х | K188: х | L188: =SUM(L184:L187) -> 6.6
A189: Темп роста (снижения) промышленного производства в сопоставимых ценах, в % к предыдущему году | D189: х | E189: х | F189: =F188/L178*100 -> 106.0 | G189: х | H189: х | I189: 176.1 | J189: х | K189: х | L189: =L188/I188*100 -> 135.1
A192: Расчет темпов роста (снижения) промышленного производства в сопоставимых ценах (ценах 2010 года)
A193: по "товарам-представителям" ООО "Тихий Дон" в 2018 году и на период до 2020 года
C194: (наименование предприятия, организации)
A196: Наименование видов выпускаемой продукции ("товары-представители") | B196: Код вида деятельности (по ОКВЭД) | C196: Единица измер. | D196: 2014 год | G196: 2015 год | J196: 2016 год
D197: количество*) | E197: базовая среднегодовая цена (2010г.), руб. | F197: сумма, млн.руб. | G197: количество*) | H197: базовая среднегодовая цена (2010г.), руб. | I197: сумма, млн.руб. | J197: количество*) | K197: базовая среднегодовая цена (2010г.), руб. | L197: сумма, млн.руб.
A198: А | B198: Б | C198: В | D198: 1 | E198: 2 | F198: 3=1х2 | G198: 4 | H198: 5 | I198: 6=4х5 | J198: 7 | K198: 8 | L198: 9=7х8
A199: Камень строительный | B199: 08..12 | C199: тыс. тонн | D199: 335.3 | E199: 144.0 | F199: =D199*E199/1000 -> 48.283 | G199: 246.4 | H199: 144.0 | I199: =G199*H199/1000 -> 35.482 | J199: 398.0 | K199: 144.0 | L199: =J199*K199/1000 -> 57.3
A203: Всего по товарам-представителям | D203: х | E203: х | F203: =SUM(F199:F202) -> 48.283 | G203: х | H203: х | I203: =SUM(I199:I202) -> 35.482 | J203: х | K203: х | L203: =SUM(L199:L202) -> 57.3
A204: Темп роста (снижения) промышленного производства в сопоставимых ценах, в % к предыдущему году | D204: х | E204: х | F204: х | G204: х | H204: х | I204: =I203/F203*100 -> 73.5 | J204: х | K204: х | L204: =L203/I203*100 -> 161.5
J205: Продолжение таблицы № 1б
A206: Наименование видов выпускаемой продукции ("товары-представители") | B206: Код вида деятельности (по ОКВЭД) | C206: Единица измер. | D206: 2017 год | G206: 2018 год | J206: 2019 год
D207: количество*) | E207: базовая среднегодовая цена (2010г.), руб. | F207: сумма, млн.руб. | G207: количество*) | H207: базовая среднегодовая цена (2010г.), руб. | I207: сумма, млн.руб. | J207: количество*) | K207: базовая среднегодовая цена (2010г.), руб. | L207: сумма, млн.руб.
A208: А | B208: Б | C208: В | D208: 10 | E208: 11 | F208: 12=10х11 | G208: 13 | H208: 14 | I208: 15=13х14 | J208: 16 | K208: 17 | L208: 18=16х17
A209: Камень строительный | B209: 08..12 | C209: тыс. тонн | D209: 508.0 | E209: 144.0 | F209: =D209*E209/1000 -> 73.2 | G209: 550.0 | H209: 144.0 | I209: =G209*H209/1000 -> 79.2 | J209: 600.0 | K209: 144.0 | L209: =J209*K209/1000 -> 86.4
A213: Всего по товарам-представителям | D213: х | E213: х | F213: =SUM(F209:F212) -> 73.2 | G213: х | H213: х | I213: =SUM(I209:I212) -> 79.2 | J213: х | K213: х | L213: =SUM(L209:L212) -> 86.4
A214: Темп роста (снижения) промышленного производства в сопоставимых ценах, в % к предыдущему году | D214: х | E214: х | F214: =F213/L203*100 -> 127.6 | G214: х | H214: х | I214: =I213/F213*100 -> 108.3 | J214: х | K214: х | L214: =L213/I213*100 -> 109.1
J215: Продолжение таблицы № 1б
A216: Наименование видов выпускаемой продукции ("товары-представители") | B216: Код вида деятельности (по ОКВЭД) | C216: Единица измер. | D216: 2020 год | G216: январь-июнь 2016 года | J216: январь-июнь 2017 года
D217: количество*) | E217: базовая среднегодовая цена (2010г.), руб. | F217: сумма, млн.руб. | G217: количество*) | H217: базовая среднегодовая цена (2010г.), руб. | I217: сумма, млн.руб. | J217: количество*) | K217: базовая среднегодовая цена (2010г.), руб. | L217: сумма, млн.руб.
A218: А | B218: Б | C218: В | D218: 19 | E218: 20 | F218: 21=19х20 | G218: 22 | H218: 23 | I218: 24=22х23 | J218: 25 | K218: 26 | L218: 27=25х26
A219: Камень строительный | B219: 08..12 | C219: тыс. тонн | D219: 650.0 | E219: 144.0 | F219: =D219*E219/1000 -> 93.6 | G219: 74.8 | H219: 144.0 | I219: =G219*H219/1000 -> 10.771 | J219: 289.7 | K219: 144.0 | L219: =J219*K219/1000 -> 41.7
A223: Всего по товарам-представителям | D223: х | E223: х | F223: =SUM(F219:F222) -> 93.6 | G223: х | H223: х | I223: =SUM(I219:I222) -> 10.771 | J223: х | K223: х | L223: =SUM(L219:L222) -> 41.7
A224: Темп роста (снижения) промышленного производства в сопоставимых ценах, в % к предыдущему году | D224: х | E224: х | F224: =F223/L213*100 -> 108.3 | G224: х | H224: х | I224: 82 | J224: х | K224: х | L224: =L223/I223*100 -> 387.3
A227: Расчет темпов роста (снижения) промышленного производства в сопоставимых ценах (ценах 2010 года)
A228: по "товарам-представителям" ООО "Строительные материалы - Тихий Дон" в 2018 году и на период до 2020 года
C229: (наименование предприятия, организации)
A231: Наименование видов выпускаемой продукции ("товары-представители") | B231: Код вида деятельности (по ОКВЭД) | C231: Единица измер. | D231: 2014 год | G231: 2015 год | J231: 2016 год
D232: количество*) | E232: базовая среднегодовая цена (2010г.), руб. | F232: сумма, млн.руб. | G232: количество*) | H232: базовая среднегодовая цена (2010г.), руб. | I232: сумма, млн.руб. | J232: количество*) | K232: базовая среднегодовая цена (2010г.), руб. | L232: сумма, млн.руб.
A233: А | B233: Б | C233: В | D233: 1 | E233: 2 | F233: 3=1х2 | G233: 4 | H233: 5 | I233: 6=4х5 | J233: 7 | K233: 8 | L233: 9=7х8
A234: Нерудные материалы | B234: 08..12..12 | C234: тыс. тонн | D234: 335.5 | E234: 304.0 | F234: =D234*E234/1000 -> 101.992 | G234: 225.7 | H234: 304.0 | I234: =G234*H234/1000 -> 68.613 | J234: 387.0 | K234: 304.0 | L234: =J234*K234/1000 -> 117.6
A238: Всего по товарам-представителям | D238: х | E238: х | F238: =SUM(F234:F237) -> 101.992 | G238: х | H238: х | I238: =SUM(I234:I237) -> 68.613 | J238: х | K238: х | L238: =SUM(L234:L237) -> 117.6
A239: Темп роста (снижения) промышленного производства в сопоставимых ценах, в % к предыдущему году | D239: х | E239: х | F239: х | G239: х | H239: х | I239: =I238/F238*100 -> 67.3 | J239: х | K239: х | L239: =L238/I238*100 -> 171.5
J240: Продолжение таблицы № 1б
A241: Наименование видов выпускаемой продукции ("товары-представители") | B241: Код вида деятельности (по ОКВЭД) | C241: Единица измер. | D241: 2017 год | G241: 2018 год | J241: 2019 год
D242: количество*) | E242: базовая среднегодовая цена (2010г.), руб. | F242: сумма, млн.руб. | G242: количество*) | H242: базовая среднегодовая цена (2010г.), руб. | I242: сумма, млн.руб. | J242: количество*) | K242: базовая среднегодовая цена (2010г.), руб. | L242: сумма, млн.руб.
A243: А | B243: Б | C243: В | D243: 10 | E243: 11 | F243: 12=10х11 | G243: 13 | H243: 14 | I243: 15=13х14 | J243: 16 | K243: 17 | L243: 18=16х17
A244: Нерудные материалы | B244: 08..12..12 | C244: тыс. тонн | D244: 508.0 | E244: 304.0 | F244: =D244*E244/1000 -> 154.4 | G244: 550.0 | H244: 304.0 | I244: =G244*H244/1000 -> 167.2 | J244: 600.0 | K244: 304.0 | L244: =J244*K244/1000 -> 182.4
A248: Всего по товарам-представителям | D248: х | E248: х | F248: =SUM(F244:F247) -> 154.4 | G248: х | H248: х | I248: =SUM(I244:I247) -> 167.2 | J248: х | K248: х | L248: =SUM(L244:L247) -> 182.4
A249: Темп роста (снижения) промышленного производства в сопоставимых ценах, в % к предыдущему году | D249: х | E249: х | F249: =F248/L238*100 -> 131.3 | G249: х | H249: х | I249: =I248/F248*100 -> 108.3 | J249: х | K249: х | L249: =L248/I248*100 -> 109.1
J250: Продолжение таблицы № 1б
A251: Наименование видов выпускаемой продукции ("товары-представители") | B251: Код вида деятельности (по ОКВЭД) | C251: Единица измер. | D251: 2020 год | G251: январь-июнь 2016 года | J251: январь-июнь 2017 года
D252: количество*) | E252: базовая среднегодовая цена (2010г.), руб. | F252: сумма, млн.руб. | G252: количество*) | H252: базовая среднегодовая цена (2010г.), руб. | I252: сумма, млн.руб. | J252: количество*) | K252: базовая среднегодовая цена (2010г.), руб. | L252: сумма, млн.руб.
A253: А | B253: Б | C253: В | D253: 19 | E253: 20 | F253: 21=19х20 | G253: 22 | H253: 23 | I253: 24=22х23 | J253: 25 | K253: 26 | L253: 27=25х26
A254: Нерудные материалы | B254: 08..12..12 | C254: тыс. тонн | D254: 650.0 | E254: 304.0 | F254: =D254*E254/1000 -> 197.6 | G254: 88.5 | H254: 304.0 | I254: =G254*H254/1000 -> 26.904 | J254: 254.5 | K254: 304.0 | L254: =J254*K254/1000 -> 77.4
... 34 more rows

Sheet форма для всех_сводная
I1: Форма № 2
A2: ПРОГНОЗ*)
A3: социально-экономического развития на 2018 год и на период до 2020 года
A4: Богучарского муниципального района
A6: № п/п | B6: Показатели | D6: Единица измерения | E6: отчет | G6: 2017г. | I6: прогноз
E7: 2015г. | F7: 2016г. | G7: январь-июнь, отчет | H7: январь-декабрь, оценка | I7: 2018г. | J7: 2019г. | K7: 2020г.
A8: 1. | B8: Оборот промышленных организаций (без НДС, акцизов и других аналогичных обязательных платежей) - всего**) | D8: млн.руб. | E8: ='форма для предприятий '!E15+'форма для предприятий '!E79+'форма для предприятий '!E139+'форма для предприятий '!E199+'форма для предприятий '!E258+'форма для предприятий '!E317+'форма для предприятий '!E379+'форма для предприятий '!E441 -> 871.681 | F8: ='форма для предприятий '!F15+'форма для предприятий '!F79+'форма для предприятий '!F139+'форма для предприятий '!F199+'форма для предприятий '!F258+'форма для предприятий '!F317+'форма для предприятий '!F379+'форма для предприятий '!F441 -> 1104.992 | G8: ='форма для предприятий '!G15+'форма для предприятий '!G79+'форма для предприятий '!G139+'форма для предприятий '!G199+'форма для предприятий '!G258+'форма для предприятий '!G317+'форма для предприятий '!G379+'форма для предприятий '!G441 -> 700.865 | H8: ='форма для предприятий '!H15+'форма для предприятий '!H79+'форма для предприятий '!H139+'форма для предприятий '!H199+'форма для предприятий '!H258+'форма для предприятий '!H317+'форма для предприятий '!H379+'форма для предприятий '!H441 -> 1363.683 | I8: ='форма для предприятий '!I15+'форма для предприятий '!I79+'форма для предприятий '!I139+'форма для предприятий '!I199+'форма для предприятий '!I258+'форма для предприятий '!I317+'форма для предприятий '!I379+'форма для предприятий '!I441 -> 1457.737 | J8: ='форма для предприятий '!J15+'форма для предприятий '!J79+'форма для предприятий '!J139+'форма для предприятий '!J199+'форма для предприятий '!J258+'форма для предприятий '!J317+'форма для предприятий '!J379+'форма для предприятий '!J441 -> 1565.077 | K8: ='форма для предприятий '!K15+'форма для предприятий '!K79+'форма для предприятий '!K139+'форма для предприятий '!K199+'форма для предприятий '!K258+'форма для предприятий '!K317+'форма для предприятий '!K379+'форма для предприятий '!K441 -> 1693.294
A9: 2. | B9: Отгружено товаров собственного производства, выполнено работ и услуг собственными силами по промышленным видам экономической деятельности (В+С+D+Е) - всего (по чистым видам деятельности) | D9: млн.руб. | E9: ='форма для предприятий '!E27+'форма для предприятий '!E91+'форма для предприятий '!E149+'форма для предприятий '!E208+'форма для предприятий '!E270+'форма для предприятий '!E329+'форма для предприятий '!E391+'форма для предприятий '!E453 -> 842.56 | F9: ='форма для предприятий '!F27+'форма для предприятий '!F91+'форма для предприятий '!F149+'форма для предприятий '!F208+'форма для предприятий '!F270+'форма для предприятий '!F329+'форма для предприятий '!F391+'форма для предприятий '!F453 -> 1031.45002 | G9: ='форма для предприятий '!G27+'форма для предприятий '!G91+'форма для предприятий '!G149+'форма для предприятий '!G208+'форма для предприятий '!G270+'форма для предприятий '!G329+'форма для предприятий '!G391+'форма для предприятий '!G453 -> 663.433 | H9: ='форма для предприятий '!H27+'форма для предприятий '!H91+'форма для предприятий '!H149+'форма для предприятий '!H208+'форма для предприятий '!H270+'форма для предприятий '!H329+'форма для предприятий '!H391+'форма для предприятий '!H453 -> 1268.819 | I9: ='форма для предприятий '!I27+'форма для предприятий '!I91+'форма для предприятий '!I149+'форма для предприятий '!I208+'форма для предприятий '!I270+'форма для предприятий '!I329+'форма для предприятий '!I391+'форма для предприятий '!I453 -> 1380.323 | J9: ='форма для предприятий '!J27+'форма для предприятий '!J91+'форма для предприятий '!J149+'форма для предприятий '!J208+'форма для предприятий '!J270+'форма для предприятий '!J329+'форма для предприятий '!J391+'форма для предприятий '!J453 -> 1510.639 | K9: ='форма для предприятий '!K27+'форма для предприятий '!K91+'форма для предприятий '!K149+'форма для предприятий '!K208+'форма для предприятий '!K270+'форма для предприятий '!K329+'форма для предприятий '!K391+'форма для предприятий '!K453 -> 1664.170
B10: в том числе по видам деятельности:
A11: 2.1. | B11: В | C11: «Добыча полезных ископаемых» | D11: млн.руб. | E11: ='форма для предприятий '!E321+'форма для предприятий '!E383 -> 148.303 | F11: ='форма для предприятий '!F321+'форма для предприятий '!F383 -> 243.20618 | G11: ='форма для предприятий '!G321+'форма для предприятий '!G383 -> 187.474 | H11: ='форма для предприятий '!H321+'форма для предприятий '!H383 -> 374.948 | I11: ='форма для предприятий '!I321+'форма для предприятий '!I383 -> 422.997 | J11: ='форма для предприятий '!J321+'форма для предприятий '!J383 -> 480.833 | K11: ='форма для предприятий '!K321+'форма для предприятий '!K383 -> 543.301
A12: 2.2. | B12: С | C12: «Обрабатывающие производства» | D12: млн.руб. | E12: =E14+E27 -> 639.536 | F12: =F14+F27 -> 723.12624 | G12: =G14+G27 -> 439.429 | H12: 823.175 | I12: 882.521 | J12: 950.439 | K12: 1035.847
C13: в том числе:
B14: 10 | C14: Производство пищевых продуктов | D14: млн.руб. | E14: ='форма для предприятий '!E19+'форма для предприятий '!E20+'форма для предприятий '!E21+'форма для предприятий '!E22+'форма для предприятий '!E23+'форма для предприятий '!E24+'форма для предприятий '!E25+'форма для предприятий '!E26+'форма для предприятий '!E83+'форма для предприятий '!E84+'форма для предприятий '!E143+'форма для предприятий '!E203+'форма для предприятий '!E204 -> 624.515 | F14: ='форма для предприятий '!F19+'форма для предприятий '!F20+'форма для предприятий '!F21+'форма для предприятий '!F22+'форма для предприятий '!F23+'форма для предприятий '!F24+'форма для предприятий '!F25+'форма для предприятий '!F26+'форма для предприятий '!F83+'форма для предприятий '!F84+'форма для предприятий '!F143+'форма для предприятий '!F203+'форма для предприятий '!F204 -> 706.46294 | G14: ='форма для предприятий '!G19+'форма для предприятий '!G20+'форма для предприятий '!G21+'форма для предприятий '!G22+'форма для предприятий '!G23+'форма для предприятий '!G24+'форма для предприятий '!G25+'форма для предприятий '!G26+'форма для предприятий '!G83+'форма для предприятий '!G84+'форма для предприятий '!G143+'форма для предприятий '!G203+'форма для предприятий '!G204 -> 429.137 | H14: ='форма для предприятий '!H19+'форма для предприятий '!H20+'форма для предприятий '!H21+'форма для предприятий '!H22+'форма для предприятий '!H23+'форма для предприятий '!H24+'форма для предприятий '!H25+'форма для предприятий '!H26+'форма для предприятий '!H83+'форма для предприятий '!H84+'форма для предприятий '!H143+'форма для предприятий '!H203+'форма для предприятий '!H204 -> 802.591 | I14: ='форма для предприятий '!I19+'форма для предприятий '!I20+'форма для предприятий '!I21+'форма для предприятий '!I22+'форма для предприятий '!I23+'форма для предприятий '!I24+'форма для предприятий '!I25+'форма для предприятий '!I26+'форма для предприятий '!I83+'форма для предприятий '!I84+'форма для предприятий '!I143+'форма для предприятий '!I203+'форма для предприятий '!I204 -> 860.154 | J14: ='форма для предприятий '!J19+'форма для предприятий '!J20+'форма для предприятий '!J21+'форма для предприятий '!J22+'форма для предприятий '!J23+'форма для предприятий '!J24+'форма для предприятий '!J25+'форма для предприятий '!J26+'форма для предприятий '!J83+'форма для предприятий '!J84+'форма для предприятий '!J143+'форма для предприятий '!J203+'форма для предприятий '!J204 -> 925.663 | K14: ='форма для предприятий '!K19+'форма для предприятий '!K20+'форма для предприятий '!K21+'форма для предприятий '!K22+'форма для предприятий '!K23+'форма для предприятий '!K24+'форма для предприятий '!K25+'форма для предприятий '!K26+'форма для предприятий '!K83+'форма для предприятий '!K84+'форма для предприятий '!K143+'форма для предприятий '!K203+'форма для предприятий '!K204 -> 1008.115
B15: 11 | C15: Производство напитков | D15: млн.руб.
B16: 13 | C16: Производство текстильных изделий | D16: млн.руб.
B17: 14 | C17: Производство одежды | D17: млн.руб.
B18: 15 | C18: Производство кожи и изделий из кожи | D18: млн.руб.
B19: 16 | C19: Обработка древесины и производство изделий из дерева и пробки, кроме мебели, производство изделий из соломки и материалов для плетения | D19: млн.руб.
B20: 17 | C20: Производство бумаги и бумажных изделий | D20: млн.руб.
B21: 18 | C21: Деятельность полиграфическая и копирование носителей информации | D21: млн.руб.
B22: 20 | C22: Производство химических веществ и химических продуктов | D22: млн.руб.
B23: 21 | C23: Производство лекарственных средств и материалов, применяемых в медицинских целях | D23: млн.руб.
B24: 22 | C24: Производство резиновых и пластмассовых изделий | D24: млн.руб.
B25: 23 | C25: Производство прочей неметаллической минеральной продукции | D25: млн.руб.
B26: 24 | C26: Производство металлургическое | D26: млн.руб.
B27: 25 | C27: Производство готовых металлических изделий, кроме машин и оборудования | D27: млн.руб. | E27: ='форма для предприятий '!E262 -> 15.021 | F27: ='форма для предприятий '!F262 -> 16.6633 | G27: ='форма для предприятий '!G262 -> 10.292 | H27: ='форма для предприятий '!H262 -> 20.584 | I27: ='форма для предприятий '!I262 -> 22.367 | J27: ='форма для предприятий '!J262 -> 24.776 | K27: ='форма для предприятий '!K262 -> 27.732
B28: 26 | C28: Производство компьютеров, электронных и оптических изделий | D28: млн.руб.
B29: 27 | C29: Производство электрического оборудования | D29: млн.руб.
B30: 28 | C30: Производство машин и оборудования, не включенных в другие группировки | D30: млн.руб.
B31: 29 | C31: Производство автотранспортных средств, прицепов и полуприцепов | D31: млн.руб.
B32: 30 | C32: Производство прочих транспортных средств и оборудования | D32: млн.руб.
B33: 31 | C33: Производство мебели | D33: млн.руб.
B34: 32 | C34: Производство прочих готовых изделий | D34: млн.руб.
B35: 33 | C35: Ремонт и монтаж машин и оборудования | D35: млн.руб.
A36: 2.3. | B36: D | C36: «Обеспечение электрической энергией, газом и паром; кондиционирование воздуха» | D36: млн.руб. | E36: ='форма для предприятий '!E146+'форма для предприятий '!E446+'форма для предприятий '!E448 -> 32.345 | F36: ='форма для предприятий '!F146+'форма для предприятий '!F446+'форма для предприятий '!F448 -> 29.042 | G36: ='форма для предприятий '!G146+'форма для предприятий '!G446+'форма для предприятий '!G448 -> 16.449 | H36: ='форма для предприятий '!H146+'форма для предприятий '!H446+'форма для предприятий '!H448 -> 33.968 | I36: ='форма для предприятий '!I146+'форма для предприятий '!I446+'форма для предприятий '!I448 -> 35.952 | J36: ='форма для предприятий '!J146+'форма для предприятий '!J446+'форма для предприятий '!J448 -> 38.151 | K36: ='форма для предприятий '!K146+'форма для предприятий '!K446+'форма для предприятий '!K448 -> 40.877
A37: 2.4. | B37: Е | C37: «Водоснабжение; водоотведение, организация сбора и утилизации отходов, деятельность по ликвидации загрязнений» | D37: млн.руб. | E37: ='форма для предприятий '!E145+'форма для предприятий '!E445+'форма для предприятий '!E447 -> 33.066 | F37: ='форма для предприятий '!F145+'форма для предприятий '!F445+'форма для предприятий '!F447 -> 36.076 | G37: ='форма для предприятий '!G145+'форма для предприятий '!G445+'форма для предприятий '!G447 -> 20.082 | H37: ='форма для предприятий '!H145+'форма для предприятий '!H445+'форма для предприятий '!H447 -> 36.728 | I37: ='форма для предприятий '!I145+'форма для предприятий '!I445+'форма для предприятий '!I447 -> 38.852 | J37: ='форма для предприятий '!J145+'форма для предприятий '!J445+'форма для предприятий '!J447 -> 41.215 | K37: ='форма для предприятий '!K145+'форма для предприятий '!K445+'форма для предприятий '!K447 -> 44.145
A38: 3. | B38: Темп роста (снижения) промышленного производства в сопоставимых ценах (ценах 2010г.) | D38: в % к предыду- щему году | E38: 71.1 | F38: ='расчет темпов - сводная'!E37 -> 113.0 | G38: ='расчет темпов - сводная'!K37 -> 162.5 | H38: ='расчет темпов - сводная'!F37 -> 113.6 | I38: ='расчет темпов - сводная'!G37 -> 104.8 | J38: ='расчет темпов - сводная'!H37 -> 105.4 | K38: ='расчет темпов - сводная'!I37 -> 105.9
A39: 4. | B39: Индекс цен производителей промышленной продукции (Индекс-дефлятор оптовых цен в 2018-2020гг.) | D39: в % к предыду- щему году | E39: 133.4 | F39: =F8/E8*100/F38*100 -> 112.2 | G39: =G8/429.682*100/G38*100 -> 100.4 | H39: =H8/F8*100/H38*100 -> 108.6 | I39: =I9/H9*100/I38*100 -> 103.8 | J39: =J9/I9*100/J38*100 -> 103.8 | K39: =K9/J9*100/K38*100 -> 104.0
A40: 5. | B40: Численность работающих | D40: человек | E40: ='форма для предприятий '!E31+'форма для предприятий '!E95+'форма для предприятий '!E153+'форма для предприятий '!E212+'форма для предприятий '!E274+'форма для предприятий '!E333+'форма для предприятий '!E395+'форма для предприятий '!E457 -> 797 | F40: ='форма для предприятий '!F31+'форма для предприятий '!F95+'форма для предприятий '!F153+'форма для предприятий '!F212+'форма для предприятий '!F274+'форма для предприятий '!F333+'форма для предприятий '!F395+'форма для предприятий '!F457 -> 811 | G40: ='форма для предприятий '!G31+'форма для предприятий '!G95+'форма для предприятий '!G153+'форма для предприятий '!G212+'форма для предприятий '!G274+'форма для предприятий '!G333+'форма для предприятий '!G395+'форма для предприятий '!G457 -> 830 | H40: ='форма для предприятий '!H31+'форма для предприятий '!H95+'форма для предприятий '!H153+'форма для предприятий '!H212+'форма для предприятий '!H274+'форма для предприятий '!H333+'форма для предприятий '!H395+'форма для предприятий '!H457 -> 837 | I40: ='форма для предприятий '!I31+'форма для предприятий '!I95+'форма для предприятий '!I153+'форма для предприятий '!I212+'форма для предприятий '!I274+'форма для предприятий '!I333+'форма для предприятий '!I395+'форма для предприятий '!I457 -> 844 | J40: ='форма для предприятий '!J31+'форма для предприятий '!J95+'форма для предприятий '!J153+'форма для предприятий '!J212+'форма для предприятий '!J274+'форма для предприятий '!J333+'форма для предприятий '!J395+'форма для предприятий '!J457 -> 860 | K40: ='форма для предприятий '!K31+'форма для предприятий '!K95+'форма для предприятий '!K153+'форма для предприятий '!K212+'форма для предприятий '!K274+'форма для предприятий '!K333+'форма для предприятий '!K395+'форма для предприятий '!K457 -> 863
A41: 6. | B41: Среднемесячная заработная плата | D41: руб. | E41: =('форма для предприятий '!E36+'форма для предприятий '!E100+'форма для предприятий '!E158+'форма для предприятий '!E217+'форма для предприятий '!E279+'форма для предприятий '!E338+'форма для предприятий '!E400+'форма для предприятий '!E462)/('форма для предприятий '!E31+'форма для предприятий '!E95+'форма для предприятий '!E153+'форма для предприятий '!E212+'форма для предприятий '!E274+'форма для предприятий '!E333+'форма для предприятий '!E395+'форма для предприятий '!E457)/12*1000000 -> 15431 | F41: =('форма для предприятий '!F36+'форма для предприятий '!F100+'форма для предприятий '!F158+'форма для предприятий '!F217+'форма для предприятий '!F279+'форма для предприятий '!F338+'форма для предприятий '!F400+'форма для предприятий '!F462)/('форма для предприятий '!F31+'форма для предприятий '!F95+'форма для предприятий '!F153+'форма для предприятий '!F212+'форма для предприятий '!F274+'форма для предприятий '!F333+'форма для предприятий '!F395+'форма для предприятий '!F457)/12*1000000 -> 17820 | G41: =('форма для предприятий '!G36+'форма для предприятий '!G100+'форма для предприятий '!G158+'форма для предприятий '!G217+'форма для предприятий '!G279+'форма для предприятий '!G338+'форма для предприятий '!G400+'форма для предприятий '!G462)/('форма для предприятий '!G31+'форма для предприятий '!G95+'форма для предприятий '!G153+'форма для предприятий '!G212+'форма для предприятий '!G274+'форма для предприятий '!G333+'форма для предприятий '!G395+'форма для предприятий '!G457)/6*1000000 -> 21061 | H41: =('форма для предприятий '!H36+'форма для предприятий '!H100+'форма для предприятий '!H158+'форма для предприятий '!H217+'форма для предприятий '!H279+'форма для предприятий '!H338+'форма для предприятий '!H400+'форма для предприятий '!H462)/('форма для предприятий '!H31+'форма для предприятий '!H95+'форма для предприятий '!H153+'форма для предприятий '!H212+'форма для предприятий '!H274+'форма для предприятий '!H333+'форма для предприятий '!H395+'форма для предприятий '!H457)/12*1000000 -> 19852 | I41: =('форма для предприятий '!I36+'форма для предприятий '!I100+'форма для предприятий '!I158+'форма для предприятий '!I217+'форма для предприятий '!I279+'форма для предприятий '!I338+'форма для предприятий '!I400+'форма для предприятий '!I462)/('форма для предприятий '!I31+'форма для предприятий '!I95+'форма для предприятий '!I153+'форма для предприятий '!I212+'форма для предприятий '!I274+'форма для предприятий '!I333+'форма для предприятий '!I395+'форма для предприятий '!I457)/12*1000000 -> 21450 | J41: =('форма для предприятий '!J36+'форма для предприятий '!J100+'форма для предприятий '!J158+'форма для предприятий '!J217+'форма для предприятий '!J279+'форма для предприятий '!J338+'форма для предприятий '!J400+'форма для предприятий '!J462)/('форма для предприятий '!J31+'форма для предприятий '!J95+'форма для предприятий '!J153+'форма для предприятий '!J212+'форма для предприятий '!J274+'форма для предприятий '!J333+'форма для предприятий '!J395+'форма для предприятий '!J457)/12*1000000 -> 23202 | K41: =('форма для предприятий '!K36+'форма для предприятий '!K100+'форма для предприятий '!K158+'форма для предприятий '!K217+'форма для предприятий '!K279+'форма для предприятий '!K338+'форма для предприятий '!K400+'форма для предприятий '!K462)/('форма для предприятий '!K31+'форма для предприятий '!K95+'форма для предприятий '!K153+'форма для предприятий '!K212+'форма для предприятий '!K274+'форма для предприятий '!K333+'форма для предприятий '!K395+'форма для предприятий '!K457)/12*1000000 -> 25081
A42: 7. | B42: Затраты на производство и продажу продукции (товаров, работ, услуг) - всего | D42: млн.руб. | E42: ='форма для предприятий '!E33+'форма для предприятий '!E97+'форма для предприятий '!E155+'форма для предприятий '!E214+'форма для предприятий '!E276+'форма для предприятий '!E335+'форма для предприятий '!E397+'форма для предприятий '!E459 -> 728.443 | F42: ='форма для предприятий '!F33+'форма для предприятий '!F97+'форма для предприятий '!F155+'форма для предприятий '!F214+'форма для предприятий '!F276+'форма для предприятий '!F335+'форма для предприятий '!F397+'форма для предприятий '!F459 -> 854.935 | G42: ='форма для предприятий '!G33+'форма для предприятий '!G97+'форма для предприятий '!G155+'форма для предприятий '!G214+'форма для предприятий '!G276+'форма для предприятий '!G335+'форма для предприятий '!G397+'форма для предприятий '!G459 -> 535.631 | H42: ='форма для предприятий '!H33+'форма для предприятий '!H97+'форма для предприятий '!H155+'форма для предприятий '!H214+'форма для предприятий '!H276+'форма для предприятий '!H335+'форма для предприятий '!H397+'форма для предприятий '!H459 -> 1057.023 | I42: ='форма для предприятий '!I33+'форма для предприятий '!I97+'форма для предприятий '!I155+'форма для предприятий '!I214+'форма для предприятий '!I276+'форма для предприятий '!I335+'форма для предприятий '!I397+'форма для предприятий '!I459 -> 1107.811 | J42: ='форма для предприятий '!J33+'форма для предприятий '!J97+'форма для предприятий '!J155+'форма для предприятий '!J214+'форма для предприятий '!J276+'форма для предприятий '!J335+'форма для предприятий '!J397+'форма для предприятий '!J459 -> 1163.144 | K42: ='форма для предприятий '!K33+'форма для предприятий '!K97+'форма для предприятий '!K155+'форма для предприятий '!K214+'форма для предприятий '!K276+'форма для предприятий '!K335+'форма для предприятий '!K397+'форма для предприятий '!K459 -> 1224.257
B43: в том числе
A44: 7.1. | B44: Материальные затраты | D44: млн.руб. | E44: ='форма для предприятий '!E35+'форма для предприятий '!E99+'форма для предприятий '!E157+'форма для предприятий '!E216+'форма для предприятий '!E278+'форма для предприятий '!E337+'форма для предприятий '!E399+'форма для предприятий '!E461 -> 443.255 | F44: ='форма для предприятий '!F35+'форма для предприятий '!F99+'форма для предприятий '!F157+'форма для предприятий '!F216+'форма для предприятий '!F278+'форма для предприятий '!F337+'форма для предприятий '!F399+'форма для предприятий '!F461 -> 480.473 | G44: ='форма для предприятий '!G35+'форма для предприятий '!G99+'форма для предприятий '!G157+'форма для предприятий '!G216+'форма для предприятий '!G278+'форма для предприятий '!G337+'форма для предприятий '!G399+'форма для предприятий '!G461 -> 318.408 | H44: ='форма для предприятий '!H35+'форма для предприятий '!H99+'форма для предприятий '!H157+'форма для предприятий '!H216+'форма для предприятий '!H278+'форма для предприятий '!H337+'форма для предприятий '!H399+'форма для предприятий '!H461 -> 652.511 | I44: ='форма для предприятий '!I35+'форма для предприятий '!I99+'форма для предприятий '!I157+'форма для предприятий '!I216+'форма для предприятий '!I278+'форма для предприятий '!I337+'форма для предприятий '!I399+'форма для предприятий '!I461 -> 675.097 | J44: ='форма для предприятий '!J35+'форма для предприятий '!J99+'форма для предприятий '!J157+'форма для предприятий '!J216+'форма для предприятий '!J278+'форма для предприятий '!J337+'форма для предприятий '!J399+'форма для предприятий '!J461 -> 699.135 | K44: ='форма для предприятий '!K35+'форма для предприятий '!K99+'форма для предприятий '!K157+'форма для предприятий '!K216+'форма для предприятий '!K278+'форма для предприятий '!K337+'форма для предприятий '!K399+'форма для предприятий '!K461 -> 731.083
A45: 7.2. | B45: Затраты на оплату труда | D45: млн.руб. | E45: ='форма для предприятий '!E36+'форма для предприятий '!E100+'форма для предприятий '!E158+'форма для предприятий '!E217+'форма для предприятий '!E279+'форма для предприятий '!E338+'форма для предприятий '!E400+'форма для предприятий '!E462 -> 147.581 | F45: ='форма для предприятий '!F36+'форма для предприятий '!F100+'форма для предприятий '!F158+'форма для предприятий '!F217+'форма для предприятий '!F279+'форма для предприятий '!F338+'форма для предприятий '!F400+'форма для предприятий '!F462 -> 173.426 | G45: ='форма для предприятий '!G36+'форма для предприятий '!G100+'форма для предприятий '!G158+'форма для предприятий '!G217+'форма для предприятий '!G279+'форма для предприятий '!G338+'форма для предприятий '!G400+'форма для предприятий '!G462 -> 104.882 | H45: ='форма для предприятий '!H36+'форма для предприятий '!H100+'форма для предприятий '!H158+'форма для предприятий '!H217+'форма для предприятий '!H279+'форма для предприятий '!H338+'форма для предприятий '!H400+'форма для предприятий '!H462 -> 199.390 | I45: ='форма для предприятий '!I36+'форма для предприятий '!I100+'форма для предприятий '!I158+'форма для предприятий '!I217+'форма для предприятий '!I279+'форма для предприятий '!I338+'форма для предприятий '!I400+'форма для предприятий '!I462 -> 217.251 | J45: ='форма для предприятий '!J36+'форма для предприятий '!J100+'форма для предприятий '!J158+'форма для предприятий '!J217+'форма для предприятий '!J279+'форма для предприятий '!J338+'форма для предприятий '!J400+'форма для предприятий '!J462 -> 239.447 | K45: ='форма для предприятий '!K36+'форма для предприятий '!K100+'форма для предприятий '!K158+'форма для предприятий '!K217+'форма для предприятий '!K279+'форма для предприятий '!K338+'форма для предприятий '!K400+'форма для предприятий '!K462 -> 259.735
A46: 7.3. | B46: Страховые взносы в Пенсионный фонд, ФСС, ФФОМС, ТФОМС | D46: млн.руб. | E46: ='форма для предприятий '!E37+'форма для предприятий '!E101+'форма для предприятий '!E159+'форма для предприятий '!E218+'форма для предприятий '!E280+'форма для предприятий '!E339+'форма для предприятий '!E401+'форма для предприятий '!E463 -> 44.014 | F46: ='форма для предприятий '!F37+'форма для предприятий '!F101+'форма для предприятий '!F159+'форма для предприятий '!F218+'форма для предприятий '!F280+'форма для предприятий '!F339+'форма для предприятий '!F401+'форма для предприятий '!F463 -> 51.600 | G46: ='форма для предприятий '!G37+'форма для предприятий '!G101+'форма для предприятий '!G159+'форма для предприятий '!G218+'форма для предприятий '!G280+'форма для предприятий '!G339+'форма для предприятий '!G401+'форма для предприятий '!G463 -> 31.360 | H46: ='форма для предприятий '!H37+'форма для предприятий '!H101+'форма для предприятий '!H159+'форма для предприятий '!H218+'форма для предприятий '!H280+'форма для предприятий '!H339+'форма для предприятий '!H401+'форма для предприятий '!H463 -> 59.574 | I46: ='форма для предприятий '!I37+'форма для предприятий '!I101+'форма для предприятий '!I159+'форма для предприятий '!I218+'форма для предприятий '!I280+'форма для предприятий '!I339+'форма для предприятий '!I401+'форма для предприятий '!I463 -> 64.917 | J46: ='форма для предприятий '!J37+'форма для предприятий '!J101+'форма для предприятий '!J159+'форма для предприятий '!J218+'форма для предприятий '!J280+'форма для предприятий '!J339+'форма для предприятий '!J401+'форма для предприятий '!J463 -> 71.565 | K46: ='форма для предприятий '!K37+'форма для предприятий '!K101+'форма для предприятий '!K159+'форма для предприятий '!K218+'форма для предприятий '!K280+'форма для предприятий '!K339+'форма для предприятий '!K401+'форма для предприятий '!K463 -> 77.632
A47: 7.4. | B47: Амортизация (основные средства и нематериальные активы) | D47: млн.руб. | E47: ='форма для предприятий '!E38+'форма для предприятий '!E102+'форма для предприятий '!E160+'форма для предприятий '!E219+'форма для предприятий '!E281+'форма для предприятий '!E340+'форма для предприятий '!E402+'форма для предприятий '!E464 -> 32.656 | F47: ='форма для предприятий '!F38+'форма для предприятий '!F102+'форма для предприятий '!F160+'форма для предприятий '!F219+'форма для предприятий '!F281+'форма для предприятий '!F340+'форма для предприятий '!F402+'форма для предприятий '!F464 -> 34.686 | G47: ='форма для предприятий '!G38+'форма для предприятий '!G102+'форма для предприятий '!G160+'форма для предприятий '!G219+'форма для предприятий '!G281+'форма для предприятий '!G340+'форма для предприятий '!G402+'форма для предприятий '!G464 -> 23.72 | H47: ='форма для предприятий '!H38+'форма для предприятий '!H102+'форма для предприятий '!H160+'форма для предприятий '!H219+'форма для предприятий '!H281+'форма для предприятий '!H340+'форма для предприятий '!H402+'форма для предприятий '!H464 -> 36 | I47: ='форма для предприятий '!I38+'форма для предприятий '!I102+'форма для предприятий '!I160+'форма для предприятий '!I219+'форма для предприятий '!I281+'форма для предприятий '!I340+'форма для предприятий '!I402+'форма для предприятий '!I464 -> 36.5 | J47: ='форма для предприятий '!J38+'форма для предприятий '!J102+'форма для предприятий '!J160+'форма для предприятий '!J219+'форма для предприятий '!J281+'форма для предприятий '!J340+'форма для предприятий '!J402+'форма для предприятий '!J464 -> 36.723 | K47: ='форма для предприятий '!K38+'форма для предприятий '!K102+'форма для предприятий '!K160+'форма для предприятий '!K219+'форма для предприятий '!K281+'форма для предприятий '!K340+'форма для предприятий '!K402+'форма для предприятий '!K464 -> 36.577
A48: 7.5. | B48: Налоги и сборы, включаемые в себестоимость продукции (работ, услуг) | D48: млн. руб. | E48: ='форма для предприятий '!E39+'форма для предприятий '!E103+'форма для предприятий '!E161+'форма для предприятий '!E220+'форма для предприятий '!E282+'форма для предприятий '!E341+'форма для предприятий '!E403+'форма для предприятий '!E465 -> 10.42 | F48: ='форма для предприятий '!F39+'форма для предприятий '!F103+'форма для предприятий '!F161+'форма для предприятий '!F220+'форма для предприятий '!F282+'форма для предприятий '!F341+'форма для предприятий '!F403+'форма для предприятий '!F465 -> 16.726 | G48: ='форма для предприятий '!G39+'форма для предприятий '!G103+'форма для предприятий '!G161+'форма для предприятий '!G220+'форма для предприятий '!G282+'форма для предприятий '!G341+'форма для предприятий '!G403+'форма для предприятий '!G465 -> 15.132 | H48: ='форма для предприятий '!H39+'форма для предприятий '!H103+'форма для предприятий '!H161+'форма для предприятий '!H220+'форма для предприятий '!H282+'форма для предприятий '!H341+'форма для предприятий '!H403+'форма для предприятий '!H465 -> 30.228 | I48: ='форма для предприятий '!I39+'форма для предприятий '!I103+'форма для предприятий '!I161+'форма для предприятий '!I220+'форма для предприятий '!I282+'форма для предприятий '!I341+'форма для предприятий '!I403+'форма для предприятий '!I465 -> 31.153 | J48: ='форма для предприятий '!J39+'форма для предприятий '!J103+'форма для предприятий '!J161+'форма для предприятий '!J220+'форма для предприятий '!J282+'форма для предприятий '!J341+'форма для предприятий '!J403+'форма для предприятий '!J465 -> 31.708 | K48: ='форма для предприятий '!K39+'форма для предприятий '!K103+'форма для предприятий '!K161+'форма для предприятий '!K220+'форма для предприятий '!K282+'форма для предприятий '!K341+'форма для предприятий '!K403+'форма для предприятий '!K465 -> 32.374
A49: 7.6. | B49: Прочие расходы | D49: млн. руб. | E49: ='форма для предприятий '!E40+'форма для предприятий '!E104+'форма для предприятий '!E162+'форма для предприятий '!E221+'форма для предприятий '!E283+'форма для предприятий '!E342+'форма для предприятий '!E404+'форма для предприятий '!E465 -> 49.297 | F49: ='форма для предприятий '!F40+'форма для предприятий '!F104+'форма для предприятий '!F162+'форма для предприятий '!F221+'форма для предприятий '!F283+'форма для предприятий '!F342+'форма для предприятий '!F404+'форма для предприятий '!F465 -> 96.45 | G49: ='форма для предприятий '!G40+'форма для предприятий '!G104+'форма для предприятий '!G162+'форма для предприятий '!G221+'форма для предприятий '!G283+'форма для предприятий '!G342+'форма для предприятий '!G404+'форма для предприятий '!G465 -> 39.47 | H49: ='форма для предприятий '!H40+'форма для предприятий '!H104+'форма для предприятий '!H162+'форма для предприятий '!H221+'форма для предприятий '!H283+'форма для предприятий '!H342+'форма для предприятий '!H404+'форма для предприятий '!H465 -> 78.01 | I49: ='форма для предприятий '!I40+'форма для предприятий '!I104+'форма для предприятий '!I162+'форма для предприятий '!I221+'форма для предприятий '!I283+'форма для предприятий '!I342+'форма для предприятий '!I404+'форма для предприятий '!I465 -> 81.454 | J49: ='форма для предприятий '!J40+'форма для предприятий '!J104+'форма для предприятий '!J162+'форма для предприятий '!J221+'форма для предприятий '!J283+'форма для предприятий '!J342+'форма для предприятий '!J404+'форма для предприятий '!J465 -> 82.716 | K49: ='форма для предприятий '!K40+'форма для предприятий '!K104+'форма для предприятий '!K162+'форма для предприятий '!K221+'форма для предприятий '!K283+'форма для предприятий '!K342+'форма для предприятий '!K404+'форма для предприятий '!K465 -> 84.596
A50: 8. | B50: Наличие основных фондов на конец года по полной учетной стоимости | D50: млн. руб. | E50: ='форма для предприятий '!E42+'форма для предприятий '!E106+'форма для предприятий '!E164+'форма для предприятий '!E223+'форма для предприятий '!E285+'форма для предприятий '!E344+'форма для предприятий '!E406+'форма для предприятий '!E468 -> 715.09 | F50: ='форма для предприятий '!F42+'форма для предприятий '!F106+'форма для предприятий '!F164+'форма для предприятий '!F223+'форма для предприятий '!F285+'форма для предприятий '!F344+'форма для предприятий '!F406+'форма для предприятий '!F468 -> 718.58 | G50: ='форма для предприятий '!G42+'форма для предприятий '!G106+'форма для предприятий '!G164+'форма для предприятий '!G223+'форма для предприятий '!G285+'форма для предприятий '!G344+'форма для предприятий '!G406+'форма для предприятий '!G468 -> 768.98 | H50: ='форма для предприятий '!H42+'форма для предприятий '!H106+'форма для предприятий '!H164+'форма для предприятий '!H223+'форма для предприятий '!H285+'форма для предприятий '!H344+'форма для предприятий '!H406+'форма для предприятий '!H468 -> 808.08 | I50: ='форма для предприятий '!I42+'форма для предприятий '!I106+'форма для предприятий '!I164+'форма для предприятий '!I223+'форма для предприятий '!I285+'форма для предприятий '!I344+'форма для предприятий '!I406+'форма для предприятий '!I468 -> 808.08 | J50: ='форма для предприятий '!J42+'форма для предприятий '!J106+'форма для предприятий '!J164+'форма для предприятий '!J223+'форма для предприятий '!J285+'форма для предприятий '!J344+'форма для предприятий '!J406+'форма для предприятий '!J468 -> 807.78 | K50: ='форма для предприятий '!K42+'форма для предприятий '!K106+'форма для предприятий '!K164+'форма для предприятий '!K223+'форма для предприятий '!K285+'форма для предприятий '!K344+'форма для предприятий '!K406+'форма для предприятий '!K468 -> 812.78
A51: 9. | B51: Наличие основных фондов на конец года по остаточной балансовой стоимости | D51: млн. руб. | E51: ='форма для предприятий '!E43+'форма для предприятий '!E107+'форма для предприятий '!E165+'форма для предприятий '!E224+'форма для предприятий '!E286+'форма для предприятий '!E345+'форма для предприятий '!E407+'форма для предприятий '!E469 -> 339.6 | F51: ='форма для предприятий '!F43+'форма для предприятий '!F107+'форма для предприятий '!F165+'форма для предприятий '!F224+'форма для предприятий '!F286+'форма для предприятий '!F345+'форма для предприятий '!F407+'форма для предприятий '!F469 -> 333.001 | G51: ='форма для предприятий '!G43+'форма для предприятий '!G107+'форма для предприятий '!G165+'форма для предприятий '!G224+'форма для предприятий '!G286+'форма для предприятий '!G345+'форма для предприятий '!G407+'форма для предприятий '!G469 -> 366.877 | H51: ='форма для предприятий '!H43+'форма для предприятий '!H107+'форма для предприятий '!H165+'форма для предприятий '!H224+'форма для предприятий '!H286+'форма для предприятий '!H345+'форма для предприятий '!H407+'форма для предприятий '!H469 -> 377.177 | I51: ='форма для предприятий '!I43+'форма для предприятий '!I107+'форма для предприятий '!I165+'форма для предприятий '!I224+'форма для предприятий '!I286+'форма для предприятий '!I345+'форма для предприятий '!I407+'форма для предприятий '!I469 -> 377.577 | J51: ='форма для предприятий '!J43+'форма для предприятий '!J107+'форма для предприятий '!J165+'форма для предприятий '!J224+'форма для предприятий '!J286+'форма для предприятий '!J345+'форма для предприятий '!J407+'форма для предприятий '!J469 -> 377.177 | K51: ='форма для предприятий '!K43+'форма для предприятий '!K107+'форма для предприятий '!K165+'форма для предприятий '!K224+'форма для предприятий '!K286+'форма для предприятий '!K345+'форма для предприятий '!K407+'форма для предприятий '!K469 -> 380.277
A52: 10. | B52: Среднегодовая остаточная стоимость основных средств (налоговая база) | D52: млн. руб. | E52: ='форма для предприятий '!E44+'форма для предприятий '!E108+'форма для предприятий '!E166+'форма для предприятий '!E225+'форма для предприятий '!E287+'форма для предприятий '!E346+'форма для предприятий '!E408+'форма для предприятий '!E470 -> 309.531 | F52: ='форма для предприятий '!F44+'форма для предприятий '!F108+'форма для предприятий '!F166+'форма для предприятий '!F225+'форма для предприятий '!F287+'форма для предприятий '!F346+'форма для предприятий '!F408+'форма для предприятий '!F470 -> 321.423 | G52: ='форма для предприятий '!G44+'форма для предприятий '!G108+'форма для предприятий '!G166+'форма для предприятий '!G225+'форма для предприятий '!G287+'форма для предприятий '!G346+'форма для предприятий '!G408+'форма для предприятий '!G470 -> 297.701 | H52: ='форма для предприятий '!H44+'форма для предприятий '!H108+'форма для предприятий '!H166+'форма для предприятий '!H225+'форма для предприятий '!H287+'форма для предприятий '!H346+'форма для предприятий '!H408+'форма для предприятий '!H470 -> 333.245 | I52: ='форма для предприятий '!I44+'форма для предприятий '!I108+'форма для предприятий '!I166+'форма для предприятий '!I225+'форма для предприятий '!I287+'форма для предприятий '!I346+'форма для предприятий '!I408+'форма для предприятий '!I470 -> 331.145 | J52: ='форма для предприятий '!J44+'форма для предприятий '!J108+'форма для предприятий '!J166+'форма для предприятий '!J225+'форма для предприятий '!J287+'форма для предприятий '!J346+'форма для предприятий '!J408+'форма для предприятий '!J470 -> 331.145 | K52: ='форма для предприятий '!K44+'форма для предприятий '!K108+'форма для предприятий '!K166+'форма для предприятий '!K225+'форма для предприятий '!K287+'форма для предприятий '!K346+'форма для предприятий '!K408+'форма для предприятий '!K470 -> 336.345
A53: 11. | B53: Производство основных видов промышленной продукции | D53: в соответ- ствующих натур.ед. измер.
B54: - семечки жареные | D54: тн. | E54: ='форма для предприятий '!E47 -> 3131.2 | F54: ='форма для предприятий '!F47 -> 2672.9 | G54: ='форма для предприятий '!G47 -> 1533.4 | H54: ='форма для предприятий '!H47 -> 2730 | I54: ='форма для предприятий '!I47 -> 2780 | J54: ='форма для предприятий '!J47 -> 2860 | K54: ='форма для предприятий '!K47 -> 2980
B55: - арахис | D55: тн. | E55: ='форма для предприятий '!E48 -> 13 | F55: ='форма для предприятий '!F48 -> 13 | G55: ='форма для предприятий '!G48 -> 4.5 | H55: ='форма для предприятий '!H48 -> 9 | I55: ='форма для предприятий '!I48 -> 9.2 | J55: ='форма для предприятий '!J48 -> 9.5 | K55: ='форма для предприятий '!K48 -> 9.9
B56: - фисташки | D56: тн. | E56: ='форма для предприятий '!E49 -> 4.1 | F56: ='форма для предприятий '!F49 -> 1.5 | G56: ='форма для предприятий '!G49 -> 0.5 | H56: ='форма для предприятий '!H49 -> 1 | I56: ='форма для предприятий '!I49 -> 1.63 | J56: ='форма для предприятий '!J49 -> 1.7 | K56: ='форма для предприятий '!K49 -> 1.8
B57: - ядро | D57: тн. | E57: ='форма для предприятий '!E50 -> 484.3 | F57: ='форма для предприятий '!F50 -> 1144.4 | G57: ='форма для предприятий '!G50 -> 694.7 | H57: ='форма для предприятий '!H50 -> 1155 | I57: ='форма для предприятий '!I50 -> 1180 | J57: ='форма для предприятий '!J50 -> 1215 | K57: ='форма для предприятий '!K50 -> 1280
B58: - семечки тыквенные | D58: тн. | E58: ='форма для предприятий '!E51 -> 9.9 | F58: ='форма для предприятий '!F51 -> 6.8 | G58: ='форма для предприятий '!G51 -> 2.6 | H58: ='форма для предприятий '!H51 -> 6.9 | I58: ='форма для предприятий '!I51 -> 7 | J58: ='форма для предприятий '!J51 -> 7.15 | K58: ='форма для предприятий '!K51 -> 7.5
B59: -халва | D59: тн. | E59: ='форма для предприятий '!E52 -> 33.4 | F59: ='форма для предприятий '!F52 -> 107.7 | G59: ='форма для предприятий '!G52 -> 44.6 | H59: ='форма для предприятий '!H52 -> 90 | I59: ='форма для предприятий '!I52 -> 92 | J59: ='форма для предприятий '!J52 -> 95 | K59: ='форма для предприятий '!K52 -> 100
B60: - семечки с арахисом | D60: тн. | E60: ='форма для предприятий '!E53 -> 0 | F60: ='форма для предприятий '!F53 -> 3.3 | G60: ='форма для предприятий '!G53 -> 8 | H60: ='форма для предприятий '!H53 -> 16 | I60: ='форма для предприятий '!I53 -> 16.3 | J60: ='форма для предприятий '!J53 -> 17 | K60: ='форма для предприятий '!K53 -> 18
B61: - крем-халва | D61: тн. | E61: ='форма для предприятий '!E54 -> 0 | F61: ='форма для предприятий '!F54 -> 0 | G61: ='форма для предприятий '!G54 -> 145.6 | H61: ='форма для предприятий '!H54 -> 290 | I61: ='форма для предприятий '!I54 -> 300 | J61: ='форма для предприятий '!J54 -> 310 | K61: ='форма для предприятий '!K54 -> 325
B62: -производство масла растительного | D62: тн. | E62: ='форма для предприятий '!E111 -> 2133 | F62: ='форма для предприятий '!F111 -> 2494 | G62: ='форма для предприятий '!G111 -> 1170 | H62: ='форма для предприятий '!H111 -> 2620 | I62: ='форма для предприятий '!I111 -> 2800 | J62: ='форма для предприятий '!J111 -> 3000 | K62: ='форма для предприятий '!K111 -> 3200
B63: -переработано молока | D63: тн. | E63: ='форма для предприятий '!E169 -> 13297 | F63: ='форма для предприятий '!F169 -> 19905.5 | G63: ='форма для предприятий '!G169 -> 10347.8 | H63: ='форма для предприятий '!H169 -> 20105 | I63: ='форма для предприятий '!I169 -> 21110 | J63: ='форма для предприятий '!J169 -> 21954 | K63: ='форма для предприятий '!K169 -> 23050
B64: - производство хлеба и хлебобулочных изделий | D64: тн. | E64: ='форма для предприятий '!E228 -> 476.6 | F64: ='форма для предприятий '!F228 -> 376 | G64: ='форма для предприятий '!G228 -> 149.2 | H64: ='форма для предприятий '!H228 -> 380 | I64: ='форма для предприятий '!I228 -> 380 | J64: ='форма для предприятий '!J228 -> 380 | K64: ='форма для предприятий '!K228 -> 380
B65: - производство кондитерских изделий | D65: тн. | E65: ='форма для предприятий '!E229 -> 32.7 | F65: ='форма для предприятий '!F229 -> 21.9 | G65: ='форма для предприятий '!G229 -> 8.98 | H65: ='форма для предприятий '!H229 -> 23 | I65: ='форма для предприятий '!I229 -> 26 | J65: ='форма для предприятий '!J229 -> 30 | K65: ='форма для предприятий '!K229 -> 32
B66: - производство машин и оборудования | D66: млн руб. | E66: ='форма для предприятий '!E290 -> 10.665 | F66: ='форма для предприятий '!F290 -> 16.6633 | G66: ='форма для предприятий '!G290 -> 10.292 | H66: ='форма для предприятий '!H290 -> 20.584 | I66: ='форма для предприятий '!I290 -> 21.201 | J66: ='форма для предприятий '!J290 -> 22.26 | K66: ='форма для предприятий '!K290 -> 23.595
B67: - камень строительный | D67: тн. | E67: ='форма для предприятий '!E349 -> 92.3 | F67: ='форма для предприятий '!F349 -> 398 | G67: ='форма для предприятий '!G349 -> 289.7 | H67: ='форма для предприятий '!H349 -> 508 | I67: ='форма для предприятий '!I349 -> 550 | J67: ='форма для предприятий '!J349 -> 600 | K67: ='форма для предприятий '!K349 -> 650
B68: - нерудные материалы | D68: тн. | E68: ='форма для предприятий '!E411 -> 225.7 | F68: ='форма для предприятий '!F411 -> 387.3 | G68: ='форма для предприятий '!G411 -> 254.5 | H68: ='форма для предприятий '!H411 -> 508 | I68: ='форма для предприятий '!I411 -> 550 | J68: ='форма для предприятий '!J411 -> 600 | K68: ='форма для предприятий '!K411 -> 650
B69: - распределение воды | D69: тыс. м. куб. | E69: ='форма для предприятий '!E473 -> 634.9 | F69: ='форма для предприятий '!F473 -> 677.3 | G69: ='форма для предприятий '!G473 -> 365.8 | H69: ='форма для предприятий '!H473 -> 648.065 | I69: ='форма для предприятий '!I473 -> 654.55 | J69: ='форма для предприятий '!J473 -> 667.641 | K69: ='форма для предприятий '!K473 -> 687.67
B70: - производство пара и горячей воды | D70: тыс. Гкалл | E70: ='форма для предприятий '!E170+'форма для предприятий '!E474 -> 16.9 | F70: ='форма для предприятий '!F170+'форма для предприятий '!F474 -> 14.56 | G70: ='форма для предприятий '!G170+'форма для предприятий '!G474 -> 8.4 | H70: ='форма для предприятий '!H170+'форма для предприятий '!H474 -> 15.1 | I70: ='форма для предприятий '!I170+'форма для предприятий '!I474 -> 15.6 | J70: ='форма для предприятий '!J170+'форма для предприятий '!J474 -> 15.9 | K70: ='форма для предприятий '!K170+'форма для предприятий '!K474 -> 16.2
B71: - удаление и обработка сточных вод | D71: тыс. м. куб. | E71: ='форма для предприятий '!E475 -> 292.6 | F71: ='форма для предприятий '!F475 -> 301.88 | G71: ='форма для предприятий '!G475 -> 169.4 | H71: ='форма для предприятий '!H475 -> 325.37 | I71: ='форма для предприятий '!I475 -> 329.6 | J71: ='форма для предприятий '!J475 -> 336.192 | K71: ='форма для предприятий '!K475 -> 353.01
B72: - передача пара и горячей воды | D72: тыс. Гкалл | E72: ='форма для предприятий '!E476 -> 2.2 | F72: ='форма для предприятий '!F476 -> 5.03 | G72: ='форма для предприятий '!G476 -> 2.4 | H72: ='форма для предприятий '!H476 -> 5.242 | I72: ='форма для предприятий '!I476 -> 5.4 | J72: ='форма для предприятий '!J476 -> 5.508 | K72: ='форма для предприятий '!K476 -> 5.61
A74: 12. | B74: Инвестиции в основной капитал, всего | D74: млн.руб. | E74: ='форма для предприятий '!E55+'форма для предприятий '!E114+'форма для предприятий '!E175+'форма для предприятий '!E234+'форма для предприятий '!E293+'форма для предприятий '!E355+'форма для предприятий '!E417+'форма для предприятий '!E479 -> 27.414 | F74: ='форма для предприятий '!F55+'форма для предприятий '!F114+'форма для предприятий '!F175+'форма для предприятий '!F234+'форма для предприятий '!F293+'форма для предприятий '!F355+'форма для предприятий '!F417+'форма для предприятий '!F479 -> 36.4008 | G74: ='форма для предприятий '!G55+'форма для предприятий '!G114+'форма для предприятий '!G175+'форма для предприятий '!G234+'форма для предприятий '!G293+'форма для предприятий '!G355+'форма для предприятий '!G417+'форма для предприятий '!G479 -> 42.334 | H74: ='форма для предприятий '!H55+'форма для предприятий '!H114+'форма для предприятий '!H175+'форма для предприятий '!H234+'форма для предприятий '!H293+'форма для предприятий '!H355+'форма для предприятий '!H417+'форма для предприятий '!H479 -> 68.731 | I74: ='форма для предприятий '!I55+'форма для предприятий '!I114+'форма для предприятий '!I175+'форма для предприятий '!I234+'форма для предприятий '!I293+'форма для предприятий '!I355+'форма для предприятий '!I417+'форма для предприятий '!I479 -> 45.774 | J74: ='форма для предприятий '!J55+'форма для предприятий '!J114+'форма для предприятий '!J175+'форма для предприятий '!J234+'форма для предприятий '!J293+'форма для предприятий '!J355+'форма для предприятий '!J417+'форма для предприятий '!J479 -> 47.788 | K74: ='форма для предприятий '!K55+'форма для предприятий '!K114+'форма для предприятий '!K175+'форма для предприятий '!K234+'форма для предприятий '!K293+'форма для предприятий '!K355+'форма для предприятий '!K417+'форма для предприятий '!K479 -> 49.749
B75: в том числе по источникам:
B76: собственные средства | D76: млн.руб. | E76: ='форма для предприятий '!E57+'форма для предприятий '!E116+'форма для предприятий '!E177+'форма для предприятий '!E236+'форма для предприятий '!E295+'форма для предприятий '!E357+'форма для предприятий '!E419+'форма для предприятий '!E481 -> 27.414 | F76: ='форма для предприятий '!F57+'форма для предприятий '!F116+'форма для предприятий '!F177+'форма для предприятий '!F236+'форма для предприятий '!F295+'форма для предприятий '!F357+'форма для предприятий '!F419+'форма для предприятий '!F481 -> 36.4008 | G76: ='форма для предприятий '!G57+'форма для предприятий '!G116+'форма для предприятий '!G177+'форма для предприятий '!G236+'форма для предприятий '!G295+'форма для предприятий '!G357+'форма для предприятий '!G419+'форма для предприятий '!G481 -> 42.334 | H76: ='форма для предприятий '!H57+'форма для предприятий '!H116+'форма для предприятий '!H177+'форма для предприятий '!H236+'форма для предприятий '!H295+'форма для предприятий '!H357+'форма для предприятий '!H419+'форма для предприятий '!H481 -> 68.731 | I76: ='форма для предприятий '!I57+'форма для предприятий '!I116+'форма для предприятий '!I177+'форма для предприятий '!I236+'форма для предприятий '!I295+'форма для предприятий '!I357+'форма для предприятий '!I419+'форма для предприятий '!I481 -> 45.774 | J76: ='форма для предприятий '!J57+'форма для предприятий '!J116+'форма для предприятий '!J177+'форма для предприятий '!J236+'форма для предприятий '!J295+'форма для предприятий '!J357+'форма для предприятий '!J419+'форма для предприятий '!J481 -> 47.788 | K76: ='форма для предприятий '!K57+'форма для предприятий '!K116+'форма для предприятий '!K177+'форма для предприятий '!K236+'форма для предприятий '!K295+'форма для предприятий '!K357+'форма для предприятий '!K419+'форма для предприятий '!K481 -> 49.749
B77: привлеченные средства | D77: млн.руб. | E77: ='форма для предприятий '!E58+'форма для предприятий '!E117+'форма для предприятий '!E178+'форма для предприятий '!E237+'форма для предприятий '!E296+'форма для предприятий '!E358+'форма для предприятий '!E420+'форма для предприятий '!E482 -> 0 | F77: ='форма для предприятий '!F58+'форма для предприятий '!F117+'форма для предприятий '!F178+'форма для предприятий '!F237+'форма для предприятий '!F296+'форма для предприятий '!F358+'форма для предприятий '!F420+'форма для предприятий '!F482 -> 0 | G77: ='форма для предприятий '!G58+'форма для предприятий '!G117+'форма для предприятий '!G178+'форма для предприятий '!G237+'форма для предприятий '!G296+'форма для предприятий '!G358+'форма для предприятий '!G420+'форма для предприятий '!G482 -> 0 | H77: ='форма для предприятий '!H58+'форма для предприятий '!H117+'форма для предприятий '!H178+'форма для предприятий '!H237+'форма для предприятий '!H296+'форма для предприятий '!H358+'форма для предприятий '!H420+'форма для предприятий '!H482 -> 0 | I77: ='форма для предприятий '!I58+'форма для предприятий '!I117+'форма для предприятий '!I178+'форма для предприятий '!I237+'форма для предприятий '!I296+'форма для предприятий '!I358+'форма для предприятий '!I420+'форма для предприятий '!I482 -> 0 | J77: ='форма для предприятий '!J58+'форма для предприятий '!J117+'форма для предприятий '!J178+'форма для предприятий '!J237+'форма для предприятий '!J296+'форма для предприятий '!J358+'форма для предприятий '!J420+'форма для предприятий '!J482 -> 0 | K77: ='форма для предприятий '!K58+'форма для предприятий '!K117+'форма для предприятий '!K178+'форма для предприятий '!K237+'форма для предприятий '!K296+'форма для предприятий '!K358+'форма для предприятий '!K420+'форма для предприятий '!K482 -> 0
B78: из них
B79: кредиты банков | D79: млн.руб. | E79: ='форма для предприятий '!E60+'форма для предприятий '!E119+'форма для предприятий '!E180+'форма для предприятий '!E239+'форма для предприятий '!E298+'форма для предприятий '!E360+'форма для предприятий '!E422+'форма для предприятий '!E484 -> 0 | F79: ='форма для предприятий '!F60+'форма для предприятий '!F119+'форма для предприятий '!F180+'форма для предприятий '!F239+'форма для предприятий '!F298+'форма для предприятий '!F360+'форма для предприятий '!F422+'форма для предприятий '!F484 -> 0 | G79: ='форма для предприятий '!G60+'форма для предприятий '!G119+'форма для предприятий '!G180+'форма для предприятий '!G239+'форма для предприятий '!G298+'форма для предприятий '!G360+'форма для предприятий '!G422+'форма для предприятий '!G484 -> 0 | H79: ='форма для предприятий '!H60+'форма для предприятий '!H119+'форма для предприятий '!H180+'форма для предприятий '!H239+'форма для предприятий '!H298+'форма для предприятий '!H360+'форма для предприятий '!H422+'форма для предприятий '!H484 -> 0 | I79: ='форма для предприятий '!I60+'форма для предприятий '!I119+'форма для предприятий '!I180+'форма для предприятий '!I239+'форма для предприятий '!I298+'форма для предприятий '!I360+'форма для предприятий '!I422+'форма для предприятий '!I484 -> 0 | J79: ='форма для предприятий '!J60+'форма для предприятий '!J119+'форма для предприятий '!J180+'форма для предприятий '!J239+'форма для предприятий '!J298+'форма для предприятий '!J360+'форма для предприятий '!J422+'форма для предприятий '!J484 -> 0 | K79: ='форма для предприятий '!K60+'форма для предприятий '!K119+'форма для предприятий '!K180+'форма для предприятий '!K239+'форма для предприятий '!K298+'форма для предприятий '!K360+'форма для предприятий '!K422+'форма для предприятий '!K484 -> 0
B80: федеральный бюджет | D80: млн.руб. | E80: ='форма для предприятий '!E61+'форма для предприятий '!E120+'форма для предприятий '!E181+'форма для предприятий '!E240+'форма для предприятий '!E299+'форма для предприятий '!E361+'форма для предприятий '!E423+'форма для предприятий '!E485 -> 0 | F80: ='форма для предприятий '!F61+'форма для предприятий '!F120+'форма для предприятий '!F181+'форма для предприятий '!F240+'форма для предприятий '!F299+'форма для предприятий '!F361+'форма для предприятий '!F423+'форма для предприятий '!F485 -> 0 | G80: ='форма для предприятий '!G61+'форма для предприятий '!G120+'форма для предприятий '!G181+'форма для предприятий '!G240+'форма для предприятий '!G299+'форма для предприятий '!G361+'форма для предприятий '!G423+'форма для предприятий '!G485 -> 0 | H80: ='форма для предприятий '!H61+'форма для предприятий '!H120+'форма для предприятий '!H181+'форма для предприятий '!H240+'форма для предприятий '!H299+'форма для предприятий '!H361+'форма для предприятий '!H423+'форма для предприятий '!H485 -> 0 | I80: ='форма для предприятий '!I61+'форма для предприятий '!I120+'форма для предприятий '!I181+'форма для предприятий '!I240+'форма для предприятий '!I299+'форма для предприятий '!I361+'форма для предприятий '!I423+'форма для предприятий '!I485 -> 0 | J80: ='форма для предприятий '!J61+'форма для предприятий '!J120+'форма для предприятий '!J181+'форма для предприятий '!J240+'форма для предприятий '!J299+'форма для предприятий '!J361+'форма для предприятий '!J423+'форма для предприятий '!J485 -> 0 | K80: ='форма для предприятий '!K61+'форма для предприятий '!K120+'форма для предприятий '!K181+'форма для предприятий '!K240+'форма для предприятий '!K299+'форма для предприятий '!K361+'форма для предприятий '!K423+'форма для предприятий '!K485 -> 0
B81: бюджет области | D81: млн.руб. | E81: ='форма для предприятий '!E62+'форма для предприятий '!E121+'форма для предприятий '!E182+'форма для предприятий '!E241+'форма для предприятий '!E300+'форма для предприятий '!E362+'форма для предприятий '!E424+'форма для предприятий '!E486 -> 0 | F81: ='форма для предприятий '!F62+'форма для предприятий '!F121+'форма для предприятий '!F182+'форма для предприятий '!F241+'форма для предприятий '!F300+'форма для предприятий '!F362+'форма для предприятий '!F424+'форма для предприятий '!F486 -> 0 | G81: ='форма для предприятий '!G62+'форма для предприятий '!G121+'форма для предприятий '!G182+'форма для предприятий '!G241+'форма для предприятий '!G300+'форма для предприятий '!G362+'форма для предприятий '!G424+'форма для предприятий '!G486 -> 0 | H81: ='форма для предприятий '!H62+'форма для предприятий '!H121+'форма для предприятий '!H182+'форма для предприятий '!H241+'форма для предприятий '!H300+'форма для предприятий '!H362+'форма для предприятий '!H424+'форма для предприятий '!H486 -> 0 | I81: ='форма для предприятий '!I62+'форма для предприятий '!I121+'форма для предприятий '!I182+'форма для предприятий '!I241+'форма для предприятий '!I300+'форма для предприятий '!I362+'форма для предприятий '!I424+'форма для предприятий '!I486 -> 0 | J81: ='форма для предприятий '!J62+'форма для предприятий '!J121+'форма для предприятий '!J182+'форма для предприятий '!J241+'форма для предприятий '!J300+'форма для предприятий '!J362+'форма для предприятий '!J424+'форма для предприятий '!J486 -> 0 | K81: ='форма для предприятий '!K62+'форма для предприятий '!K121+'форма для предприятий '!K182+'форма для предприятий '!K241+'форма для предприятий '!K300+'форма для предприятий '!K362+'форма для предприятий '!K424+'форма для предприятий '!K486 -> 0
B82: прочие | D82: млн.руб. | E82: ='форма для предприятий '!E63+'форма для предприятий '!E122+'форма для предприятий '!E183+'форма для предприятий '!E242+'форма для предприятий '!E301+'форма для предприятий '!E363+'форма для предприятий '!E425+'форма для предприятий '!E487 -> 0 | F82: ='форма для предприятий '!F63+'форма для предприятий '!F122+'форма для предприятий '!F183+'форма для предприятий '!F242+'форма для предприятий '!F301+'форма для предприятий '!F363+'форма для предприятий '!F425+'форма для предприятий '!F487 -> 0 | G82: ='форма для предприятий '!G63+'форма для предприятий '!G122+'форма для предприятий '!G183+'форма для предприятий '!G242+'форма для предприятий '!G301+'форма для предприятий '!G363+'форма для предприятий '!G425+'форма для предприятий '!G487 -> 0 | H82: ='форма для предприятий '!H63+'форма для предприятий '!H122+'форма для предприятий '!H183+'форма для предприятий '!H242+'форма для предприятий '!H301+'форма для предприятий '!H363+'форма для предприятий '!H425+'форма для предприятий '!H487 -> 0 | I82: ='форма для предприятий '!I63+'форма для предприятий '!I122+'форма для предприятий '!I183+'форма для предприятий '!I242+'форма для предприятий '!I301+'форма для предприятий '!I363+'форма для предприятий '!I425+'форма для предприятий '!I487 -> 0 | J82: ='форма для предприятий '!J63+'форма для предприятий '!J122+'форма для предприятий '!J183+'форма для предприятий '!J242+'форма для предприятий '!J301+'форма для предприятий '!J363+'форма для предприятий '!J425+'форма для предприятий '!J487 -> 0 | K82: ='форма для предприятий '!K63+'форма для предприятий '!K122+'форма для предприятий '!K183+'форма для предприятий '!K242+'форма для предприятий '!K301+'форма для предприятий '!K363+'форма для предприятий '!K425+'форма для предприятий '!K487 -> 0
A84: Примечания: *) Сведения предоставляются по данной форме сводные по муниципальному району (городскому округу) .
B85: **) | C85: Формируется как сумма оборотов организаций, относящихся по основному виду деятельности к промышленным.
C87: Заместитель главы администрации Богучарского муниципального района ___________________А.Ю.Кожанов
C89: Исполнитель: специалист 1 категории экономического отдела _________________ З.П.Колесникова

Sheet расчет прибыли-сводная
G1: Форма № 6
A2: Прогноз*
A3: прибыли (от промышленных видов деятельности) на 2018 год и на период до 2020 года
A4: по Богучарскому муниципальному району
H5: (млн.руб.)
A6: Показатели | B6: отчет | D6: 2017г. | F6: прогноз
B7: 2015г. | C7: 2016г. | D7: январь-июнь, отчет | E7: январь-декабрь, оценка | F7: 2018г. | G7: 2019г. | H7: 2020г.
A8: 1. Выручка (за минусом НДС, акцизов) | B8: ='расчет прибыли по предприятиям'!B10+'расчет прибыли по предприятиям'!B26+'расчет прибыли по предприятиям'!B42+'расчет прибыли по предприятиям'!B58+'расчет прибыли по предприятиям'!B74+'расчет прибыли по предприятиям'!B90+'расчет прибыли по предприятиям'!B106+'расчет прибыли по предприятиям'!B122 -> 871.681 | C8: ='расчет прибыли по предприятиям'!C10+'расчет прибыли по предприятиям'!C26+'расчет прибыли по предприятиям'!C42+'расчет прибыли по предприятиям'!C58+'расчет прибыли по предприятиям'!C74+'расчет прибыли по предприятиям'!C90+'расчет прибыли по предприятиям'!C106+'расчет прибыли по предприятиям'!C122 -> 1104.992 | D8: ='расчет прибыли по предприятиям'!D10+'расчет прибыли по предприятиям'!D26+'расчет прибыли по предприятиям'!D42+'расчет прибыли по предприятиям'!D58+'расчет прибыли по предприятиям'!D74+'расчет прибыли по предприятиям'!D90+'расчет прибыли по предприятиям'!D106+'расчет прибыли по предприятиям'!D122 -> 700.865 | E8: ='расчет прибыли по предприятиям'!E10+'расчет прибыли по предприятиям'!E26+'расчет прибыли по предприятиям'!E42+'расчет прибыли по предприятиям'!E58+'расчет прибыли по предприятиям'!E74+'расчет прибыли по предприятиям'!E90+'расчет прибыли по предприятиям'!E106+'расчет прибыли по предприятиям'!E122 -> 1363.683 | F8: ='расчет прибыли по предприятиям'!F10+'расчет прибыли по предприятиям'!F26+'расчет прибыли по предприятиям'!F42+'расчет прибыли по предприятиям'!F58+'расчет прибыли по предприятиям'!F74+'расчет прибыли по предприятиям'!F90+'расчет прибыли по предприятиям'!F106+'расчет прибыли по предприятиям'!F122 -> 1457.737 | G8: ='расчет прибыли по предприятиям'!G10+'расчет прибыли по предприятиям'!G26+'расчет прибыли по предприятиям'!G42+'расчет прибыли по предприятиям'!G58+'расчет прибыли по предприятиям'!G74+'расчет прибыли по предприятиям'!G90+'расчет прибыли по предприятиям'!G106+'расчет прибыли по предприятиям'!G122 -> 1565.077 | H8: ='расчет прибыли по предприятиям'!H10+'расчет прибыли по предприятиям'!H26+'расчет прибыли по предприятиям'!H42+'расчет прибыли по предприятиям'!H58+'расчет прибыли по предприятиям'!H74+'расчет прибыли по предприятиям'!H90+'расчет прибыли по предприятиям'!H106+'расчет прибыли по предприятиям'!H122 -> 1693.294
A9: 2. Себестоимость продаж | B9: ='расчет прибыли по предприятиям'!B11+'расчет прибыли по предприятиям'!B27+'расчет прибыли по предприятиям'!B43+'расчет прибыли по предприятиям'!B59+'расчет прибыли по предприятиям'!B75+'расчет прибыли по предприятиям'!B91+'расчет прибыли по предприятиям'!B107+'расчет прибыли по предприятиям'!B123 -> 728.439 | C9: ='расчет прибыли по предприятиям'!C11+'расчет прибыли по предприятиям'!C27+'расчет прибыли по предприятиям'!C43+'расчет прибыли по предприятиям'!C59+'расчет прибыли по предприятиям'!C75+'расчет прибыли по предприятиям'!C91+'расчет прибыли по предприятиям'!C107+'расчет прибыли по предприятиям'!C123 -> 907.972 | D9: ='расчет прибыли по предприятиям'!D11+'расчет прибыли по предприятиям'!D27+'расчет прибыли по предприятиям'!D43+'расчет прибыли по предприятиям'!D59+'расчет прибыли по предприятиям'!D75+'расчет прибыли по предприятиям'!D91+'расчет прибыли по предприятиям'!D107+'расчет прибыли по предприятиям'!D123 -> 593.060 | E9: ='расчет прибыли по предприятиям'!E11+'расчет прибыли по предприятиям'!E27+'расчет прибыли по предприятиям'!E43+'расчет прибыли по предприятиям'!E59+'расчет прибыли по предприятиям'!E75+'расчет прибыли по предприятиям'!E91+'расчет прибыли по предприятиям'!E107+'расчет прибыли по предприятиям'!E123 -> 1126.254 | F9: ='расчет прибыли по предприятиям'!F11+'расчет прибыли по предприятиям'!F27+'расчет прибыли по предприятиям'!F43+'расчет прибыли по предприятиям'!F59+'расчет прибыли по предприятиям'!F75+'расчет прибыли по предприятиям'!F91+'расчет прибыли по предприятиям'!F107+'расчет прибыли по предприятиям'!F123 -> 1154.154 | G9: ='расчет прибыли по предприятиям'!G11+'расчет прибыли по предприятиям'!G27+'расчет прибыли по предприятиям'!G43+'расчет прибыли по предприятиям'!G59+'расчет прибыли по предприятиям'!G75+'расчет прибыли по предприятиям'!G91+'расчет прибыли по предприятиям'!G107+'расчет прибыли по предприятиям'!G123 -> 1189.097 | H9: ='расчет прибыли по предприятиям'!H11+'расчет прибыли по предприятиям'!H27+'расчет прибыли по предприятиям'!H43+'расчет прибыли по предприятиям'!H59+'расчет прибыли по предприятиям'!H75+'расчет прибыли по предприятиям'!H91+'расчет прибыли по предприятиям'!H107+'расчет прибыли по предприятиям'!H123 -> 1231.957
A10: 3. Валовая прибыль | B10: ='расчет прибыли по предприятиям'!B12+'расчет прибыли по предприятиям'!B28+'расчет прибыли по предприятиям'!B44+'расчет прибыли по предприятиям'!B60+'расчет прибыли по предприятиям'!B76+'расчет прибыли по предприятиям'!B92+'расчет прибыли по предприятиям'!B108+'расчет прибыли по предприятиям'!B124 -> 143.243 | C10: ='расчет прибыли по предприятиям'!C12+'расчет прибыли по предприятиям'!C28+'расчет прибыли по предприятиям'!C44+'расчет прибыли по предприятиям'!C60+'расчет прибыли по предприятиям'!C76+'расчет прибыли по предприятиям'!C92+'расчет прибыли по предприятиям'!C108+'расчет прибыли по предприятиям'!C124 -> 197.020 | D10: ='расчет прибыли по предприятиям'!D12+'расчет прибыли по предприятиям'!D28+'расчет прибыли по предприятиям'!D44+'расчет прибыли по предприятиям'!D60+'расчет прибыли по предприятиям'!D76+'расчет прибыли по предприятиям'!D92+'расчет прибыли по предприятиям'!D108+'расчет прибыли по предприятиям'!D124 -> 107.805 | E10: ='расчет прибыли по предприятиям'!E12+'расчет прибыли по предприятиям'!E28+'расчет прибыли по предприятиям'!E44+'расчет прибыли по предприятиям'!E60+'расчет прибыли по предприятиям'!E76+'расчет прибыли по предприятиям'!E92+'расчет прибыли по предприятиям'!E108+'расчет прибыли по предприятиям'!E124 -> 237.429 | F10: ='расчет прибыли по предприятиям'!F12+'расчет прибыли по предприятиям'!F28+'расчет прибыли по предприятиям'!F44+'расчет прибыли по предприятиям'!F60+'расчет прибыли по предприятиям'!F76+'расчет прибыли по предприятиям'!F92+'расчет прибыли по предприятиям'!F108+'расчет прибыли по предприятиям'!F124 -> 303.583 | G10: ='расчет прибыли по предприятиям'!G12+'расчет прибыли по предприятиям'!G28+'расчет прибыли по предприятиям'!G44+'расчет прибыли по предприятиям'!G60+'расчет прибыли по предприятиям'!G76+'расчет прибыли по предприятиям'!G92+'расчет прибыли по предприятиям'!G108+'расчет прибыли по предприятиям'!G124 -> 412.733 | H10: ='расчет прибыли по предприятиям'!H12+'расчет прибыли по предприятиям'!H28+'расчет прибыли по предприятиям'!H44+'расчет прибыли по предприятиям'!H60+'расчет прибыли по предприятиям'!H76+'расчет прибыли по предприятиям'!H92+'расчет прибыли по предприятиям'!H108+'расчет прибыли по предприятиям'!H124 -> 440.300
A11: 4. Коммерческие расходы | B11: ='расчет прибыли по предприятиям'!B13+'расчет прибыли по предприятиям'!B29+'расчет прибыли по предприятиям'!B45+'расчет прибыли по предприятиям'!B61+'расчет прибыли по предприятиям'!B77+'расчет прибыли по предприятиям'!B93+'расчет прибыли по предприятиям'!B109+'расчет прибыли по предприятиям'!B125 -> 31.220 | C11: ='расчет прибыли по предприятиям'!C13+'расчет прибыли по предприятиям'!C29+'расчет прибыли по предприятиям'!C45+'расчет прибыли по предприятиям'!C61+'расчет прибыли по предприятиям'!C77+'расчет прибыли по предприятиям'!C93+'расчет прибыли по предприятиям'!C109+'расчет прибыли по предприятиям'!C125 -> 46.568 | D11: ='расчет прибыли по предприятиям'!D13+'расчет прибыли по предприятиям'!D29+'расчет прибыли по предприятиям'!D45+'расчет прибыли по предприятиям'!D61+'расчет прибыли по предприятиям'!D77+'расчет прибыли по предприятиям'!D93+'расчет прибыли по предприятиям'!D109+'расчет прибыли по предприятиям'!D125 -> 16.700 | E11: ='расчет прибыли по предприятиям'!E13+'расчет прибыли по предприятиям'!E29+'расчет прибыли по предприятиям'!E45+'расчет прибыли по предприятиям'!E61+'расчет прибыли по предприятиям'!E77+'расчет прибыли по предприятиям'!E93+'расчет прибыли по предприятиям'!E109+'расчет прибыли по предприятиям'!E125 -> 30.819 | F11: ='расчет прибыли по предприятиям'!F13+'расчет прибыли по предприятиям'!F29+'расчет прибыли по предприятиям'!F45+'расчет прибыли по предприятиям'!F61+'расчет прибыли по предприятиям'!F77+'расчет прибыли по предприятиям'!F93+'расчет прибыли по предприятиям'!F109+'расчет прибыли по предприятиям'!F125 -> 32.404 | G11: ='расчет прибыли по предприятиям'!G13+'расчет прибыли по предприятиям'!G29+'расчет прибыли по предприятиям'!G45+'расчет прибыли по предприятиям'!G61+'расчет прибыли по предприятиям'!G77+'расчет прибыли по предприятиям'!G93+'расчет прибыли по предприятиям'!G109+'расчет прибыли по предприятиям'!G125 -> 34.012 | H11: ='расчет прибыли по предприятиям'!H13+'расчет прибыли по предприятиям'!H29+'расчет прибыли по предприятиям'!H45+'расчет прибыли по предприятиям'!H61+'расчет прибыли по предприятиям'!H77+'расчет прибыли по предприятиям'!H93+'расчет прибыли по предприятиям'!H109+'расчет прибыли по предприятиям'!H125 -> 34.626
A12: 5. Управленческие расходы | B12: ='расчет прибыли по предприятиям'!B14+'расчет прибыли по предприятиям'!B30+'расчет прибыли по предприятиям'!B46+'расчет прибыли по предприятиям'!B62+'расчет прибыли по предприятиям'!B78+'расчет прибыли по предприятиям'!B94+'расчет прибыли по предприятиям'!B110+'расчет прибыли по предприятиям'!B126 -> 34.280 | C12: ='расчет прибыли по предприятиям'!C14+'расчет прибыли по предприятиям'!C30+'расчет прибыли по предприятиям'!C46+'расчет прибыли по предприятиям'!C62+'расчет прибыли по предприятиям'!C78+'расчет прибыли по предприятиям'!C94+'расчет прибыли по предприятиям'!C110+'расчет прибыли по предприятиям'!C126 -> 31.581 | D12: ='расчет прибыли по предприятиям'!D14+'расчет прибыли по предприятиям'!D30+'расчет прибыли по предприятиям'!D46+'расчет прибыли по предприятиям'!D62+'расчет прибыли по предприятиям'!D78+'расчет прибыли по предприятиям'!D94+'расчет прибыли по предприятиям'!D110+'расчет прибыли по предприятиям'!D126 -> 16.730 | E12: ='расчет прибыли по предприятиям'!E14+'расчет прибыли по предприятиям'!E30+'расчет прибыли по предприятиям'!E46+'расчет прибыли по предприятиям'!E62+'расчет прибыли по предприятиям'!E78+'расчет прибыли по предприятиям'!E94+'расчет прибыли по предприятиям'!E110+'расчет прибыли по предприятиям'!E126 -> 31.161 | F12: ='расчет прибыли по предприятиям'!F14+'расчет прибыли по предприятиям'!F30+'расчет прибыли по предприятиям'!F46+'расчет прибыли по предприятиям'!F62+'расчет прибыли по предприятиям'!F78+'расчет прибыли по предприятиям'!F94+'расчет прибыли по предприятиям'!F110+'расчет прибыли по предприятиям'!F126 -> 33.544 | G12: ='расчет прибыли по предприятиям'!G14+'расчет прибыли по предприятиям'!G30+'расчет прибыли по предприятиям'!G46+'расчет прибыли по предприятиям'!G62+'расчет прибыли по предприятиям'!G78+'расчет прибыли по предприятиям'!G94+'расчет прибыли по предприятиям'!G110+'расчет прибыли по предприятиям'!G126 -> 34.809 | H12: ='расчет прибыли по предприятиям'!H14+'расчет прибыли по предприятиям'!H30+'расчет прибыли по предприятиям'!H46+'расчет прибыли по предприятиям'!H62+'расчет прибыли по предприятиям'!H78+'расчет прибыли по предприятиям'!H94+'расчет прибыли по предприятиям'!H110+'расчет прибыли по предприятиям'!H126 -> 35.080
A13: 6. Прибыль (+), убыток (-) от продаж | B13: ='расчет прибыли по предприятиям'!B15+'расчет прибыли по предприятиям'!B31+'расчет прибыли по предприятиям'!B47+'расчет прибыли по предприятиям'!B63+'расчет прибыли по предприятиям'!B79+'расчет прибыли по предприятиям'!B95+'расчет прибыли по предприятиям'!B111+'расчет прибыли по предприятиям'!B127 -> 90.024 | C13: ='расчет прибыли по предприятиям'!C15+'расчет прибыли по предприятиям'!C31+'расчет прибыли по предприятиям'!C47+'расчет прибыли по предприятиям'!C63+'расчет прибыли по предприятиям'!C79+'расчет прибыли по предприятиям'!C95+'расчет прибыли по предприятиям'!C111+'расчет прибыли по предприятиям'!C127 -> 126.106 | D13: ='расчет прибыли по предприятиям'!D15+'расчет прибыли по предприятиям'!D31+'расчет прибыли по предприятиям'!D47+'расчет прибыли по предприятиям'!D63+'расчет прибыли по предприятиям'!D79+'расчет прибыли по предприятиям'!D95+'расчет прибыли по предприятиям'!D111+'расчет прибыли по предприятиям'!D127 -> 99.678 | E13: ='расчет прибыли по предприятиям'!E15+'расчет прибыли по предприятиям'!E31+'расчет прибыли по предприятиям'!E47+'расчет прибыли по предприятиям'!E63+'расчет прибыли по предприятиям'!E79+'расчет прибыли по предприятиям'!E95+'расчет прибыли по предприятиям'!E111+'расчет прибыли по предприятиям'!E127 -> 167.728 | F13: ='расчет прибыли по предприятиям'!F15+'расчет прибыли по предприятиям'!F31+'расчет прибыли по предприятиям'!F47+'расчет прибыли по предприятиям'!F63+'расчет прибыли по предприятиям'!F79+'расчет прибыли по предприятиям'!F95+'расчет прибыли по предприятиям'!F111+'расчет прибыли по предприятиям'!F127 -> 232.541 | G13: ='расчет прибыли по предприятиям'!G15+'расчет прибыли по предприятиям'!G31+'расчет прибыли по предприятиям'!G47+'расчет прибыли по предприятиям'!G63+'расчет прибыли по предприятиям'!G79+'расчет прибыли по предприятиям'!G95+'расчет прибыли по предприятиям'!G111+'расчет прибыли по предприятиям'!G127 -> 334.080 | H13: ='расчет прибыли по предприятиям'!H15+'расчет прибыли по предприятиям'!H31+'расчет прибыли по предприятиям'!H47+'расчет прибыли по предприятиям'!H63+'расчет прибыли по предприятиям'!H79+'расчет прибыли по предприятиям'!H95+'расчет прибыли по предприятиям'!H111+'расчет прибыли по предприятиям'!H127 -> 358.252
A14: 7. Прибыль (+), убыток (-) до налогообложения | B14: ='расчет прибыли по предприятиям'!B16+'расчет прибыли по предприятиям'!B32+'расчет прибыли по предприятиям'!B48+'расчет прибыли по предприятиям'!B64+'расчет прибыли по предприятиям'!B80+'расчет прибыли по предприятиям'!B96+'расчет прибыли по предприятиям'!B112+'расчет прибыли по предприятиям'!B128 -> 57.854 | C14: ='расчет прибыли по предприятиям'!C16+'расчет прибыли по предприятиям'!C32+'расчет прибыли по предприятиям'!C48+'расчет прибыли по предприятиям'!C64+'расчет прибыли по предприятиям'!C80+'расчет прибыли по предприятиям'!C96+'расчет прибыли по предприятиям'!C112+'расчет прибыли по предприятиям'!C128 -> 91.498 | D14: ='расчет прибыли по предприятиям'!D16+'расчет прибыли по предприятиям'!D32+'расчет прибыли по предприятиям'!D48+'расчет прибыли по предприятиям'!D64+'расчет прибыли по предприятиям'!D80+'расчет прибыли по предприятиям'!D96+'расчет прибыли по предприятиям'!D112+'расчет прибыли по предприятиям'!D128 -> 58.342 | E14: ='расчет прибыли по предприятиям'!E16+'расчет прибыли по предприятиям'!E32+'расчет прибыли по предприятиям'!E48+'расчет прибыли по предприятиям'!E64+'расчет прибыли по предприятиям'!E80+'расчет прибыли по предприятиям'!E96+'расчет прибыли по предприятиям'!E112+'расчет прибыли по предприятиям'!E128 -> 131.927 | F14: ='расчет прибыли по предприятиям'!F16+'расчет прибыли по предприятиям'!F32+'расчет прибыли по предприятиям'!F48+'расчет прибыли по предприятиям'!F64+'расчет прибыли по предприятиям'!F80+'расчет прибыли по предприятиям'!F96+'расчет прибыли по предприятиям'!F112+'расчет прибыли по предприятиям'!F128 -> 217.593 | G14: ='расчет прибыли по предприятиям'!G16+'расчет прибыли по предприятиям'!G32+'расчет прибыли по предприятиям'!G48+'расчет прибыли по предприятиям'!G64+'расчет прибыли по предприятиям'!G80+'расчет прибыли по предприятиям'!G96+'расчет прибыли по предприятиям'!G112+'расчет прибыли по предприятиям'!G128 -> 261.036 | H14: ='расчет прибыли по предприятиям'!H16+'расчет прибыли по предприятиям'!H32+'расчет прибыли по предприятиям'!H48+'расчет прибыли по предприятиям'!H64+'расчет прибыли по предприятиям'!H80+'расчет прибыли по предприятиям'!H96+'расчет прибыли по предприятиям'!H112+'расчет прибыли по предприятиям'!H128 -> 290.227
A15: 8. Количество рентабельных предприятий, единиц | B15: 3 | C15: 2 | D15: 2 | E15: 6 | F15: 8 | G15: 8 | H15: 8
A16: 9.Сумма прибыли рентабельных предприятий | B16: ='расчет прибыли по предприятиям'!B16+'расчет прибыли по предприятиям'!B32+'расчет прибыли по предприятиям'!B64+'расчет прибыли по предприятиям'!B80 -> 118.041 | C16: ='расчет прибыли по предприятиям'!C16+'расчет прибыли по предприятиям'!C48 -> 149.000 | D16: ='расчет прибыли по предприятиям'!D16+'расчет прибыли по предприятиям'!D48 -> 97.700 | E16: ='расчет прибыли по предприятиям'!E16+'расчет прибыли по предприятиям'!E32+'расчет прибыли по предприятиям'!E48+'расчет прибыли по предприятиям'!E64+'расчет прибыли по предприятиям'!E80+'расчет прибыли по предприятиям'!E128 -> 135.528 | F16: ='расчет прибыли по предприятиям'!F16+'расчет прибыли по предприятиям'!F32+'расчет прибыли по предприятиям'!F48+'расчет прибыли по предприятиям'!F64+'расчет прибыли по предприятиям'!F80+'расчет прибыли по предприятиям'!F96+'расчет прибыли по предприятиям'!F112+'расчет прибыли по предприятиям'!F128 -> 217.593 | G16: ='расчет прибыли по предприятиям'!G16+'расчет прибыли по предприятиям'!G32+'расчет прибыли по предприятиям'!G48+'расчет прибыли по предприятиям'!G64+'расчет прибыли по предприятиям'!G80+'расчет прибыли по предприятиям'!G96+'расчет прибыли по предприятиям'!G112+'расчет прибыли по предприятиям'!G128 -> 261.036 | H16: ='расчет прибыли по предприятиям'!H16+'расчет прибыли по предприятиям'!H32+'расчет прибыли по предприятиям'!H48+'расчет прибыли по предприятиям'!H64+'расчет прибыли по предприятиям'!H80+'расчет прибыли по предприятиям'!H96+'расчет прибыли по предприятиям'!H112+'расчет прибыли по предприятиям'!H128 -> 290.227
A17: 10.Количество убыточных предприятий, единиц | B17: 5 | C17: 6 | D17: 6 | E17: 2 | F17: ='расчет прибыли по предприятиям'!F19+'расчет прибыли по предприятиям'!F35+'расчет прибыли по предприятиям'!F51+'расчет прибыли по предприятиям'!F67+'расчет прибыли по предприятиям'!F83+'расчет прибыли по предприятиям'!F99+'расчет прибыли по предприятиям'!F115+'расчет прибыли по предприятиям'!F131 -> 0 | G17: ='расчет прибыли по предприятиям'!G19+'расчет прибыли по предприятиям'!G35+'расчет прибыли по предприятиям'!G51+'расчет прибыли по предприятиям'!G67+'расчет прибыли по предприятиям'!G83+'расчет прибыли по предприятиям'!G99+'расчет прибыли по предприятиям'!G115+'расчет прибыли по предприятиям'!G131 -> 0 | H17: ='расчет прибыли по предприятиям'!H19+'расчет прибыли по предприятиям'!H35+'расчет прибыли по предприятиям'!H51+'расчет прибыли по предприятиям'!H67+'расчет прибыли по предприятиям'!H83+'расчет прибыли по предприятиям'!H99+'расчет прибыли по предприятиям'!H115+'расчет прибыли по предприятиям'!H131 -> 0
A18: 11.Сумма убытка в убыточных предприятиях | B18: ='расчет прибыли по предприятиям'!B48+'расчет прибыли по предприятиям'!B96+'расчет прибыли по предприятиям'!B112+'расчет прибыли по предприятиям'!B128 -> -60.187 | C18: ='расчет прибыли по предприятиям'!C32+'расчет прибыли по предприятиям'!C64+'расчет прибыли по предприятиям'!C96+'расчет прибыли по предприятиям'!C112+'расчет прибыли по предприятиям'!C128 -> -57.502 | D18: ='расчет прибыли по предприятиям'!D32+'расчет прибыли по предприятиям'!D64+'расчет прибыли по предприятиям'!D96+'расчет прибыли по предприятиям'!D112+'расчет прибыли по предприятиям'!D128 -> -39.358 | E18: ='расчет прибыли по предприятиям'!E96+'расчет прибыли по предприятиям'!E112 -> -3.600 | F18: 0 | G18: ='расчет прибыли по предприятиям'!G20+'расчет прибыли по предприятиям'!G36+'расчет прибыли по предприятиям'!G52+'расчет прибыли по предприятиям'!G68+'расчет прибыли по предприятиям'!G84+'расчет прибыли по предприятиям'!G100+'расчет прибыли по предприятиям'!G116+'расчет прибыли по предприятиям'!G132 -> 0 | H18: ='расчет прибыли по предприятиям'!H20+'расчет прибыли по предприятиям'!H36+'расчет прибыли по предприятиям'!H52+'расчет прибыли по предприятиям'!H68+'расчет прибыли по предприятиям'!H84+'расчет прибыли по предприятиям'!H100+'расчет прибыли по предприятиям'!H116+'расчет прибыли по предприятиям'!H132 -> 0
A20: Примечание: По данной форме форме приводится сводный расчет прибыли по муниципальному району (городскому округу).
A22: Заместитель главы администрации Богучарского муниципального района_____________________ А.Ю.Кожанов | D22: Исполнитель: специалист 1 категории экономического отдела _________________ З.П.Колесникова
D23: Телефон: 8(47366)2-29-96

Sheet расчет темпов - сводная
J1: Форма № 4
A2: Расчет темпов роста (снижения) промышленного производства в сопоставимых ценах (ценах 2010 года)
A3: по Богучарскому муниципальному району на 2018 год и на период до 2020 года (сводная форма)
A6: Наименование вида деятельности (код) | C6: Сумма объемов промышленного производства по соответствующему коду (из формы № 3), млн.руб.
C7: 2014 год | D7: 2015 год | E7: 2016 год | F7: 2017 год | G7: 2018 год | H7: 2019 год | I7: 2020 год | J7: январь-июнь 2016 года | K7: январь-июнь 2017 года
A8: А | C8: 1 | D8: 2 | E8: 3 | F8: 4 | G8: 5 | H8: 6 | I8: 7 | J8: 8 | K8: 9
A9: В | B9: «Добыча полезных ископаемых» | C9: ='расчет темпов по предприятиям'!F203+'расчет темпов по предприятиям'!F238 -> 150.275 | D9: ='расчет темпов по предприятиям'!I203+'расчет темпов по предприятиям'!I238 -> 104.094 | E9: ='расчет темпов по предприятиям'!L238+'расчет темпов по предприятиям'!L273 -> 164.028 | F9: ='расчет темпов по предприятиям'!F213+'расчет темпов по предприятиям'!F248 -> 227.584 | G9: ='расчет темпов по предприятиям'!I213+'расчет темпов по предприятиям'!I248 -> 246.400 | H9: ='расчет темпов по предприятиям'!L213+'расчет темпов по предприятиям'!L248 -> 268.800 | I9: ='расчет темпов по предприятиям'!F223+'расчет темпов по предприятиям'!F258 -> 291.200 | J9: ='расчет темпов по предприятиям'!I223+'расчет темпов по предприятиям'!I258 -> 37.675 | K9: ='расчет темпов по предприятиям'!L223+'расчет темпов по предприятиям'!L258 -> 119.085
A10: С | B10: «Обрабатывающие производства» | C10: =C12+C28 -> 671.413 | D10: =D12+D28 -> 462.007 | E10: 482.214 | F10: 512.549 | G10: 530.661 | H10: 552.212 | I10: 579.698 | J10: 238.061 | K10: 340.307
B11: в том числе:
A12: 10 | B12: Производство пищевых продуктов | C12: ='расчет темпов по предприятиям'!F18+'расчет темпов по предприятиям'!F63+'расчет темпов по предприятиям'!F94+'расчет темпов по предприятиям'!F133 -> 663.547 | D12: ='расчет темпов по предприятиям'!I18+'расчет темпов по предприятиям'!I63+'расчет темпов по предприятиям'!I94+'расчет темпов по предприятиям'!I133 -> 452.406 | E12: ='расчет темпов по предприятиям'!L18+'расчет темпов по предприятиям'!L63+'расчет темпов по предприятиям'!L94+'расчет темпов по предприятиям'!L133 -> 471.564 | F12: ='расчет темпов по предприятиям'!F32+'расчет темпов по предприятиям'!F73+'расчет темпов по предприятиям'!F104+'расчет темпов по предприятиям'!F143 -> 499.394 | G12: ='расчет темпов по предприятиям'!I32+'расчет темпов по предприятиям'!I73+'расчет темпов по предприятиям'!I104+'расчет темпов по предприятиям'!I143 -> 517.112 | H12: ='расчет темпов по предприятиям'!L32+'расчет темпов по предприятиям'!L73+'расчет темпов по предприятиям'!L104+'расчет темпов по предприятиям'!L143 -> 537.985 | I12: ='расчет темпов по предприятиям'!F46+'расчет темпов по предприятиям'!F83+'расчет темпов по предприятиям'!F114+'расчет темпов по предприятиям'!F153 -> 564.618 | J12: ='расчет темпов по предприятиям'!I46+'расчет темпов по предприятиям'!I83+'расчет темпов по предприятиям'!I114+'расчет темпов по предприятиям'!I153 -> 233.192 | K12: ='расчет темпов по предприятиям'!L46+'расчет темпов по предприятиям'!L83+'расчет темпов по предприятиям'!L114+'расчет темпов по предприятиям'!L154 -> 333.730
A13: 11 | B13: Производство напитков
A14: 13 | B14: Производство текстильных изделий
A15: 14 | B15: Производство одежды
A16: 15 | B16: Производство кожи и изделий из кожи
A17: 16 | B17: Обработка древесины и производство изделий из дерева и пробки, кроме мебели, производство изделий из соломки и материалов для плетения
A18: 17 | B18: Производство бумаги и бумажных изделий
A19: 18 | B19: Деятельность полиграфическая и копирование носителей информации
A20: 20 | B20: Производство химических веществ и химических продуктов
A21: 21 | B21: Производство лекарственных средств и материалов, применяемых в медицинских целях
A22: 22 | B22: Производство резиновых и пластмассовых изделий
A23: 23 | B23: Производство прочей неметаллической минеральной продукции
A24: 24 | B24: Производство металлургическое
A25: 25 | B25: Производство готовых металлических изделий, кроме машин и оборудования
A26: 26 | B26: Производство компьютеров, электронных и оптических изделий
A27: 27 | B27: Производство электрического оборудования
A28: 28 | B28: Производство машин и оборудования, не включенных в другие группировки | C28: ='расчет темпов по предприятиям'!F168 -> 7.866 | D28: ='расчет темпов по предприятиям'!I168 -> 9.600 | E28: ='расчет темпов по предприятиям'!L168 -> 10.650 | F28: ='расчет темпов по предприятиям'!F178 -> 13.156 | G28: ='расчет темпов по предприятиям'!I178 -> 13.550 | H28: ='расчет темпов по предприятиям'!L178 -> 14.227 | I28: ='расчет темпов по предприятиям'!F188 -> 15.080 | J28: ='расчет темпов по предприятиям'!I188 -> 4.869 | K28: ='расчет темпов по предприятиям'!L188 -> 6.578
A29: 29 | B29: Производство автотранспортных средств, прицепов и полуприцепов
A30: 30 | B30: Производство прочих транспортных средств и оборудования
A31: 31 | B31: Производство мебели
A32: 32 | B32: Производство прочих готовых изделий
A33: 33 | B33: Ремонт и монтаж машин и оборудования
A34: D | B34: «Обеспечение электрической энергией, газом и паром; кондиционирование воздуха» | C34: ='расчет темпов по предприятиям'!F95+'расчет темпов по предприятиям'!F270+'расчет темпов по предприятиям'!F272 -> 18.261 | D34: ='расчет темпов по предприятиям'!I95+'расчет темпов по предприятиям'!I270+'расчет темпов по предприятиям'!I272 -> 20.051 | E34: ='расчет темпов по предприятиям'!L95+'расчет темпов по предприятиям'!L270+'расчет темпов по предприятиям'!L272 -> 18.142 | F34: ='расчет темпов по предприятиям'!F105+'расчет темпов по предприятиям'!F280+'расчет темпов по предприятиям'!F282 -> 18.830 | G34: ='расчет темпов по предприятиям'!I105+'расчет темпов по предприятиям'!I280+'расчет темпов по предприятиям'!I282 -> 19.456 | H34: ='расчет темпов по предприятиям'!L105+'расчет темпов по предприятиям'!L280+'расчет темпов по предприятиям'!L282 -> 19.835 | I34: ='расчет темпов по предприятиям'!F115+'расчет темпов по предприятиям'!F290+'расчет темпов по предприятиям'!F292 -> 20.213 | J34: ='расчет темпов по предприятиям'!I115+'расчет темпов по предприятиям'!I290+'расчет темпов по предприятиям'!I292 -> 9.626 | K34: ='расчет темпов по предприятиям'!L115+'расчет темпов по предприятиям'!L290+'расчет темпов по предприятиям'!L292 -> 10.236
A35: Е | B35: «Водоснабжение; водоотведение, организация сбора и утилизации отходов, деятельность по ликвидации загрязнений» | C35: ='расчет темпов по предприятиям'!F269+'расчет темпов по предприятиям'!F271 -> 25.953 | D35: ='расчет темпов по предприятиям'!I269+'расчет темпов по предприятиям'!I271 -> 27.210 | E35: ='расчет темпов по предприятиям'!L269+'расчет темпов по предприятиям'!L271 -> 28.728 | F35: ='расчет темпов по предприятиям'!F279+'расчет темпов по предприятиям'!F281 -> 28.551 | G35: ='расчет темпов по предприятиям'!I279+'расчет темпов по предприятиям'!I281 -> 28.865 | H35: ='расчет темпов по предприятиям'!L279+'расчет темпов по предприятиям'!L281 -> 29.442 | I35: ='расчет темпов по предприятиям'!F289+'расчет темпов по предприятиям'!F291 -> 30.521 | J35: ='расчет темпов по предприятиям'!I289+'расчет темпов по предприятиям'!I291 -> 13.381 | K35: ='расчет темпов по предприятиям'!L289+'расчет темпов по предприятиям'!L291 -> 15.701
A36: Всего по району (В+С+D+Е) | C36: =C9+C10+C34+C35 -> 865.90 | D36: =D9+D10+D34+D35 -> 613.36 | E36: 693.11 | F36: 787.51 | G36: 825.38 | H36: 870.29 | I36: 921.63 | J36: 298.74 | K36: 485.33
A37: Темп роста (снижения) промышленного производства в сопоставимых ценах, в % к предыдущему году | C37: х | D37: =D36/C36*100 -> 70.8 | E37: =E36/D36*100 -> 113.0 | F37: 113.6 | G37: 104.8 | H37: 105.4 | I37: 105.9 | J37: х | K37: =K36/J36*100 -> 162.46
B40: Заместитель главы администрации Богучарского муниципального района_____________________ А.Ю.Кожанов | E40: Исполнитель: специалист 1 категории экономического отдела _________________ З.П.Колесникова | H40: Тел: 8(47366)2-29-96

Sheet Дефляторы
A1: Прогноз индексов дефляторов и индексов цен производителей по видам экономической деятельности до 2020 г. (по полному кругу предприятий без НДС, косвенных налогов, торгово-транспортной наценки), в % г/г (базовый вариант)
A2: Н а и м е н о в а н и е о т р а с л и | B2: 2016 | C2: 2017 | D2: 2018 | E2: 2019 | F2: 2020
B3: Оценка | D3: Прогноз
A4: Обеспечение электрической энергией, газом и паром; кондиционирование воздуха (35)
A5: дефлятор | B5: 105.3 | C5: 105.4 | D5: 104.7 | E5: 105.4 | F5: 104.0
A6: Добыча полезных ископаемых (Раздел B)
A7: дефлятор | B7: 102.1 | C7: 108.7 | D7: 101.6 | E7: 101.8 | F7: 103.5
A8: Добыча топливно-энергетических полезных ископаемых (05, 06+09.1)
A9: дефлятор | B9: 100.4 | C9: 109.0 | D9: 101.2 | E9: 101.5 | F9: 103.4
A10: Добыча сырой нефти и природного газа (06+09.1)
A11: дефлятор | B11: 99.8 | C11: 107.2 | D11: 100.9 | E11: 101.3 | F11: 103.4
A12: Добыча сырой нефти (06.10.1)
A13: дефлятор
A14: ИЦП
A15: Добыча угля (05)
A16: дефлятор | B16: 106.7 | C16: 126.1 | D16: 103.5 | E16: 103.1 | F16: 103.3
A17: Добыча металлических руд и прочих полезных ископаемых (07, 08)
A18: дефлятор | B18: 112.6 | C18: 106.9 | D18: 104.2 | E18: 103.7 | F18: 104.0
A19: Добыча металлических руд (07)
A20: дефлятор | B20: 107.2 | C20: 108.8 | D20: 104.3 | E20: 103.5 | F20: 103.9
A21: Добыча прочих полезных ископаемых (08)
A22: дефлятор | B22: 121.2 | C22: 104.3 | D22: 104.2 | E22: 104.2 | F22: 104.3
A23: Обрабатывающие производства (Раздел C)
A24: дефлятор | B24: 102.2 | C24: 105.0 | D24: 105.1 | E24: 104.3 | F24: 104.4
A25: Производство нефтепродуктов (19.2)
A26: дефлятор | B26: 102.6 | C26: 106.0 | D26: 101.2 | E26: 103.4 | F26: 104.7
A27: ИЦП | B27: 93.7 | C27: 108.6 | D27: 101.4 | E27: 103.7 | F27: 104.8
A28: Производство черных металлов (24.1, 24.2, 24.3, 24.5)
A29: дефлятор | B29: 105.8 | C29: 106.5 | D29: 103.6 | E29: 103.6 | F29: 103.6
A30: ИЦП | B30: 111.1 | C30: 114.2 | D30: 103.0 | E30: 103.6 | F30: 103.7
A31: Производство основных драгоценных металлов и прочих цветных металлов, производство ядерного топлива (24.4)
A32: дефлятор | B32: 86.2 | C32: 103.7 | D32: 105.2 | E32: 105.1 | F32: 105.3
A33: Производство готовых металлических изделий, кроме машин и оборудования (25)
A34: дефлятор | B34: 107.3 | C34: 105.9 | D34: 104.6 | E34: 105.4 | F34: 105.3
A35: Производство химическое, резиновых и пластмассовых изделий (20, 21, 22)
A36: дефлятор | B36: 95.4 | C36: 102.0 | D36: 104.1 | E36: 104.2 | F36: 104.2
A37: Производствово машин и оборудования, электрооборудования, транспортных средств (26, 27, 28, 29, 30)
A38: дефлятор | B38: 105.9 | C38: 104.5 | D38: 105.5 | E38: 105.5 | F38: 105.6
A39: Обработка древесины и производство изделий из дерева и пробки, кроме мебели, производство изделий из соломки и материалов для плетения (16)
A40: дефлятор | B40: 103.7 | C40: 102.2 | D40: 104.9 | E40: 103.6 | F40: 103.7
A41: Производство бумаги и бумажных изделий (17)
A42: дефлятор | B42: 107.2 | C42: 102.7 | D42: 105.1 | E42: 104.9 | F42: 104.9
A43: Производство прочей неметаллической минеральной продукции (23)
A44: дефлятор | B44: 102.8 | C44: 106.9 | D44: 105.2 | E44: 105.0 | F44: 105.1
A45: Производство текстильных изделий, одежды, кожи и изделий из кожи (13, 14, 15)
A46: дефлятор | B46: 112.6 | C46: 103.5 | D46: 103.9 | E46: 104.1 | F46: 104.3
A47: Производство пищевых продуктов, напитков и табачных изделей (10, 11, 12)
A48: дефлятор | B48: 104.0 | C48: 102.8 | D48: 104.3 | E48: 104.0 | F48: 104.1
A49: Водоснабжение; водоотведение, организация сбора и утилизация отходов, деятельность по ликвидации загрязнений (Раздел E)
A50: дефлятор | B50: 99.7 | C50: 107.4 | D50: 103.7 | E50: 104.0 | F50: 104.0
A51: Промышленность (BCDE)
A52: дефлятор | B52: 102.2 | C52: 105.8 | D52: 104.2 | E52: 104.0 | F52: 104.2
A53: ИЦП | B53: 104.3 | C53: 107.3 | D53: 103.4 | E53: 103.9 | F53: 104.4
A54: ИЦП в промышленности для внутреннего рынка (расчет Минэкономразвития России с исключением объемов экспортной продукции) | B54: 105.1 | C54: 107.0 | D54: 103.8 | E54: 104.3 | F54: 104.4
A55: в т. ч. с исключением ТЭКа (нефть, нефтепродукты, уголь, газ, энергетика) | B55: 107.6 | C55: 105.4 | D55: 104.5 | E55: 104.6 | F55: 104.7
A56: Сельское хозяйство
A57: дефлятор | B57: 103.9 | C57: 103.7 | D57: 105.3 | E57: 103.5 | F57: 103.4
A58: - растениеводство
A59: дефлятор | B59: 105.4 | C59: 104.0 | D59: 106.4 | E59: 103.1 | F59: 103.0
A60: - животноводство
A61: дефлятор | B61: 101.9 | C61: 103.4 | D61: 103.8 | E61: 104.1 | F61: 103.8
A62: индекс цен реализации продукции сельхозпроизводителями | B62: 98.5 | C62: 104.3 | D62: 104.2 | E62: 104.2 | F62: 103.9
A63: Транспорт, вкл. трубопроводный
A64: дефлятор | B64: 104.9 | C64: 104.7 | D64: 104.1 | E64: 103.6 | F64: 103.4
A65: ИЦП | B65: 107.6 | C65: 105.5 | D65: 104.8 | E65: 104.1 | F65: 103.9
A66: ИЦП с исключением трубопроводн. транспорта | B66: 108.6 | C66: 104.7 | D66: 103.6 | E66: 104.6 | F66: 105.3
A67: Инвестиции в основной капитал (капитальные вложения)
A68: дефлятор | B68: 106.3 | C68: 105.3 | D68: 104.5 | E68: 104.4 | F68: 104.1
A69: индексы цен | B69: 106.6
A70: Строительство
A71: дефлятор | B71: 105.3 | C71: 104.7 | D71: 104.9 | E71: 105.0 | F71: 104.8
A72: ИЦП | B72: 105.3 | C72: 105.4 | D72: 104.5 | E72: 104.7 | F72: 104.8
A73: Потребительский рынок
A74: оборот розничной торговли, дефлятор | B74: 107.8 | C74: 104.1 | D74: 104.0 | E74: 103.8 | F74: 103.8
A75: ИПЦ на товары | B75: 107.1 | C75: 103.9 | D75: 103.8 | E75: 103.7 | F75: 103.8
A76: платные услуги населению, дефлятор | B76: 106.6 | C76: 104.5 | D76: 104.6 | E76: 104.6 | F76: 104.6
A77: ИПЦ на услуги | B77: 106.9 | C77: 104.6 | D77: 104.6 | E77: 104.7 | F77: 104.6
